Workbook

Sheet Examples (hidden)
B2: IPART colour codes for models, spreadsheets and information requests
B3: NB ALWAYS DESCRIBE THE COLOUR CODE USED IN YOUR MODEL
B4: Note: If you use the formats for the inputs provided in this template, input cells will always be unprotected even when you protect the worksheet
H5: use this column cell to "paint" input cells for numbers (NOT for percentages)
I6: use this column cell to "paint" input cells for percentages (NOT numbers)
B7: Models and spreadsheets
G8: numbers | H8: %
B9: Inputs | G9: 4232 | H9: 0.08
B10: Inputs with default values, default values are shown in italics next to or below | G10: 34345 | H10: 0.08
B11: Hard-coded values used that should not be changed, eg credit ratings or '1' at the start of an index series.
B12: Key outputs
B13: Links from other files (green)
B14: Error check (check =0)
B15: Error warnings, messages and unusual calculation assumptions
B16: Indicate change in formula across row with a double red line
B17: Note: You can combine options for inputs, eg: | E17: Inputs can be links to other files
E18: You can drawn attention to unusual inputs
H20: use this column cell to "paint" input cells for numbers (NOT for percentages)
B21: Information Requests | I21: use this column cell to "paint" input cells for percentages (NOT numbers)
G22: numbers | H22: %
B23: Inputs for historical years (actual values) | G23: 234 | H23: 0.24
B24: Forecast inputs | G24: 6667 | H24: 0.05
B25: Error warnings and messages
B26: Error check (check =0)
B28: QA notes - annotation or documenation by QA staff
A31: User Instructions - IPART CHARTS
B33: Blue | C33: Mid Grey | D33: Pale Blue | E33: Green | F33: Charcoal | G33: Orange | H33: Purple | I33: Pink | L33: Blue | M33: Mid Grey | N33: Pale Blue | O33: Green | P33: Charcoal | Q33: Orange | S33: X value | T33: 1st Y value | U33: 2nd Y value | X33: Black | Y33: Red 100% | Z33: Red 70% | AA33: Grey 40%
A34: 1975-76 | B34: 36.19 | C34: 36.88 | D34: 21.56 | E34: 5.36 | F34: 3.01 | G34: 10 | H34: 3.01 | I34: 10 | K34: 1975-76 | L34: 33.19 | M34: 36.88 | N34: 21.56 | O34: 5.36 | P34: 3.01 | Q34: 10 | S34: 1.8 | T34: 10 | U34: 17 | W34: 1975-76 | X34: 33.19 | Y34: 36.88 | Z34: 21.56 | AA34: 5.36
A35: 1983-84 | B35: 39.39 | C35: 32.02 | D35: 21.6 | E35: 7.01 | F35: 3.36 | G35: 12 | H35: 3.36 | I35: 12 | K35: 1983-84 | L35: 39.39 | M35: 32.02 | N35: 21.6 | O35: 7.01 | P35: 3.36 | Q35: 12 | S35: 2.3 | T35: 12 | U35: 9 | W35: 1983-84 | X35: 39.39 | Y35: 32.02 | Z35: 21.6 | AA35: 7.01
A36: 1988-89 | B36: 42.78 | C36: 29.91 | D36: 18.35 | E36: 6.33 | F36: 2.63 | G36: 14 | H36: 2.63 | I36: 14 | K36: 1988-89 | L36: 42.78 | M36: 29.91 | N36: 18.35 | O36: 6.33 | P36: 2.63 | Q36: 14 | S36: 3.7 | T36: 16 | U36: 14 | W36: 1988-89 | X36: 42.78 | Y36: 29.91 | Z36: 18.35 | AA36: 6.33
A37: 1993-94 | B37: 42.13 | C37: 26.53 | D37: 21.6 | E37: 7.01 | F37: 2.72 | G37: 16 | H37: 2.72 | I37: 16 | K37: 1993-94 | L37: 42.13 | M37: 26.53 | N37: 21.6 | O37: 7.01 | P37: 2.72 | Q37: 16 | S37: 4.1 | T37: 8 | U37: 23 | W37: 1993-94 | X37: 42.13 | Y37: 26.53 | Z37: 21.6 | AA37: 7.01
A38: 1996-97 | B38: 41.69 | C38: 24.76 | D38: 23.98 | E38: 7 | F38: 2.57 | G38: 18 | H38: 2.57 | I38: 18 | K38: 1996-97 | L38: 41.69 | M38: 24.76 | N38: 23.98 | O38: 7 | P38: 2.57 | Q38: 18 | S38: 5.5 | T38: 14 | U38: 27 | W38: 1996-97 | X38: 41.69 | Y38: 24.76 | Z38: 23.98 | AA38: 7
A39: 1997-98 | B39: 39.39 | C39: 32.02 | D39: 21.6 | E39: 7.01 | F39: 3.36 | G39: 12 | H39: 3.36 | I39: 12 | K39: 1997-98 | L39: 39.39 | M39: 32.02 | N39: 21.6 | O39: 7.01 | P39: 3.36 | Q39: 12 | W39: 1997-98 | X39: 39.39 | Y39: 32.02 | Z39: 21.6 | AA39: 7.01
A40: 1998-99 | B40: 42.13 | C40: 26.53 | D40: 21.6 | E40: 7.01 | F40: 2.72 | G40: 16 | H40: 2.72 | I40: 16 | K40: 1998-99 | L40: 42.13 | M40: 26.53 | N40: 21.6 | O40: 7.01 | P40: 2.72 | Q40: 16 | W40: 1998-99 | X40: 42.13 | Y40: 26.53 | Z40: 21.6 | AA40: 7.01
A41: 1999-00 | B41: 45 | C41: 22 | D41: 26 | E41: 8 | F41: 2 | G41: 20 | H41: 2 | I41: 20 | K41: 1999-00 | L41: 45 | M41: 22 | N41: 26 | O41: 8 | P41: 2 | Q41: 20 | W41: 1999-00 | X41: 45 | Y41: 22 | Z41: 26 | AA41: 8
A42: – en rule for when needed

Sheet Export (hidden)
A1: Hide sheet before publishing
B3: EXPORT SHEET
B5: ='WK1 - Identification'!$F$5 -> WORKSHEET 1
B6: ='WK1 - Identification'!C13 -> Council Name: | D6: ='WK2 - Notional General Income'!$C$3 -> Armidale Regional Council
B7: Type of application | D7: ='WK1 - Identification'!K34 -> s508(2)
B8: Has existing SV? | D8: ='WK1 - Identification'!K30 -> no
B9: Yrs SV applies | D9: ='WK1 - Identification'!S37 -> 1
B10: Permanent or temporary? | D10: ='WK1 - Identification'!K36 -> Permanent
B11: No yrs if temporary | D11: ='WK1 - Identification'!K37 -> 0
B15: ='WK1 - Identification'!$F$5 -> WORKSHEET 1 | C15: Expiring exising SVs
D16: Expiry date
B17: ='WK1 - Identification'!I43 -> 1st Expiring SV | D17: ='WK1 - Identification'!K43 -> Yes - 30 June 2021 expiry
B18: ='WK1 - Identification'!I44 -> 2nd Expiring SV | D18: ='WK1 - Identification'!K44 -> na
B22: ='WK1 - Identification'!$F$5 -> WORKSHEET 1
B23: ='WK1 - Identification'!C54 -> E. Requested annual percentage increases and expiring SV amounts
H24: ='WK1 - Identification'!F60 -> Year 0 | I24: ='WK1 - Identification'!G60 -> Year 1 | J24: ='WK1 - Identification'!H60 -> Year 2 | K24: ='WK1 - Identification'!I60 -> Year 3 | L24: ='WK1 - Identification'!J60 -> Year 4 | M24: ='WK1 - Identification'!K60 -> Year 5 | N24: ='WK1 - Identification'!L60 -> Year 6 | O24: ='WK1 - Identification'!M60 -> Year 7
B25: ='WK1 - Identification'!C61 -> Financial year | H25: ='WK1 - Identification'!F61 -> 2020-21 | I25: ='WK1 - Identification'!G61 -> 2021-22 | J25: ='WK1 - Identification'!H61 -> 2022-23 | K25: ='WK1 - Identification'!I61 -> 2023-24 | L25: ='WK1 - Identification'!J61 -> 2024-25 | M25: ='WK1 - Identification'!K61 -> 2025-26 | N25: ='WK1 - Identification'!L61 -> 2026-27 | O25: ='WK1 - Identification'!M61 -> 2027-28
B26: ='WK1 - Identification'!C62 -> 1= included in SV period | I26: ='WK1 - Identification'!G62 -> 1 | J26: ='WK1 - Identification'!H62 -> 0 | K26: ='WK1 - Identification'!I62 -> 0 | L26: ='WK1 - Identification'!J62 -> 0 | M26: ='WK1 - Identification'!K62 -> 0 | N26: ='WK1 - Identification'!L62 -> 0 | O26: ='WK1 - Identification'!M62 -> 0
B27: ='WK1 - Identification'!C63 -> 0 = beyond temporary SV period | I27: ='WK1 - Identification'!G63 -> 1 | J27: ='WK1 - Identification'!H63 -> 1 | K27: ='WK1 - Identification'!I63 -> 1 | L27: ='WK1 - Identification'!J63 -> 1 | M27: ='WK1 - Identification'!K63 -> 1 | N27: ='WK1 - Identification'!L63 -> 1 | O27: ='WK1 - Identification'!M63 -> 1
B28: ='WK1 - Identification'!C64 -> Annual % increases
B29: ='WK1 - Identification'!C65 -> na - leave blank | I29: =IF($D$8="no",0,'WK1 - Identification'!G65) -> 0 | J29: =IF($D$8="no",0,'WK1 - Identification'!H65) -> 0 | K29: =IF($D$8="no",0,'WK1 - Identification'!I65) -> 0 | L29: =IF($D$8="no",0,'WK1 - Identification'!J65) -> 0 | M29: =IF($D$8="no",0,'WK1 - Identification'!K65) -> 0 | N29: =IF($D$8="no",0,'WK1 - Identification'!L65) -> 0 | O29: =IF($D$8="no",0,'WK1 - Identification'!M65) -> 0
B31: ='WK1 - Identification'!C67 -> Rate peg only | I31: ='WK1 - Identification'!G67 -> 0.02 | J31: ='WK1 - Identification'!H67 -> 0.025 | K31: ='WK1 - Identification'!I67 -> 0.025 | L31: ='WK1 - Identification'!J67 -> 0.025 | M31: ='WK1 - Identification'!K67 -> 0.025 | N31: ='WK1 - Identification'!L67 -> 0.025 | O31: ='WK1 - Identification'!M67 -> 0.025
B32: ='WK1 - Identification'!C68 -> plus | C32: ='WK1 - Identification'!D68 -> na | I32: ='WK1 - Identification'!G68 -> 0 | J32: ='WK1 - Identification'!H68 -> 0 | K32: ='WK1 - Identification'!I68 -> 0 | L32: ='WK1 - Identification'!J68 -> 0 | M32: ='WK1 - Identification'!K68 -> 0 | N32: ='WK1 - Identification'!L68 -> 0 | O32: ='WK1 - Identification'!M68 -> 0
B33: ='WK1 - Identification'!C69 -> plus | C33: ='WK1 - Identification'!D69 -> percentage above the rate peg | I33: ='WK1 - Identification'!G69 -> 0.085 | J33: ='WK1 - Identification'!H69 -> 0 | K33: ='WK1 - Identification'!I69 -> 0 | L33: ='WK1 - Identification'!J69 -> 0 | M33: ='WK1 - Identification'!K69 -> 0 | N33: ='WK1 - Identification'!L69 -> 0 | O33: ='WK1 - Identification'!M69 -> 0
B34: ='WK1 - Identification'!C70 -> plus | C34: ='WK1 - Identification'!D70 -> na - ignore this row | I34: =CHOOSE('WK1 - Identification'!$S$40,'WK1 - Identification'!G70,0) -> 0 | J34: =CHOOSE('WK1 - Identification'!$S$40,'WK1 - Identification'!H70,0) -> 0 | K34: =CHOOSE('WK1 - Identification'!$S$40,'WK1 - Identification'!I70,0) -> 0 | L34: =CHOOSE('WK1 - Identification'!$S$40,'WK1 - Identification'!J70,0) -> 0 | M34: =CHOOSE('WK1 - Identification'!$S$40,'WK1 - Identification'!K70,0) -> 0 | N34: =CHOOSE('WK1 - Identification'!$S$40,'WK1 - Identification'!L70,0) -> 0 | O34: =CHOOSE('WK1 - Identification'!$S$40,'WK1 - Identification'!M70,0) -> 0
B35: ='WK1 - Identification'!C71 -> plus | C35: ='WK1 - Identification'!D71 -> Crown Land adjustment | I35: ='WK1 - Identification'!G71 -> 0 | J35: ='WK1 - Identification'!H71 -> 0 | K35: ='WK1 - Identification'!I71 -> 0 | L35: ='WK1 - Identification'!J71 -> 0 | M35: ='WK1 - Identification'!K71 -> 0 | N35: ='WK1 - Identification'!L71 -> 0 | O35: ='WK1 - Identification'!M71 -> 0
B36: ='WK1 - Identification'!C72 -> Proposed SV | I36: =IF(I27=0,0,IF(I26=0,I31+I32,'WK1 - Identification'!G72)) -> 0.105 | J36: =IF(J27=0,0,IF(J26=0,J31+J32,'WK1 - Identification'!H72)) -> 0.025 | K36: =IF(K27=0,0,IF(K26=0,K31+K32,'WK1 - Identification'!I72)) -> 0.025 | L36: =IF(L27=0,0,IF(L26=0,L31+L32,'WK1 - Identification'!J72)) -> 0.025 | M36: =IF(M27=0,0,IF(M26=0,M31+M32,'WK1 - Identification'!K72)) -> 0.025 | N36: =IF(N27=0,0,IF(N26=0,N31+N32,'WK1 - Identification'!L72)) -> 0.025 | O36: =IF(O27=0,0,IF(O26=0,O31+O32,'WK1 - Identification'!M72)) -> 0.025
B37: ='WK1 - Identification'!C73 -> Cumulative % increase
B38: ='WK1 - Identification'!C74 -> Rate peg only | I38: ='WK1 - Identification'!G74 -> 0.02 | J38: ='WK1 - Identification'!H74 -> 0.0455 | K38: ='WK1 - Identification'!I74 -> 0.0716375 | L38: ='WK1 - Identification'!J74 -> 0.0984284375 | M38: ='WK1 - Identification'!K74 -> 0.1258891484 | N38: ='WK1 - Identification'!L74 -> 0.1540363771 | O38: ='WK1 - Identification'!M74 -> 0.1828872866
B39: ='WK1 - Identification'!C75 -> plus | C39: ='WK1 - Identification'!D75 -> additional increases | I39: ='WK1 - Identification'!G75 -> 0.085 | J39: ='WK1 - Identification'!H75 -> 0 | K39: ='WK1 - Identification'!I75 -> 0 | L39: ='WK1 - Identification'!J75 -> 0 | M39: ='WK1 - Identification'!K75 -> 0 | N39: ='WK1 - Identification'!L75 -> 0 | O39: ='WK1 - Identification'!M75 -> 0
B40: ='WK1 - Identification'!C76 -> Proposed SV | I40: ='WK1 - Identification'!G76 -> 0.105 | J40: ='WK1 - Identification'!H76 -> 0.132625 | K40: ='WK1 - Identification'!I76 -> 0.160940625 | L40: ='WK1 - Identification'!J76 -> 0.1899641406 | M40: ='WK1 - Identification'!K76 -> 0.2197132441 | N40: ='WK1 - Identification'!L76 -> 0.2502060752 | O40: ='WK1 - Identification'!M76 -> 0.2814612271
B42: ='WK1 - Identification'!C78 -> Expiring special variations
B43: ='WK1 - Identification'!C79 -> $ value of expiring special | I43: ='WK1 - Identification'!G79 -> 0 | J43: ='WK1 - Identification'!H79 -> 0 | K43: ='WK1 - Identification'!I79 -> 0 | L43: ='WK1 - Identification'!J79 -> 0 | M43: ='WK1 - Identification'!K79 -> 0 | N43: ='WK1 - Identification'!L79 -> 0 | O43: ='WK1 - Identification'!M79 -> 0
B44: ='WK1 - Identification'!C80 -> variations (ESV) | I44: ='WK1 - Identification'!G80 -> 0 | J44: ='WK1 - Identification'!H80 -> 0 | K44: ='WK1 - Identification'!I80 -> 0 | L44: ='WK1 - Identification'!J80 -> 0 | M44: ='WK1 - Identification'!K80 -> 0 | N44: ='WK1 - Identification'!L80 -> 0 | O44: ='WK1 - Identification'!M80 -> 0
B46: check = 0 | I46: =I36-SUM(I31:I35) -> 0 | J46: 0 | K46: 0 | L46: 0 | M46: 0 | N46: 0 | O46: 0
B49: ='WK4 - PGI summary'!$E$5 -> WORKSHEET 4
B50: ='WK4 - PGI summary'!B38 -> Note: PGI estimates for years beyond proposed and/or exisiting SV period shown in light grey font. PGI beyond a temporary SV period = 0
B51: ='WK0 - Input data'!B$54 -> Year number | E51: ='WK0 - Input data'!C$55 -> Hist yr 3 | F51: ='WK0 - Input data'!D$55 -> Hist yr 2 | G51: ='WK0 - Input data'!E$55 -> Hist yr 1 | H51: ='WK0 - Input data'!F$55 -> Year 0 | I51: ='WK0 - Input data'!G$55 -> Year 1 | J51: ='WK0 - Input data'!H$55 -> Year 2 | K51: ='WK0 - Input data'!I$55 -> Year 3 | L51: ='WK0 - Input data'!J$55 -> Year 4 | M51: ='WK0 - Input data'!K$55 -> Year 5 | N51: ='WK0 - Input data'!L$55 -> Year 6 | O51: ='WK0 - Input data'!M$55 -> Year 7 | P51: ='WK0 - Input data'!N$55 -> Year 8 | Q51: ='WK0 - Input data'!O$55 -> Year 9 | R51: ='WK0 - Input data'!P$55 -> Year 10 | S51: ='WK4 - PGI summary'!N40 -> $ nominal | T51: ='WK4 - PGI summary'!O40 -> %
B52: ='WK0 - Input data'!B$58 -> Financial year | E52: ='WK0 - Input data'!C$58 -> 2017-18 | F52: ='WK0 - Input data'!D$58 -> 2018-19 | G52: ='WK0 - Input data'!E$58 -> 2019-20 | H52: ='WK0 - Input data'!F$58 -> 2020-21 | I52: ='WK0 - Input data'!G$58 -> 2021-22 | J52: ='WK0 - Input data'!H$58 -> 2022-23 | K52: ='WK0 - Input data'!I$58 -> 2023-24 | L52: ='WK0 - Input data'!J$58 -> 2024-25 | M52: ='WK0 - Input data'!K$58 -> 2025-26 | N52: ='WK0 - Input data'!L$58 -> 2026-27 | O52: ='WK0 - Input data'!M$58 -> 2027-28 | P52: ='WK0 - Input data'!N$58 -> 2028-29 | Q52: ='WK0 - Input data'!O$58 -> 2029-30 | R52: ='WK0 - Input data'!P$58 -> 2030-31 | S52: ='WK4 - PGI summary'!N41 -> 0 | T52: ='WK4 - PGI summary'!O41 -> 0
B54: ='WK4 - PGI summary'!C44 -> PGI with proposed SV
B55: ='WK4 - PGI summary'!C45 -> Prior year Notional General Income (NGI) | I55: ='WK4 - PGI summary'!G45 -> 19266735.82 | J55: ='WK4 - PGI summary'!H45 -> 19756583.26 | K55: ='WK4 - PGI summary'!I45 -> 20250497.84 | L55: ='WK4 - PGI summary'!J45 -> 20756760.29 | M55: ='WK4 - PGI summary'!K45 -> 21275679.29 | N55: ='WK4 - PGI summary'!L45 -> 21807571.28 | O55: ='WK4 - PGI summary'!M45 -> 22352760.56
B56: ='WK4 - PGI summary'!C46 -> less | C56: ='WK4 - PGI summary'!D46 -> expiry of a prior special variation | I56: ='WK4 - PGI summary'!G46 -> 1468284 | J56: ='WK4 - PGI summary'!H46 -> 0 | K56: ='WK4 - PGI summary'!I46 -> 0 | L56: ='WK4 - PGI summary'!J46 -> 0 | M56: ='WK4 - PGI summary'!K46 -> 0 | N56: ='WK4 - PGI summary'!L46 -> 0 | O56: ='WK4 - PGI summary'!M46 -> 0
B57: ='WK4 - PGI summary'!C47 -> Adjusted Notional General income | I57: ='WK4 - PGI summary'!G47 -> 17798451.82 | J57: ='WK4 - PGI summary'!H47 -> 19756583.26 | K57: ='WK4 - PGI summary'!I47 -> 20250497.84 | L57: ='WK4 - PGI summary'!J47 -> 20756760.29 | M57: ='WK4 - PGI summary'!K47 -> 21275679.29 | N57: ='WK4 - PGI summary'!L47 -> 21807571.28 | O57: ='WK4 - PGI summary'!M47 -> 22352760.56
B59: ='WK4 - PGI summary'!C49 -> plus | C59: ='WK4 - PGI summary'!D49 -> rate peg increase | I59: ='WK4 - PGI summary'!G49 -> 355969.0363 | J59: ='WK4 - PGI summary'!H49 -> 493914.5815 | K59: ='WK4 - PGI summary'!I49 -> 506262.446 | L59: ='WK4 - PGI summary'!J49 -> 518919.0071 | M59: ='WK4 - PGI summary'!K49 -> 531891.9823 | N59: ='WK4 - PGI summary'!L49 -> 545189.2819 | O59: ='WK4 - PGI summary'!M49 -> 558819.0139
B60: ='WK4 - PGI summary'!C50 -> plus | C60: ='WK4 - PGI summary'!D50 -> na | I60: ='WK4 - PGI summary'!G50 -> 0 | J60: ='WK4 - PGI summary'!H50 -> 0 | K60: ='WK4 - PGI summary'!I50 -> 0 | L60: ='WK4 - PGI summary'!J50 -> 0 | M60: ='WK4 - PGI summary'!K50 -> 0 | N60: ='WK4 - PGI summary'!L50 -> 0 | O60: ='WK4 - PGI summary'!M50 -> 0
B61: ='WK4 - PGI summary'!C51 -> plus | C61: ='WK4 - PGI summary'!D51 -> additional increase | I61: ='WK4 - PGI summary'!G51 -> 1512868.404 | J61: ='WK4 - PGI summary'!H51 -> 0 | K61: ='WK4 - PGI summary'!I51 -> 0 | L61: ='WK4 - PGI summary'!J51 -> 0 | M61: ='WK4 - PGI summary'!K51 -> 0 | N61: ='WK4 - PGI summary'!L51 -> 0 | O61: ='WK4 - PGI summary'!M51 -> 0
B62: ='WK4 - PGI summary'!C52 -> plus | C62: ='WK4 - PGI summary'!D52 -> na | I62: ='WK4 - PGI summary'!G52 -> 0 | J62: ='WK4 - PGI summary'!H52 -> 0 | K62: ='WK4 - PGI summary'!I52 -> 0 | L62: ='WK4 - PGI summary'!J52 -> 0 | M62: ='WK4 - PGI summary'!K52 -> 0 | N62: ='WK4 - PGI summary'!L52 -> 0 | O62: ='WK4 - PGI summary'!M52 -> 0
B63: ='WK4 - PGI summary'!C53 -> plus | C63: ='WK4 - PGI summary'!D53 -> Crown Land adjustment | I63: ='WK4 - PGI summary'!G53 -> 0 | J63: ='WK4 - PGI summary'!H53 -> 0 | K63: ='WK4 - PGI summary'!I53 -> 0 | L63: ='WK4 - PGI summary'!J53 -> 0 | M63: ='WK4 - PGI summary'!K53 -> 0 | N63: ='WK4 - PGI summary'!L53 -> 0 | O63: ='WK4 - PGI summary'!M53 -> 0
B64: ='WK4 - PGI summary'!C54 -> Total proposed SV | I64: ='WK4 - PGI summary'!G54 -> 1868837.441 | J64: ='WK4 - PGI summary'!H54 -> 493914.5815 | K64: ='WK4 - PGI summary'!I54 -> 506262.446 | L64: ='WK4 - PGI summary'!J54 -> 518919.0071 | M64: ='WK4 - PGI summary'!K54 -> 531891.9823 | N64: ='WK4 - PGI summary'!L54 -> 545189.2819 | O64: ='WK4 - PGI summary'!M54 -> 558819.0139
B66: ='WK4 - PGI summary'!C56 -> Notional General Income after SV applied | I66: ='WK4 - PGI summary'!G56 -> 19667289.26 | J66: ='WK4 - PGI summary'!H56 -> 20250497.84 | K66: ='WK4 - PGI summary'!I56 -> 20756760.29 | L66: ='WK4 - PGI summary'!J56 -> 21275679.29 | M66: ='WK4 - PGI summary'!K56 -> 21807571.28 | N66: ='WK4 - PGI summary'!L56 -> 22352760.56 | O66: ='WK4 - PGI summary'!M56 -> 22911579.57
B67: ='WK4 - PGI summary'!C57 -> plus | C67: ='WK4 - PGI summary'!D57 -> other 1st-year adjustments | I67: ='WK4 - PGI summary'!G57 -> 89294 | J67: ='WK4 - PGI summary'!H57 -> 0 | K67: ='WK4 - PGI summary'!I57 -> 0 | L67: ='WK4 - PGI summary'!J57 -> 0 | M67: ='WK4 - PGI summary'!K57 -> 0 | N67: ='WK4 - PGI summary'!L57 -> 0 | O67: ='WK4 - PGI summary'!M57 -> 0
B68: ='WK4 - PGI summary'!C58 -> PGI with proposed SV | H68: ='WK4 - PGI summary'!F58 -> 19266735.82 | I68: ='WK4 - PGI summary'!G58 -> 19756583.26 | J68: ='WK4 - PGI summary'!H58 -> 20250497.84 | K68: ='WK4 - PGI summary'!I58 -> 20756760.29 | L68: ='WK4 - PGI summary'!J58 -> 21275679.29 | M68: ='WK4 - PGI summary'!K58 -> 21807571.28 | N68: ='WK4 - PGI summary'!L58 -> 22352760.56 | O68: ='WK4 - PGI summary'!M58 -> 22911579.57 | S68: ='WK4 - PGI summary'!N58 -> 489847.4408 | T68: ='WK4 - PGI summary'!O58 -> 0.0254245164
B69: check = 0 | I69: =I55-I56+SUM(I59:I63)+I67-I68 -> 0 | J69: 0 | K69: 0 | L69: 0 | M69: 0 | N69: 0 | O69: 0 | S69: =INDEX(H68:O68,1,$D$9+1)-H68-S68 -> 0
B71: ='WK4 - PGI summary'!C61 -> PGI if only the rate peg applied
B72: ='WK4 - PGI summary'!C62 -> Prior year Notional General Income (NGI) | I72: ='WK4 - PGI summary'!G62 -> 19266735.82 | J72: ='WK4 - PGI summary'!H62 -> 18243714.85 | K72: ='WK4 - PGI summary'!I62 -> 18699807.73 | L72: ='WK4 - PGI summary'!J62 -> 19167302.92 | M72: ='WK4 - PGI summary'!K62 -> 19646485.49 | N72: ='WK4 - PGI summary'!L62 -> 20137647.63 | O72: ='WK4 - PGI summary'!M62 -> 20641088.82
B73: ='WK4 - PGI summary'!C63 -> less | C73: ='WK4 - PGI summary'!D63 -> expiry of a prior special variation | I73: ='WK4 - PGI summary'!G63 -> 1468284 | J73: ='WK4 - PGI summary'!H63 -> 0 | K73: ='WK4 - PGI summary'!I63 -> 0 | L73: ='WK4 - PGI summary'!J63 -> 0 | M73: ='WK4 - PGI summary'!K63 -> 0 | N73: ='WK4 - PGI summary'!L63 -> 0 | O73: ='WK4 - PGI summary'!M63 -> 0
B74: ='WK4 - PGI summary'!C64 -> Adjusted Notional General income | I74: ='WK4 - PGI summary'!G64 -> 17798451.82 | J74: ='WK4 - PGI summary'!H64 -> 18243714.85 | K74: ='WK4 - PGI summary'!I64 -> 18699807.73 | L74: ='WK4 - PGI summary'!J64 -> 19167302.92 | M74: ='WK4 - PGI summary'!K64 -> 19646485.49 | N74: ='WK4 - PGI summary'!L64 -> 20137647.63 | O74: ='WK4 - PGI summary'!M64 -> 20641088.82
B75: ='WK4 - PGI summary'!C65 -> plus | C75: ='WK4 - PGI summary'!D65 -> rate peg increase | I75: ='WK4 - PGI summary'!G65 -> 355969.0363 | J75: ='WK4 - PGI summary'!H65 -> 456092.8713 | K75: ='WK4 - PGI summary'!I65 -> 467495.1931 | L75: ='WK4 - PGI summary'!J65 -> 479182.573 | M75: ='WK4 - PGI summary'!K65 -> 491162.1373 | N75: ='WK4 - PGI summary'!L65 -> 503441.1907 | O75: ='WK4 - PGI summary'!M65 -> 516027.2205
B76: ='WK4 - PGI summary'!C66 -> plus | C76: ='WK4 - PGI summary'!D66 -> na | I76: ='WK4 - PGI summary'!G66 -> 0 | J76: ='WK4 - PGI summary'!H66 -> 0 | K76: ='WK4 - PGI summary'!I66 -> 0 | L76: ='WK4 - PGI summary'!J66 -> 0 | M76: ='WK4 - PGI summary'!K66 -> 0 | N76: ='WK4 - PGI summary'!L66 -> 0 | O76: ='WK4 - PGI summary'!M66 -> 0
B77: ='WK4 - PGI summary'!C67 -> plus | C77: ='WK4 - PGI summary'!D67 -> other 1st-year adjustments | I77: ='WK4 - PGI summary'!G67 -> 89294 | J77: ='WK4 - PGI summary'!H67 -> 0 | K77: ='WK4 - PGI summary'!I67 -> 0 | L77: ='WK4 - PGI summary'!J67 -> 0 | M77: ='WK4 - PGI summary'!K67 -> 0 | N77: ='WK4 - PGI summary'!L67 -> 0 | O77: ='WK4 - PGI summary'!M67 -> 0
B78: ='WK4 - PGI summary'!C68 -> PGI if only the rate peg applied | H78: ='WK4 - PGI summary'!F68 -> 19266735.82 | I78: ='WK4 - PGI summary'!G68 -> 18243714.85 | J78: ='WK4 - PGI summary'!H68 -> 18699807.73 | K78: ='WK4 - PGI summary'!I68 -> 19167302.92 | L78: ='WK4 - PGI summary'!J68 -> 19646485.49 | M78: ='WK4 - PGI summary'!K68 -> 20137647.63 | N78: ='WK4 - PGI summary'!L68 -> 20641088.82 | O78: ='WK4 - PGI summary'!M68 -> 21157116.04 | S78: ='WK4 - PGI summary'!N68 -> -1023020.964 | T78: ='WK4 - PGI summary'!O68 -> -0.05309778332
B79: check = 0 | I79: =I72-I73+SUM(I75:I77)-I78 -> 0 | J79: 0 | K79: 0 | L79: 0 | M79: 0 | N79: 0 | O79: 0 | S79: =INDEX(H78:O78,1,$D$9+1)-H78-S78 -> 0
B81: ='WK4 - PGI summary'!C71 -> PGI if expiring SV renewed and only rate peg applied
B82: ='WK4 - PGI summary'!C72 -> Prior year Notional General Income (NGI) | I82: ='WK4 - PGI summary'!G72 -> 19266735.82 | J82: ='WK4 - PGI summary'!H72 -> 19741364.53 | K82: ='WK4 - PGI summary'!I72 -> 20234898.65 | L82: ='WK4 - PGI summary'!J72 -> 20740771.11 | M82: ='WK4 - PGI summary'!K72 -> 21259290.39 | N82: ='WK4 - PGI summary'!L72 -> 21790772.65 | O82: ='WK4 - PGI summary'!M72 -> 22335541.97
B83: ='WK4 - PGI summary'!C73 -> plus | C83: ='WK4 - PGI summary'!D73 -> rate peg increase | I83: ='WK4 - PGI summary'!G73 -> 385334.7163 | J83: ='WK4 - PGI summary'!H73 -> 493534.1133 | K83: ='WK4 - PGI summary'!I73 -> 505872.4662 | L83: ='WK4 - PGI summary'!J73 -> 518519.2778 | M83: ='WK4 - PGI summary'!K73 -> 531482.2598 | N83: ='WK4 - PGI summary'!L73 -> 544769.3163 | O83: ='WK4 - PGI summary'!M73 -> 558388.5492
B84: ='WK4 - PGI summary'!C74 -> plus | C84: ='WK4 - PGI summary'!D74 -> na | I84: ='WK4 - PGI summary'!G74 -> 0 | J84: ='WK4 - PGI summary'!H74 -> 0 | K84: ='WK4 - PGI summary'!I74 -> 0 | L84: ='WK4 - PGI summary'!J74 -> 0 | M84: ='WK4 - PGI summary'!K74 -> 0 | N84: ='WK4 - PGI summary'!L74 -> 0 | O84: ='WK4 - PGI summary'!M74 -> 0
B85: ='WK4 - PGI summary'!C75 -> plus | C85: ='WK4 - PGI summary'!D75 -> other 1st-year adjustments | I85: ='WK4 - PGI summary'!G75 -> 89294 | J85: ='WK4 - PGI summary'!H75 -> 0 | K85: ='WK4 - PGI summary'!I75 -> 0 | L85: ='WK4 - PGI summary'!J75 -> 0 | M85: ='WK4 - PGI summary'!K75 -> 0 | N85: ='WK4 - PGI summary'!L75 -> 0 | O85: ='WK4 - PGI summary'!M75 -> 0
B86: ='WK4 - PGI summary'!C76 -> PGI if expiring SV renewed and only rate peg applied | H86: ='WK4 - PGI summary'!F76 -> 19266735.82 | I86: ='WK4 - PGI summary'!G76 -> 19741364.53 | J86: ='WK4 - PGI summary'!H76 -> 20234898.65 | K86: ='WK4 - PGI summary'!I76 -> 20740771.11 | L86: ='WK4 - PGI summary'!J76 -> 21259290.39 | M86: ='WK4 - PGI summary'!K76 -> 21790772.65 | N86: ='WK4 - PGI summary'!L76 -> 22335541.97 | O86: ='WK4 - PGI summary'!M76 -> 22893930.52 | S86: ='WK4 - PGI summary'!N76 -> 474628.7163 | T86: ='WK4 - PGI summary'!O76 -> 0.02463462004
B87: check = 0 | I87: =I82+SUM(I83:I85)-I86 -> 0 | J87: 0 | K87: 0 | L87: 0 | M87: 0 | N87: 0 | O87: 0 | S87: =INDEX(H86:O86,1,$D$9+1)-H86-S86 -> 0
B91: ='WK4 - PGI summary'!$E$5 -> WORKSHEET 4
B92: ='WK4 - PGI summary'!B81 -> INCREASES IN PERMISSABLE GENERAL INCOME (PGI) OVER PROPOSED SV PERIOD (nominal)
B93: =B$51 -> Year number | E93: =E$51 -> Hist yr 3 | F93: Hist yr 2 | G93: Hist yr 1 | H93: Year 0 | I93: Year 1 | J93: Year 2 | K93: Year 3 | L93: Year 4 | M93: Year 5 | N93: Year 6 | O93: Year 7 | P93: Year 8 | Q93: Year 9 | R93: Year 10 | S93: ='WK4 - PGI summary'!N83 -> Total | T93: ='WK4 - PGI summary'!O83 -> increase
B94: =B$52 -> Financial year | E94: =E$52 -> 2017-18 | F94: 2018-19 | G94: 2019-20 | H94: 2020-21 | I94: 2021-22 | J94: 2022-23 | K94: 2023-24 | L94: 2024-25 | M94: 2025-26 | N94: 2026-27 | O94: 2027-28 | P94: 2028-29 | Q94: 2029-30 | R94: 2030-31 | S94: ='WK4 - PGI summary'!N84 -> $ nominal | T94: ='WK4 - PGI summary'!O84 -> %
B96: ='WK4 - PGI summary'!C86 -> Annual % increase in PGI
B97: ='WK4 - PGI summary'!C87 -> PGI with proposed SV | D97: ='WK4 - PGI summary'!E87 -> % | I97: ='WK4 - PGI summary'!G87 -> 0.0254245164 | J97: ='WK4 - PGI summary'!H87 -> 0.025 | K97: ='WK4 - PGI summary'!I87 -> 0.025 | L97: ='WK4 - PGI summary'!J87 -> 0.025 | M97: ='WK4 - PGI summary'!K87 -> 0.025 | N97: ='WK4 - PGI summary'!L87 -> 0.025 | O97: ='WK4 - PGI summary'!M87 -> 0.025 | T97: ='WK4 - PGI summary'!O87 -> 0.0254245164
B98: ='WK4 - PGI summary'!C88 -> PGI if only the rate peg applied | D98: ='WK4 - PGI summary'!E88 -> % | I98: ='WK4 - PGI summary'!G88 -> -0.05309778332 | J98: ='WK4 - PGI summary'!H88 -> 0.025 | K98: ='WK4 - PGI summary'!I88 -> 0.025 | L98: ='WK4 - PGI summary'!J88 -> 0.025 | M98: ='WK4 - PGI summary'!K88 -> 0.025 | N98: ='WK4 - PGI summary'!L88 -> 0.025 | O98: ='WK4 - PGI summary'!M88 -> 0.025 | T98: ='WK4 - PGI summary'!O88 -> -0.05309778332
B99: ='WK4 - PGI summary'!C89 -> PGI if expiring SV renewed and only rate peg applied | D99: ='WK4 - PGI summary'!E89 -> % | I99: ='WK4 - PGI summary'!G89 -> 0.02463462004 | J99: ='WK4 - PGI summary'!H89 -> 0.025 | K99: ='WK4 - PGI summary'!I89 -> 0.025 | L99: ='WK4 - PGI summary'!J89 -> 0.025 | M99: ='WK4 - PGI summary'!K89 -> 0.025 | N99: ='WK4 - PGI summary'!L89 -> 0.025 | O99: ='WK4 - PGI summary'!M89 -> 0.025 | T99: ='WK4 - PGI summary'!O89 -> 0.02463462004
B101: ='WK4 - PGI summary'!C91 -> Annual $ increase in PGI
B102: ='WK4 - PGI summary'!C92 -> PGI with proposed SV | D102: ='WK4 - PGI summary'!E92 -> $ nominal | I102: ='WK4 - PGI summary'!G92 -> 489847.4408 | J102: ='WK4 - PGI summary'!H92 -> 493914.5815 | K102: ='WK4 - PGI summary'!I92 -> 506262.446 | L102: ='WK4 - PGI summary'!J92 -> 518919.0071 | M102: ='WK4 - PGI summary'!K92 -> 531891.9823 | N102: ='WK4 - PGI summary'!L92 -> 545189.2819 | O102: ='WK4 - PGI summary'!M92 -> 558819.0139 | S102: ='WK4 - PGI summary'!N92 -> 489847.4408 | T102: ='WK4 - PGI summary'!O92 -> 0.0254245164
B103: ='WK4 - PGI summary'!C93 -> PGI if only the rate peg applied | D103: ='WK4 - PGI summary'!E93 -> $ nominal | I103: ='WK4 - PGI summary'!G93 -> -1023020.964 | J103: ='WK4 - PGI summary'!H93 -> 456092.8713 | K103: ='WK4 - PGI summary'!I93 -> 467495.1931 | L103: ='WK4 - PGI summary'!J93 -> 479182.573 | M103: ='WK4 - PGI summary'!K93 -> 491162.1373 | N103: ='WK4 - PGI summary'!L93 -> 503441.1907 | O103: ='WK4 - PGI summary'!M93 -> 516027.2205 | S103: ='WK4 - PGI summary'!N93 -> -1023020.964 | T103: ='WK4 - PGI summary'!O93 -> -0.05309778332
B104: ='WK4 - PGI summary'!C94 -> PGI if expiring SV renewed and only rate peg applied | D104: ='WK4 - PGI summary'!E94 -> $ nominal | I104: ='WK4 - PGI summary'!G94 -> 474628.7163 | J104: ='WK4 - PGI summary'!H94 -> 493534.1133 | K104: ='WK4 - PGI summary'!I94 -> 505872.4662 | L104: ='WK4 - PGI summary'!J94 -> 518519.2778 | M104: ='WK4 - PGI summary'!K94 -> 531482.2598 | N104: ='WK4 - PGI summary'!L94 -> 544769.3163 | O104: ='WK4 - PGI summary'!M94 -> 558388.5492 | S104: ='WK4 - PGI summary'!N94 -> 474628.7163 | T104: ='WK4 - PGI summary'!O94 -> 0.02463462004
B106: ='WK4 - PGI summary'!C96 -> Annual $ increase in PGI with proposed SV more than:
B107: ='WK4 - PGI summary'!C97 -> PGI if only the rate peg applied | D107: ='WK4 - PGI summary'!E97 -> $ nominal | I107: ='WK4 - PGI summary'!G97 -> 1512868.404 | J107: ='WK4 - PGI summary'!H97 -> 37821.71011 | K107: ='WK4 - PGI summary'!I97 -> 38767.25286 | L107: ='WK4 - PGI summary'!J97 -> 39736.43419 | M107: ='WK4 - PGI summary'!K97 -> 40729.84504 | N107: ='WK4 - PGI summary'!L97 -> 41748.09117 | O107: ='WK4 - PGI summary'!M97 -> 42791.79345 | S107: ='WK4 - PGI summary'!N97 -> 1512868.404 | T107: ='WK4 - PGI summary'!O97 -> 0.07852229972
B108: ='WK4 - PGI summary'!C98 -> PGI if expiring SV renewed and only rate peg applied | D108: ='WK4 - PGI summary'!E98 -> $ nominal | I108: ='WK4 - PGI summary'!G98 -> 15218.72449 | J108: ='WK4 - PGI summary'!H98 -> 380.4681121 | K108: ='WK4 - PGI summary'!I98 -> 389.979815 | L108: ='WK4 - PGI summary'!J98 -> 399.7293103 | M108: ='WK4 - PGI summary'!K98 -> 409.7225431 | N108: ='WK4 - PGI summary'!L98 -> 419.9656067 | O108: ='WK4 - PGI summary'!M98 -> 430.4647468 | S108: ='WK4 - PGI summary'!N98 -> 15218.72449 | T108: ='WK4 - PGI summary'!O98 -> 0.0007898963597
B110: ='WK4 - PGI summary'!C100 -> Cumulative PGI
B111: ='WK4 - PGI summary'!C101 -> PGI with proposed SV | D111: ='WK4 - PGI summary'!E101 -> $ nominal | I111: ='WK4 - PGI summary'!G101 -> 19756583.26 | J111: ='WK4 - PGI summary'!H101 -> 40007081.1 | K111: ='WK4 - PGI summary'!I101 -> 60763841.38 | L111: ='WK4 - PGI summary'!J101 -> 82039520.68 | M111: ='WK4 - PGI summary'!K101 -> 103847092 | N111: ='WK4 - PGI summary'!L101 -> 126199852.5 | O111: ='WK4 - PGI summary'!M101 -> 149111432.1 | S111: ='WK4 - PGI summary'!N101 -> 19756583.26 | T111: ='WK4 - PGI summary'!O101 -> 0
B112: ='WK4 - PGI summary'!C102 -> PGI if only the rate peg applied | D112: ='WK4 - PGI summary'!E102 -> $ nominal | I112: ='WK4 - PGI summary'!G102 -> 18243714.85 | J112: ='WK4 - PGI summary'!H102 -> 36943522.58 | K112: ='WK4 - PGI summary'!I102 -> 56110825.5 | L112: ='WK4 - PGI summary'!J102 -> 75757310.99 | M112: ='WK4 - PGI summary'!K102 -> 95894958.62 | N112: ='WK4 - PGI summary'!L102 -> 116536047.4 | O112: ='WK4 - PGI summary'!M102 -> 137693163.5 | S112: ='WK4 - PGI summary'!N102 -> 18243714.85 | T112: ='WK4 - PGI summary'!O102 -> 0
B116: This table needs to be blank to match the shape of the export sheet. However it is not applicable for a merged council
B117: ='WK5a(1) - Impact on Rates'!$F$5 -> WORKSHEET 5a
B118: IMPACT ON AVERAGE RATES | D118: ='WK5a(1) - Impact on Rates'!H21 -> $ nominal per year
B119: =B$51 -> Year number | E119: =E$51 -> Hist yr 3 | F119: Hist yr 2 | G119: Hist yr 1 | H119: Year 0 | I119: Year 1 | J119: Year 2 | K119: Year 3 | L119: Year 4 | M119: Year 5 | N119: Year 6 | O119: Year 7 | P119: Year 8 | Q119: Year 9 | R119: Year 10
B120: =B$52 -> Financial year | E120: =E$52 -> 2017-18 | F120: 2018-19 | G120: 2019-20 | H120: 2020-21 | I120: 2021-22 | J120: 2022-23 | K120: 2023-24 | L120: 2024-25 | M120: 2025-26 | N120: 2026-27 | O120: 2027-28 | P120: 2028-29 | Q120: 2029-30 | R120: 2030-31
B122: ='WK5a(1) - Impact on Rates'!C21 -> Minimum Rates - with proposed special variation
B123: ='WK5a(1) - Impact on Rates'!C24 -> Residential | C123: na | H123: na | I123: na | J123: na | K123: na | L123: na | M123: na | N123: na | O123: na
B124: ='WK5a(1) - Impact on Rates'!C25 -> Residential | C124: na | H124: na | I124: na | J124: na | K124: na | L124: na | M124: na | N124: na | O124: na
B125: ='WK5a(1) - Impact on Rates'!C26 -> Residential | C125: na | H125: na | I125: na | J125: na | K125: na | L125: na | M125: na | N125: na | O125: na
B126: ='WK5a(1) - Impact on Rates'!C27 -> Residential | C126: na | H126: na | I126: na | J126: na | K126: na | L126: na | M126: na | N126: na | O126: na
B127: ='WK5a(1) - Impact on Rates'!C28 -> Residential | C127: na | H127: na | I127: na | J127: na | K127: na | L127: na | M127: na | N127: na | O127: na
B128: ='WK5a(1) - Impact on Rates'!C33 -> Business | C128: na | H128: na | I128: na | J128: na | K128: na | L128: na | M128: na | N128: na | O128: na
B129: ='WK5a(1) - Impact on Rates'!C34 -> Business | C129: na | H129: na | I129: na | J129: na | K129: na | L129: na | M129: na | N129: na | O129: na
B130: ='WK5a(1) - Impact on Rates'!C35 -> Business | C130: na | H130: na | I130: na | J130: na | K130: na | L130: na | M130: na | N130: na | O130: na
B131: ='WK5a(1) - Impact on Rates'!C36 -> Business | C131: na | H131: na | I131: na | J131: na | K131: na | L131: na | M131: na | N131: na | O131: na
B132: ='WK5a(1) - Impact on Rates'!C37 -> Business | C132: na | H132: na | I132: na | J132: na | K132: na | L132: na | M132: na | N132: na | O132: na
B133: ='WK5a(1) - Impact on Rates'!C38 -> Business | C133: na | H133: na | I133: na | J133: na | K133: na | L133: na | M133: na | N133: na | O133: na
B134: ='WK5a(1) - Impact on Rates'!C39 -> Business | C134: na | H134: na | I134: na | J134: na | K134: na | L134: na | M134: na | N134: na | O134: na
B135: ='WK5a(1) - Impact on Rates'!C40 -> Business | C135: na | H135: na | I135: na | J135: na | K135: na | L135: na | M135: na | N135: na | O135: na
B136: ='WK5a(1) - Impact on Rates'!C41 -> Business | C136: na | H136: na | I136: na | J136: na | K136: na | L136: na | M136: na | N136: na | O136: na
B137: ='WK5a(1) - Impact on Rates'!C42 -> Business | C137: na | H137: na | I137: na | J137: na | K137: na | L137: na | M137: na | N137: na | O137: na
B138: ='WK5a(1) - Impact on Rates'!C43 -> Business | C138: na | H138: na | I138: na | J138: na | K138: na | L138: na | M138: na | N138: na | O138: na
B139: ='WK5a(1) - Impact on Rates'!C44 -> Business | C139: na | H139: na | I139: na | J139: na | K139: na | L139: na | M139: na | N139: na | O139: na
B140: ='WK5a(1) - Impact on Rates'!C45 -> Business | C140: na | H140: na | I140: na | J140: na | K140: na | L140: na | M140: na | N140: na | O140: na
B141: ='WK5a(1) - Impact on Rates'!C46 -> Business | C141: na | H141: na | I141: na | J141: na | K141: na | L141: na | M141: na | N141: na | O141: na
B142: ='WK5a(1) - Impact on Rates'!C51 -> Farmland | C142: na | H142: na | I142: na | J142: na | K142: na | L142: na | M142: na | N142: na | O142: na
B143: ='WK5a(1) - Impact on Rates'!C52 -> Farmland | C143: na | H143: na | I143: na | J143: na | K143: na | L143: na | M143: na | N143: na | O143: na
B144: ='WK5a(1) - Impact on Rates'!C53 -> Farmland | C144: na | H144: na | I144: na | J144: na | K144: na | L144: na | M144: na | N144: na | O144: na
B145: ='WK5a(1) - Impact on Rates'!C54 -> Farmland | C145: na | H145: na | I145: na | J145: na | K145: na | L145: na | M145: na | N145: na | O145: na
B146: ='WK5a(1) - Impact on Rates'!C55 -> Farmland | C146: na | H146: na | I146: na | J146: na | K146: na | L146: na | M146: na | N146: na | O146: na
B147: ='WK5a(1) - Impact on Rates'!C60 -> Mining | C147: na | H147: na | I147: na | J147: na | K147: na | L147: na | M147: na | N147: na | O147: na
B148: ='WK5a(1) - Impact on Rates'!C61 -> Mining | C148: na | H148: na | I148: na | J148: na | K148: na | L148: na | M148: na | N148: na | O148: na
B149: ='WK5a(1) - Impact on Rates'!C62 -> Mining | C149: na | H149: na | I149: na | J149: na | K149: na | L149: na | M149: na | N149: na | O149: na
B150: ='WK5a(1) - Impact on Rates'!C63 -> Mining | C150: na | H150: na | I150: na | J150: na | K150: na | L150: na | M150: na | N150: na | O150: na
B151: ='WK5a(1) - Impact on Rates'!C67 -> Mining | C151: na | H151: na | I151: na | J151: na | K151: na | L151: na | M151: na | N151: na | O151: na
B152: ='WK5a(1) - Impact on Rates'!C68 -> 0 | C152: na | H152: na | I152: na | J152: na | K152: na | L152: na | M152: na | N152: na | O152: na
C153: na | H153: na | I153: na | J153: na | K153: na | L153: na | M153: na | N153: na | O153: na
B154: ='WK5a(1) - Impact on Rates'!C72 -> Average Ordinary and Special Rates - with proposed special variation | C154: na | H154: na | I154: na | J154: na | K154: na | L154: na | M154: na | N154: na | O154: na
B155: ='WK5a(1) - Impact on Rates'!C75 -> Residential | C155: na | H155: na | I155: na | J155: na | K155: na | L155: na | M155: na | N155: na | O155: na
B156: ='WK5a(1) - Impact on Rates'!C76 -> Residential | C156: na | H156: na | I156: na | J156: na | K156: na | L156: na | M156: na | N156: na | O156: na
B157: ='WK5a(1) - Impact on Rates'!C77 -> Residential | C157: na | H157: na | I157: na | J157: na | K157: na | L157: na | M157: na | N157: na | O157: na
B158: ='WK5a(1) - Impact on Rates'!C78 -> Residential | C158: na | H158: na | I158: na | J158: na | K158: na | L158: na | M158: na | N158: na | O158: na
B159: ='WK5a(1) - Impact on Rates'!C79 -> Residential | C159: na | H159: na | I159: na | J159: na | K159: na | L159: na | M159: na | N159: na | O159: na
B160: ='WK5a(1) - Impact on Rates'!C80 -> Residential | C160: na | H160: na | I160: na | J160: na | K160: na | L160: na | M160: na | N160: na | O160: na
B161: ='WK5a(1) - Impact on Rates'!C81 -> Residential | C161: na | H161: na | I161: na | J161: na | K161: na | L161: na | M161: na | N161: na | O161: na
B162: ='WK5a(1) - Impact on Rates'!C82 -> Residential | C162: na | H162: na | I162: na | J162: na | K162: na | L162: na | M162: na | N162: na | O162: na
C163: na | H163: na | I163: na | J163: na | K163: na | L163: na | M163: na | N163: na | O163: na
C164: na | H164: na | I164: na | J164: na | K164: na | L164: na | M164: na | N164: na | O164: na
C165: na | H165: na | I165: na | J165: na | K165: na | L165: na | M165: na | N165: na | O165: na
C166: na | H166: na | I166: na | J166: na | K166: na | L166: na | M166: na | N166: na | O166: na
C167: na | H167: na | I167: na | J167: na | K167: na | L167: na | M167: na | N167: na | O167: na
C168: na | H168: na | I168: na | J168: na | K168: na | L168: na | M168: na | N168: na | O168: na
C169: na | H169: na | I169: na | J169: na | K169: na | L169: na | M169: na | N169: na | O169: na
C170: na | H170: na | I170: na | J170: na | K170: na | L170: na | M170: na | N170: na | O170: na
C171: na | H171: na | I171: na | J171: na | K171: na | L171: na | M171: na | N171: na | O171: na
C172: na | H172: na | I172: na | J172: na | K172: na | L172: na | M172: na | N172: na | O172: na
C173: na | H173: na | I173: na | J173: na | K173: na | L173: na | M173: na | N173: na | O173: na
C174: na | H174: na | I174: na | J174: na | K174: na | L174: na | M174: na | N174: na | O174: na
B175: ='WK5a(1) - Impact on Rates'!C83 -> Special rate | C175: na | H175: na | I175: na | J175: na | K175: na | L175: na | M175: na | N175: na | O175: na
B176: ='WK5a(1) - Impact on Rates'!C84 -> Special rate | C176: na | H176: na | I176: na | J176: na | K176: na | L176: na | M176: na | N176: na | O176: na
B177: ='WK5a(1) - Impact on Rates'!C85 -> Special rate | C177: na | H177: na | I177: na | J177: na | K177: na | L177: na | M177: na | N177: na | O177: na
B178: ='WK5a(1) - Impact on Rates'!C86 -> Special rate | C178: na | H178: na | I178: na | J178: na | K178: na | L178: na | M178: na | N178: na | O178: na
B179: ='WK5a(1) - Impact on Rates'!C87 -> Special rate | C179: na | H179: na | I179: na | J179: na | K179: na | L179: na | M179: na | N179: na | O179: na
B180: ='WK5a(1) - Impact on Rates'!C88 -> Special rate | C180: na | H180: na | I180: na | J180: na | K180: na | L180: na | M180: na | N180: na | O180: na
B181: ='WK5a(1) - Impact on Rates'!C89 -> Special rate | C181: na | H181: na | I181: na | J181: na | K181: na | L181: na | M181: na | N181: na | O181: na
B182: ='WK5a(1) - Impact on Rates'!C90 -> Special rate | C182: na | H182: na | I182: na | J182: na | K182: na | L182: na | M182: na | N182: na | O182: na
B183: ='WK5a(1) - Impact on Rates'!C91 -> Special rate | C183: na | H183: na | I183: na | J183: na | K183: na | L183: na | M183: na | N183: na | O183: na
B184: ='WK5a(1) - Impact on Rates'!C92 -> Special rate | C184: na | H184: na | I184: na | J184: na | K184: na | L184: na | M184: na | N184: na | O184: na
B185: =B155 -> Residential | C185: na | H185: na | I185: na | J185: na | K185: na | L185: na | M185: na | N185: na | O185: na
B186: ='WK5a(1) - Impact on Rates'!C94 -> Business | C186: na | H186: na | I186: na | J186: na | K186: na | L186: na | M186: na | N186: na | O186: na
B187: ='WK5a(1) - Impact on Rates'!C95 -> Business | C187: na | H187: na | I187: na | J187: na | K187: na | L187: na | M187: na | N187: na | O187: na
B188: ='WK5a(1) - Impact on Rates'!C96 -> Business | C188: na | H188: na | I188: na | J188: na | K188: na | L188: na | M188: na | N188: na | O188: na
B189: ='WK5a(1) - Impact on Rates'!C97 -> Business | C189: na | H189: na | I189: na | J189: na | K189: na | L189: na | M189: na | N189: na | O189: na
B190: ='WK5a(1) - Impact on Rates'!C98 -> Business | C190: na | H190: na | I190: na | J190: na | K190: na | L190: na | M190: na | N190: na | O190: na
B191: ='WK5a(1) - Impact on Rates'!C99 -> Business | C191: na | H191: na | I191: na | J191: na | K191: na | L191: na | M191: na | N191: na | O191: na
B192: ='WK5a(1) - Impact on Rates'!C100 -> Business | C192: na | H192: na | I192: na | J192: na | K192: na | L192: na | M192: na | N192: na | O192: na
B193: ='WK5a(1) - Impact on Rates'!C101 -> Business | C193: na | H193: na | I193: na | J193: na | K193: na | L193: na | M193: na | N193: na | O193: na
B194: ='WK5a(1) - Impact on Rates'!C102 -> Business | C194: na | H194: na | I194: na | J194: na | K194: na | L194: na | M194: na | N194: na | O194: na
B195: ='WK5a(1) - Impact on Rates'!C103 -> Business | C195: na | H195: na | I195: na | J195: na | K195: na | L195: na | M195: na | N195: na | O195: na
B196: ='WK5a(1) - Impact on Rates'!C104 -> Business | C196: na | H196: na | I196: na | J196: na | K196: na | L196: na | M196: na | N196: na | O196: na
B197: ='WK5a(1) - Impact on Rates'!C105 -> Business | C197: na | H197: na | I197: na | J197: na | K197: na | L197: na | M197: na | N197: na | O197: na
B198: ='WK5a(1) - Impact on Rates'!C106 -> Business | C198: na | H198: na | I198: na | J198: na | K198: na | L198: na | M198: na | N198: na | O198: na
B199: ='WK5a(1) - Impact on Rates'!C107 -> Business | C199: na | H199: na | I199: na | J199: na | K199: na | L199: na | M199: na | N199: na | O199: na
B200: ='WK5a(1) - Impact on Rates'!C108 -> Business | C200: na | H200: na | I200: na | J200: na | K200: na | L200: na | M200: na | N200: na | O200: na
B201: ='WK5a(1) - Impact on Rates'!C109 -> Business | C201: na | H201: na | I201: na | J201: na | K201: na | L201: na | M201: na | N201: na | O201: na
B202: ='WK5a(1) - Impact on Rates'!C110 -> Business | C202: na | H202: na | I202: na | J202: na | K202: na | L202: na | M202: na | N202: na | O202: na
C203: na | H203: na | I203: na | J203: na | K203: na | L203: na | M203: na | N203: na | O203: na
C204: na | H204: na | I204: na | J204: na | K204: na | L204: na | M204: na | N204: na | O204: na
C205: na | H205: na | I205: na | J205: na | K205: na | L205: na | M205: na | N205: na | O205: na
C206: na | H206: na | I206: na | J206: na | K206: na | L206: na | M206: na | N206: na | O206: na
C207: na | H207: na | I207: na | J207: na | K207: na | L207: na | M207: na | N207: na | O207: na
C208: na | H208: na | I208: na | J208: na | K208: na | L208: na | M208: na | N208: na | O208: na
C209: na | H209: na | I209: na | J209: na | K209: na | L209: na | M209: na | N209: na | O209: na
C210: na | H210: na | I210: na | J210: na | K210: na | L210: na | M210: na | N210: na | O210: na
B211: ='WK5a(1) - Impact on Rates'!C111 -> Special rate | C211: na | H211: na | I211: na | J211: na | K211: na | L211: na | M211: na | N211: na | O211: na
B212: ='WK5a(1) - Impact on Rates'!C112 -> Special rate | C212: na | H212: na | I212: na | J212: na | K212: na | L212: na | M212: na | N212: na | O212: na
B213: ='WK5a(1) - Impact on Rates'!C113 -> Special rate | C213: na | H213: na | I213: na | J213: na | K213: na | L213: na | M213: na | N213: na | O213: na
B214: ='WK5a(1) - Impact on Rates'!C114 -> Special rate | C214: na | H214: na | I214: na | J214: na | K214: na | L214: na | M214: na | N214: na | O214: na
B215: ='WK5a(1) - Impact on Rates'!C115 -> Special rate | C215: na | H215: na | I215: na | J215: na | K215: na | L215: na | M215: na | N215: na | O215: na
B216: ='WK5a(1) - Impact on Rates'!C116 -> Special rate | C216: na | H216: na | I216: na | J216: na | K216: na | L216: na | M216: na | N216: na | O216: na
B217: ='WK5a(1) - Impact on Rates'!C117 -> Special rate | C217: na | H217: na | I217: na | J217: na | K217: na | L217: na | M217: na | N217: na | O217: na
B218: ='WK5a(1) - Impact on Rates'!C118 -> Special rate | C218: na | H218: na | I218: na | J218: na | K218: na | L218: na | M218: na | N218: na | O218: na
B219: ='WK5a(1) - Impact on Rates'!C119 -> Special rate | C219: na | H219: na | I219: na | J219: na | K219: na | L219: na | M219: na | N219: na | O219: na
B220: ='WK5a(1) - Impact on Rates'!C120 -> Special rate | C220: na | H220: na | I220: na | J220: na | K220: na | L220: na | M220: na | N220: na | O220: na
B221: ='WK5a(1) - Impact on Rates'!C121 -> Special rate | C221: na | H221: na | I221: na | J221: na | K221: na | L221: na | M221: na | N221: na | O221: na
B222: ='WK5a(1) - Impact on Rates'!C122 -> Special rate | C222: na | H222: na | I222: na | J222: na | K222: na | L222: na | M222: na | N222: na | O222: na
B223: ='WK5a(1) - Impact on Rates'!C123 -> Special rate | C223: na | H223: na | I223: na | J223: na | K223: na | L223: na | M223: na | N223: na | O223: na
B224: ='WK5a(1) - Impact on Rates'!C124 -> Special rate | C224: na | H224: na | I224: na | J224: na | K224: na | L224: na | M224: na | N224: na | O224: na
B225: ='WK5a(1) - Impact on Rates'!C125 -> Special rate | C225: na | H225: na | I225: na | J225: na | K225: na | L225: na | M225: na | N225: na | O225: na
B226: ='WK5a(1) - Impact on Rates'!C126 -> Special rate | C226: na | H226: na | I226: na | J226: na | K226: na | L226: na | M226: na | N226: na | O226: na
B227: ='WK5a(1) - Impact on Rates'!C127 -> Special rate | C227: na | H227: na | I227: na | J227: na | K227: na | L227: na | M227: na | N227: na | O227: na
B228: ='WK5a(1) - Impact on Rates'!C128 -> Special rate | C228: na | H228: na | I228: na | J228: na | K228: na | L228: na | M228: na | N228: na | O228: na
B229: ='WK5a(1) - Impact on Rates'!C129 -> Special rate | C229: na | H229: na | I229: na | J229: na | K229: na | L229: na | M229: na | N229: na | O229: na
... 1050 more rows

Sheet WK0 - Input data (hidden)
A1: Hide sheet before publishing
B2: This worksheet is for IPART Analyst use only.
B5: Instructions:
B6: ="1. Enter the required information in the blue input cells in Section "&B23 -> 1. Enter the required information in the blue input cells in Section 1. Inputs
B7: ="2. Check the list of council names and update if necessary in Section "&B67 -> 2. Check the list of council names and update if necessary in Section 2. Council Name
B10: Contents | J10: row
B11: =B23 -> 1. Inputs | J11: =ROW(B23) -> 23
B12: =B26 -> Table 1 - Analyst and TSO details | J12: =ROW(B26) -> 26
B13: =B42 -> Table 2 - SV year and rate peg | J13: =ROW(B42) -> 42
B14: =B52 -> Table 3 - SV year, rate peg and units in display format | J14: =ROW(B52) -> 52
B15: =B67 -> 2. Council Name | J15: =ROW(B67) -> 67
B16: =B225 -> 3. Lists for expiring special variations and other questions | J16: =ROW(B225) -> 225
B17: =B227 -> 2. Is the council applying for a one-year increase (s508(2)) or a multi-year increase (s508A)? | J17: =ROW(B227) -> 227
B18: =B231 -> 3. For s508A applications: for how many years is the council requesting % increases as part of this application? | J18: =ROW(B231) -> 231
B19: =B242 -> 4. For s508A & s508(2) applications: is the special variation permanent or temporary? | J19: =ROW(B242) -> 242
B20: =B251 -> 6. Does the council have an expiring variation? If yes, please specify when. | J20: =ROW(B251) -> 251
B23: 1. Inputs | C23: Enter the required information in the blue input cells
B26: Table 1 - Analyst and TSO details
B28: Who is the Analyst in charge?
B29: First Name | D29: Sheridan
B30: Last Name | D30: Rapmund
B31: Email | D31: sheridan_rapmund@ipart.nsw.gov.au
B32: Phone | D32: (02) 9290 8430
B34: Who is the TSO supporting the Analyst?
B35: First Name | D35: Arsh
B36: Last Name | D36: Suri
B37: Email | D37: arsh_suri@ipart.nsw.gov.au
B38: Phone | D38: (02) 9113 7730
B42: Table 2 - SV year and rate peg
B44: SV for period commencing 1 July | C44: year | D44: 2021
B45: Financial year | D45: =D44&"-"&RIGHT(D44+1,2) -> 2021-22
B46: Rate pegs
B47: Rate peg for Year 1 | C47: % | D47: 0.02
B48: Rate peg for Year 2 - 7 | C48: % | D48: 0.025
B52: Table 3 - SV year, rate peg and units in display format
B53: Years
B54: Year number | C54: -3 | D54: -2 | E54: -1 | F54: 0 | G54: =F54+1 -> 1 | H54: 2 | I54: 3 | J54: 4 | K54: 5 | L54: 6 | M54: 7 | N54: 8 | O54: 9 | P54: 10
B55: Year name | C55: Hist yr 3 | D55: Hist yr 2 | E55: Hist yr 1 | F55: ="Year "&F54 -> Year 0 | G55: ="Year "&G54 -> Year 1 | H55: Year 2 | I55: Year 3 | J55: Year 4 | K55: Year 5 | L55: Year 6 | M55: Year 7 | N55: Year 8 | O55: Year 9 | P55: Year 10
B57: Year commencing 1 July | C57: =D57-1 -> 2017 | D57: =E57-1 -> 2018 | E57: =F57-1 -> 2019 | F57: =D44-1 -> 2020 | G57: =D44 -> 2021 | H57: =G57+1 -> 2022 | I57: 2023 | J57: 2024 | K57: 2025 | L57: 2026 | M57: 2027 | N57: 2028 | O57: 2029 | P57: 2030
B58: Financial year | C58: =C57&"-"&RIGHT(C57+1,2) -> 2017-18 | D58: =D57&"-"&RIGHT(D57+1,2) -> 2018-19 | E58: 2019-20 | F58: 2020-21 | G58: 2021-22 | H58: 2022-23 | I58: 2023-24 | J58: 2024-25 | K58: 2025-26 | L58: 2026-27 | M58: 2027-28 | N58: 2028-29 | O58: 2029-30 | P58: 2030-31
B60: Rate peg | G60: =$D$47 -> 0.02 | H60: =$D$48 -> 0.025 | I60: 0.025 | J60: 0.025 | K60: 0.025 | L60: 0.025 | M60: 0.025 | N60: 0.025 | O60: 0.025 | P60: 0.025
B62: Units for labels | C62: $ nominal
C63: =C62&" per year" -> $ nominal per year
B67: 2. Council Name | C67: Check and update the list as necessary | J67: 2b. Merged councils
B68: 1 | C68: Albury City Council | J68: Council name | N68: Previous council areas
B69: =B68+1 -> 2 | C69: Armidale Regional Council | N69: area1 | O69: area2 | P69: area3 | Q69: area4 | R69: area5
B70: 3 | C70: Ballina Shire Council | J70: Armidale Regional Council | N70: Armidale | O70: Dumaresq | P70: Guyra | Q70: . | R70: .
B71: 4 | C71: Balranald Shire Council | J71: Bayside Council | N71: Botany Bay | O71: Rockdale | P71: . | Q71: . | R71: .
B72: 5 | C72: Bathurst Regional Council | J72: Canterbury-Bankstown Council | N72: Bankstown | O72: Canterbury | P72: . | Q72: . | R72: .
B73: 6 | C73: Bayside Council | J73: Central Coast Council | N73: Gosford | O73: Wyong | P73: . | Q73: . | R73: .
B74: 7 | C74: Bega Valley Shire Council | J74: City of Parramatta Council | N74: Parramatta | O74: Auburn | P74: Holroyd | Q74: Hornsby | R74: The Hills
B75: 8 | C75: Bellingen Shire Council | J75: Cootamundra-Gundagai Council | N75: Cootamundra | O75: Gundagai | P75: . | Q75: . | R75: .
B76: 9 | C76: Berrigan Shire Council | J76: Cumberland Council | N76: Auburn | O76: Holroyd | P76: . | Q76: . | R76: .
B77: 10 | C77: Blacktown City Council | J77: Dubbo Regional Council | N77: Dubbo | O77: Wellington | P77: . | Q77: . | R77: .
B78: 11 | C78: Bland Shire Council | J78: Edward River Council | N78: Conargo | O78: Deniliquin | P78: . | Q78: . | R78: .
B79: 12 | C79: Blayney Shire Council | J79: Federation Council | N79: Corowa | O79: Urana | P79: . | Q79: . | R79: .
B80: 13 | C80: Blue Mountains City Council | J80: Georges River Council | N80: Hurstville | O80: Kogarah | P80: . | Q80: . | R80: .
B81: 14 | C81: Bogan Shire Council | J81: Hilltops Council | N81: Boorowa | O81: Harden | P81: Young | Q81: . | R81: .
B82: 15 | C82: Bourke Shire Council | J82: Inner West Council | N82: Ashfield | O82: Leichardt | P82: Marrickville | Q82: . | R82: .
B83: 16 | C83: Brewarrina Shire Council | J83: MidCoast Council | N83: Gloucester | O83: Great Lakes | P83: Greater Taree | Q83: . | R83: .
B84: 17 | C84: Broken Hill City Council | J84: Murray River Council | N84: Murray | O84: Wakool | P84: . | Q84: . | R84: .
B85: 18 | C85: Burwood Council | J85: Murrumbidgee Shire Council | N85: Jerilderie | O85: Murrumbidgee | P85: . | Q85: . | R85: .
B86: 19 | C86: Byron Shire Council | J86: Northern Beaches Council | N86: Manly | O86: Pittwater | P86: Warringah | Q86: . | R86: .
B87: 20 | C87: Cabonne Council | J87: Queanbeyan-Palerang Regional Council | N87: Palerang | O87: Queanbeyan | P87: . | Q87: . | R87: .
B88: 21 | C88: Camden Council | J88: Snowy Monaro Regional Council | N88: Bombala | O88: Cooma-Monaro | P88: Snowy River | Q88: . | R88: .
B89: 22 | C89: Campbelltown City Council | J89: Snowy Valleys Council | N89: Tumut | O89: Tumbarumba | P89: . | Q89: . | R89: .
B90: 23 | C90: Canterbury-Bankstown Council
B91: 24 | C91: Carrathool Shire Council
B92: 25 | C92: Central Coast Council
B93: 26 | C93: Central Darling Shire Council
B94: 27 | C94: Cessnock City Council
B95: 28 | C95: City of Canada Bay Council
B96: 29 | C96: City of Parramatta Council
B97: 30 | C97: City of Ryde Council
B98: 31 | C98: City of Sydney Council
B99: 32 | C99: Clarence Valley Council
B100: 33 | C100: Cobar Shire Council
B101: =B100+1 -> 34 | C101: Coffs Harbour City Council
B102: 35 | C102: Coolamon Shire Council
B103: 36 | C103: Coonamble Shire Council
B104: 37 | C104: Cootamundra-Gundagai Council
B105: 38 | C105: Corowa Shire Council
B106: 39 | C106: Cumberland Council
B107: 40 | C107: Dubbo Regional Council
B108: 41 | C108: Dungog Shire Council
B109: 42 | C109: Edward River Council
B110: 43 | C110: Eurobodalla Shire Council
B111: 44 | C111: Fairfield City Council
B112: 45 | C112: Federation Council
B113: 46 | C113: Forbes Shire Council
B114: 47 | C114: Georges River Council
B115: 48 | C115: Gilgandra Shire Council
B116: 49 | C116: Glen Innes Severn Shire Council
B117: 50 | C117: Goulburn Mulwaree Council
B118: 51 | C118: Greater Hume Shire Council
B119: 52 | C119: Griffith City Council
B120: 53 | C120: Gunnedah Shire Council
B121: 54 | C121: Gwydir Shire Council
B122: 55 | C122: Hawkesbury City Council
B123: 56 | C123: Hay Shire Council
B124: 57 | C124: Hills Shire Council, The
B125: 58 | C125: Hilltops Council
B126: 59 | C126: Hornsby, The Council of the Shire of
B127: 60 | C127: Hunters Hill, The Council of the Municipality of
B128: 61 | C128: Inner West Council
B129: 62 | C129: Inverell Shire Council
B130: 63 | C130: Junee Shire Council
B131: 64 | C131: Kempsey Shire Council
B132: 65 | C132: Kiama, The Council of the Municipality of
B133: =B132+1 -> 66 | C133: Ku-ring-gai Municipal Council
B134: 67 | C134: Kyogle Council
B135: 68 | C135: Lachlan Shire Council
B136: 69 | C136: Lake Macquarie City Council
B137: 70 | C137: Lane Cove Council
B138: 71 | C138: Leeton Shire Council
B139: 72 | C139: Lismore City Council
B140: 73 | C140: Lithgow Council, City of
B141: 74 | C141: Liverpool City Council
B142: 75 | C142: Liverpool Plains Shire Council
B143: 76 | C143: Lockhart Shire Council
B144: 77 | C144: Maitland City Council
B145: 78 | C145: MidCoast Council
B146: 79 | C146: Mid-Western Regional Council
B147: 80 | C147: Moree Plains Shire Council
B148: 81 | C148: Mosman Municipal Council
B149: 82 | C149: Murray River Council
B150: 83 | C150: Murrumbidgee Shire Council
B151: 84 | C151: Muswellbrook Shire Council
B152: 85 | C152: Nambucca Shire Council
B153: 86 | C153: Narrabri Shire Council
B154: 87 | C154: Narrandera Shire Council
B155: 88 | C155: Narromine Shire Council
B156: 89 | C156: Newcastle City Council
B157: 90 | C157: Northern Beaches Council
B158: 91 | C158: North Sydney Council
B159: 92 | C159: Oberon Council
B160: 93 | C160: Orange City Council
B161: 94 | C161: Parkes Shire Council
B162: 95 | C162: Penrith City Council
B163: 96 | C163: Port Macquarie-Hastings Council
B164: 97 | C164: Port Stephens Council
B165: =B164+1 -> 98 | C165: Queanbeyan-Palerang Regional Council
B166: 99 | C166: Randwick City Council
B167: 100 | C167: Richmond Valley Council
B168: 101 | C168: Shellharbour City Council
B169: 102 | C169: Shoalhaven City Council
B170: 103 | C170: Singleton Shire Council
B171: 104 | C171: Snowy Monaro Regional Council
B172: 105 | C172: Snowy Valleys Council
B173: 106 | C173: Strathfield Municipal Council
B174: 107 | C174: Sutherland Shire Council
B175: 108 | C175: Tamworth Regional Council
B176: 109 | C176: Temora Shire Council
B177: 110 | C177: Tenterfield Shire Council
B178: 111 | C178: Tweed Shire Council
B179: 112 | C179: Upper Hunter Shire Council
B180: 113 | C180: Upper Lachlan Shire Council
B181: 114 | C181: Uralla Shire Council
B182: 115 | C182: Wagga Wagga City Council
B183: 116 | C183: Walcha Council
B184: 117 | C184: Walgett Shire Council
B185: 118 | C185: Warren Shire Council
B186: 119 | C186: Warrumbungle Shire Council
B187: 120 | C187: Waverley Council
B188: 121 | C188: Weddin Shire Council
B189: 122 | C189: Wentworth Shire Council
B190: 123 | C190: Willoughby City Council
B191: 124 | C191: Wingecarribee Shire Council
B192: 125 | C192: Wollondilly Shire Council
B193: 126 | C193: Wollongong City Council
B194: 127 | C194: Woollahra Municipal Council
B195: 128 | C195: Yass Valley Council
B196: 129
B197: =B196+1 -> 130
B198: 131
B199: 132
B200: 133
B201: 134
B202: 135
B203: 136
B204: 137
B205: 138
B206: 139
B207: 140
B208: 141
B209: 142
B210: 143
B211: 144
B212: 145
B213: 146
B214: 147
B215: 148
B216: 149
B217: 150
B218: 151
B219: 152
B220: 153
B221: 154
B222: 155 | F222: add rows above this one if you need more
B225: 3. Lists for expiring special variations and other questions
... 37 more rows

Sheet Instructions
H6: THE INDEPENDENT PRICING AND REGULATORY TRIBUNAL OF NSW
H8: APPLICATION FOR A SPECIAL VARIATION
H9: TO GENERAL INCOME
H10: under Section 508A and 508(2) of the Local Government Act 1993
H13: SECTION 508A & 508(2) APPLICATION FORM FOR MERGED COUNCILS
H14: ="PART A "&'WK0 - Input data'!$D$45 -> PART A 2021-22
H16: Before completing this form, you MUST read the Office of Local Government's
H17: Guidelines for the preparation of an application for a special variation to general income
H19: All dollars in nominal terms
D21: The Guidelines are available on the Office’s website at www.olg.nsw.gov.au.
D23: NOTE: | E23: This part of the application must be completed in conjunction with Part B
E24: ="(Special Variation Application Form "&'WK0 - Input data'!$D$45&"- Part B)." -> (Special Variation Application Form 2021-22- Part B).
H26: Overview
C29: A Section 508A special variation allows a council to increase general income by a percentage that is greater than the rate peg
C30: each year, up to a maximum of 7 years.
C32: Section 508(2) allows a council to increase general income by a percentage that is greater than the rate peg in a single year.
C34: You must identify the percentage increase requested for each year inclusive of the rate peg.
C36: You must also identify percentage increases in minimum rates for each year, if the increases result in a minimum rate
C37: which exceeds the statutory limit.
C39: Note: IPART can approve a percentage increase to minimum rates above the statutory limit that differs from the
C40: proposed special variation percentage increase as long as you have justified and properly consulted on that percentage.
C41: See Attachment 4 of the Guidelines for further details.
C43: Both Part A and Part B of the application should be submitted to IPART (us) via the Council Portal on our
C44: website at www.ipart.nsw.gov.au.
C46: Part A consists of 9 worksheets:
C47: ► | D47: Worksheet 1 (Identification): Identifies your council and a council contact officer, collects information
E48: about your proposed special variation and any existing special variations (SVs).
E49: It also collects information about Crown Land adjustments, catch-ups or excess adjustments
E50: and valuation objections.
C51: ► | D51: Worksheet 2 (current year Notional General Income): Calculates the council's Notional General Income
E52: ="for the current year (Year 0 in the application, "&'WK0 - Input data'!$F$58&"). " -> for the current year (Year 0 in the application, 2020-21).
C53: ► | D53: Worksheet 3 (first year Notional General Income): Calculates the council's proposed Notional General
E54: ="Income for next year (Year 1 in the application, "&'WK0 - Input data'!$G$58&")." -> Income for next year (Year 1 in the application, 2021-22).
C55: ► | D55: Worksheet 4 (PGI): Summarises the council's Permissible General Income based on the 1st year's percentage
E56: for the proposed SV and Crown Land adjustments, plus other income adjustments. It also shows the
E57: the council's PGI over the proposed SV period and the annual and cumulative impacts of the proposed SV.
C58: ► | D58: Worksheet 5a (Impact on Rates 1): Calculates the average annual and cumulative increases in rates
E59: for each category/sub-category for each year of the proposed SV, with and without the proposed SV.
E60: Worksheets 5a(1) to 5a(5) collect information separately for each of the previous council areas.
C61: ► | D61: Worksheet 5b (Impact on Rates 2): Collects the assessment numbers in the residential, business and farmland
E62: ordinary rate categories for different land values in year 1 and the rates across this
E63: distribution (ie, midpoints of each land value range) for each year of the proposed SV.
E64: Worksheets 5b(1) to 5b(5) collect information separately for each of the previous council areas.
C65: ► | D65: Worksheet 6 (Additional SV Income and Expenditure): Collects data on how the council intends to use the
E66: additional funds (above the rate peg) from the proposed SV.
C67: ► | D67: Worksheet 7 (Financials): Collects historical information from your financial statements and forecasts for
D68: selected balance sheet items from you long term financial plan (LTFP).
C69: ► | D69: Worksheet 8 (Long Term Financial Plan): Collects information on your Long Term Financial Plan
E70: including scenarios with and without the proposed special variation.
C71: ► | D71: Worksheet 9 (Financial ratios): Captures financial ratios, some of which are calculated while others
E72: are entered as inputs.
D75: Enquiries regarding the completion of this application should be directed to:
E77: ='WK0 - Input data'!$D$29&" "&'WK0 - Input data'!$D$30 -> Sheridan Rapmund | H77: ='WK0 - Input data'!D32 -> (02) 9290 8430
H78: ='WK0 - Input data'!D31 -> sheridan_rapmund@ipart.nsw.gov.au
E80: ='WK0 - Input data'!$D$35&" "&'WK0 - Input data'!$D$36&" (who in "&'WK0 - Input data'!D29&"'s absence, will direct you to the appropriate IPART officer)" -> Arsh Suri (who in Sheridan's absence, will direct you to the appropriate IPART officer)
H81: ='WK0 - Input data'!D38 -> (02) 9113 7730
H82: ='WK0 - Input data'!D37 -> arsh_suri@ipart.nsw.gov.au
C88: Colour code
C90: Enter data in the blue input cells
C91: Hard-coded values that should not be changed
C92: Key outputs
C93: Special instructions
C94: Error checks
C95: Double red line indicates a change in formula
I99: Step-by-step instructions on completing the worksheets
C103: Worksheet 1 - Identification
C105: > | D105: Select council name from the drop down list and enter contact details.
C106: > | D106: Indicate whether you have any existing SVs by selecting 'yes' or 'no' from the drop down box, where the existing SV
D107: means you have an existing increase(s) above the rate peg for any year from Year 1 onwards.
C108: =$C$105 -> > | D108: Select (or enter) the type and duration of the proposed special variation.
C109: =$C$105 -> > | D109: Enter the additional percentage being sought above the rate peg (excluding other adjustments).
C110: =$C$105 -> > | D110: Answer the questions about expiring SVs.
D111: * | E111: If the council does not have any SVs due to expire in the period of the proposed SV, leave the
E112: field blank or select 'na'.
D113: =$D$111 -> * | E113: ="Enter the $ value of expiring SVs in Table 1 (row "&ROW('WK1 - Identification'!C79)&")" -> Enter the $ value of expiring SVs in Table 1 (row 79)
D114: =$D$111 -> * | E114: Any amounts entered need to be verified by the OLG before the application is submitted to us.
C116: =$C$105 -> > | D116: Answer the questions about Crown land adjustments, catch ups and valuation objections.
D117: =$D$111 -> * | E117: If the council does not have any adjustments, leave the fields in this section blank
D118: =$D$111 -> * | E118: Note that applications for Crown land adjustments still need to be separately made to OLG.
C119: =$C$105 -> > | D119: Enter the requested percentage increases in general income (including the rate peg) from year 2 (Table 1).
D120: =$D$111 -> * | E120: The annual and cumulative increases in the white cells are automatically calculated once the requested
E121: percentage increases have been entered.
D122: =$D$111 -> * | E122: The worksheet automatically assumes a rate peg of 2.5% for each of the forward years (Year 2 and thereafter).
E123: If the rate peg turns out to be different from that assumed, the total % increase in general income with an
E124: approved SV does not change.
C126: ="Worksheet 2 - Notional General Income "&'WK0 - Input data'!$F$58 -> Worksheet 2 - Notional General Income 2020-21
C128: This worksheet calculates the Notional General Income for the current year (Year 0), by applying the
C129: rating structure used in the previous year to land values, adjusted by supplementary valuations
C130: received during that year.
C132: Any inclusion in WK2 as a “supplementary valuation” must agree with section 4 of the Valuation of Land Act 1916.
C134: ="Worksheet 3 - Notional General Income "&'WK0 - Input data'!$G$58 -> Worksheet 3 - Notional General Income 2021-22
C136: This worksheet calculates the proposed Notional General Income (Year 1). It should apply the proposed rating structure,
C137: including the proposed SV increase, to land values adjusted by any supplementary valuations.
C139: The rating structure entered here must be checked by OLG.
C141: Worksheet 4 - Calculation
C143: This worksheet calculates Permissible General Income and the value of the proposed SV after taking into
C144: account various adjustments. Income adjustments and expiring SV amounts are to be verified
C145: by OLG before the application is submitted to us. | M145: Example of PGI calculation for Year 1
C147: NO INPUTS ARE REQUIRED | K147: XYZ Council
M148: WORKSHEET 4
C149: Expiring SV
C150: ="If the council has a SV due to expire on 30 June "&'WK0 - Input data'!$G$57&", " -> If the council has a SV due to expire on 30 June 2021, | M150: PERMISSIBLE GENERAL INCOME SUMMARY FOR 2018-19
C151: Notional General Income must be reduced before | M151: All dollars in nominal terms
C152: ="calculating Permissable General Income in "&'WK0 - Input data'!$G$58&"." -> calculating Permissable General Income in 2021-22. | M152: Please check all income adjustments and expiring variation amounts with OLG
M153: before submitting the application.
C154: Additional percentage increase | K154: Prior year Notional General Income | Q154: 20000000
C155: This is the additional percentage increase being sought | K155: Less: | L155: Expiry of a prior special variation | Q155: 10000
C156: above the rate peg, excluding any other income
C157: adjustments. | K157: Adjusted first year Notional General Income | P157: $ | Q157: =Q154-Q155 -> 19990000
C159: Crown Land Adjustment | K159: Plus: | L159: Rate peg increase - first year | O159: 0.023 | Q159: =ROUND(Q157*O159,9) -> 459770
C160: Crown land claims will increase Permissible General | K160: Plus: | L160: Additional increase - first year | O160: 0.037 | Q160: =ROUND(Q157*O160,9) -> 739630
C161: Income. The $ amount of any Crown land adjustment is | K161: Plus: | L161: Crown Land adjustment - first year | O161: 0.000638253745 | Q161: 10000
C162: converted into a % amount to be included in the final
C163: special variation for consideration by IPART. | L163: Total special variation - first year | O163: =SUM(O159:O161) -> 0.06063825375 | P163: $ | Q163: =SUM(Q159:Q161) -> 1209400
C165: Other adjustments | K165: Other First Year Adjustments:
C166: There are two other possible adjustments that are not included | K166: Plus/Minus: | L166: Prior year Catch-up/(Excess) | Q166: -5000
C167: in the proposed SV % but will affect Permissible General Income: | K167: Minus: | L167: Valuation Objections claimed in prior year | Q167: -30
C168: 1. Prior year result. This is the catch up or excess amount
C169: from the previous year, as advised by OLG. | O169: Total Adjustments | Q169: =SUM(Q166:Q167) -> -5030
C170: 2. Valuation objections: if you successfully claimed valuation
C171: objections in the previous year, PGI must be reduced to | L171: First year Permissible General Income | P171: $ | Q171: =Q157+Q163+Q169 -> 21194370
C172: remove the extra income claimed from the revenue base.
C175: Worksheets 5a(1) to 5a(5) - Impact on Ratepayers (part 1)
C177: The aim of these sheets is to show the minimum rate increase (if applicable), the average rate increase per sub-category
C178: (inclusive of all relevant rates) and the proposed annual charges in each year of the proposed special variation.
C179: It also aims to compare average rates with and without the proposed special variation.
C180: Enter the required data in the blue input cells. The values in the white cells will calculated automatically.
C181: Note: There are separate sheets for each of council's prevoius council areas.
C182: Minimum rates
C183: Enter in the minimum rates per category/sub-category as if the SV were approved for each year as requested
C184: These figures are intended to illustrate the impact of the proposed SV on any specific minimum rate.
C186: Ordinary and Special Average Rates
C187: Enter in the average rates per sub-category as if the proposed SV were approved for each year as requested
C188: AND the average rates as if the proposed SV were not approved (only the rate peg would then apply).
C190: These figures should include the impact of changes in minimum rates and are calculated as per below.
C192: Annual Charges
C193: Enter any proposed annual charges for each year of the proposed variation.
C195: Note:
C196: * | D196: An average rate equals total income in a category or sub-category divided by the number
D197: of assessments in that same category or sub-category (i.e. including assessments on the minimum rate).
C198: =C196 -> * | D198: These figures should reflect the reduction from any expiring SVs so that the net change in rates is measured.
C200: Worksheets 5b(1) to 5b(5) - Impact on Ratepayers (part 2)
C202: These worksheets show the distribution of ordinary rates across different land values and how
C203: ratepayers will be affected by the proposed SV, depending on the value of their land.
C205: Enter the number of assessments in the ordinary rating categories (residential, business and farmland)
C206: ="across various land value ranges in "&'WK0 - Input data'!$F$58&", and the rate levels across different land values in each year" -> across various land value ranges in 2020-21, and the rate levels across different land values in each year
C207: of the application, with and without the proposed SV.
C208: Note: There are separate sheets for each of council's prevoius council areas.
C209: If you have had a general revaluation of land during the prior year this spreadsheet will not accurately
C210: reflect the impact on ratepayers in year 1. We will take this into account when using this worksheet.
C211: ="Please complete the tables using the number of assessments from the first year of the proposed SV ("&'WK0 - Input data'!$D$45&")." -> Please complete the tables using the number of assessments from the first year of the proposed SV (2021-22).
C213: Worksheet 6 - Proposed Additional SRV Income and Expenditure
C215: This worksheet is designed to show how the council proposes to use the additional funding
C216: above the rate peg generated from the proposed SV.
C218: The worksheet automatically calculates additional SRV income for Years 1 to 10.
C220: Councils must enter each category of expenditure, and if applicable, individual program/project names,
C221: in column C under one of the headings provided.
C223: The spreadsheet will calculate the difference between the additional income from the proposed special variation and what it is
C224: spent on. A positive difference means that the additional income is not all spent on operating expenditure or capital expenditure.
C226: * Part B of the application provides councils with the opportunity to explain their expenditure plans
C227: and the impacts on their financial position.
C229: Worksheet 7 - Historical financial information
C230: This sheet captures the council's historical financial information as reported in its financial statements.
C232: Worksheet 8 - Long Term Financial Plan
C234: This worksheet is designed to show how the council's Long Term Financial Plan varies
C235: with and without the proposed special variation
C236: Councils must complete the information from the Long Term Financial Plan for both the Special Variation Scenario
C237: and the Base Case Scenario (without proposed special variation).
C239: Councils must enter each category of income and expenditure under the headings provided
C240: This worksheet automatically calculates total amounts for each column
C242: Worksheet 9 - Financial ratios
C243: This worksheet captures financial ratios for three historical years as well as the current and forecast years (0 to 10).
C244: All the historical ratios and two of the forecast ratios are calculated from information provided in Worksheet 7 and Worksheet 8.
C245: Enter forecast values for the two compulsory ratios (Infrastructure Renewals Ratio and Infrastructure Backlog Ratio).
C246: Enter forecasts for the optional ratios only if they are relevant to your council's application.

Sheet WK1 - Identification
E3: APPLICATION FOR SPECIAL VARIATION TO GENERAL INCOME | M3: ='WK0 - Input data'!$D$45 -> 2021-22
F5: WORKSHEET 1
D7: Step 1: Fill out council details
D8: Step 2: Fill out any existing variation information
D9: Step 3: Fill out crown land adjustments, catch up & excess, valuation objections
D10: Step 4: Fill out proposed special variation amounts
C11: All dollars in nominal terms
C13: Council Name: | E13: Armidale Regional Council
C16: Former council areas: | E16: =IFERROR(INDEX('WK0 - Input data'!N$70:N$89,MATCH($E$13,'WK0 - Input data'!$J$70:$J$89,0)),".") -> Armidale
E17: =IFERROR(INDEX('WK0 - Input data'!O$70:O$89,MATCH($E$13,'WK0 - Input data'!$J$70:$J$89,0)),".") -> Dumaresq
E18: =IFERROR(INDEX('WK0 - Input data'!P$70:P$89,MATCH($E$13,'WK0 - Input data'!$J$70:$J$89,0)),".") -> Guyra
E19: =IFERROR(INDEX('WK0 - Input data'!Q$70:Q$89,MATCH($E$13,'WK0 - Input data'!$J$70:$J$89,0)),".") -> .
E20: =IFERROR(INDEX('WK0 - Input data'!R$70:R$89,MATCH($E$13,'WK0 - Input data'!$J$70:$J$89,0)),".") -> .
C22: Contact Details:
C23: Name: | E23: Kelly Stidworthy
C24: Position: | E24: Manager Financial Services
C25: Telephone:
C26: Email:
C29: A. Existing special variations (SVs) | S29: DO NOT DELETE
C30: ="1. Does the council have any existing SV(s) that means it has an increase above the rate peg for any year from "&G61&" ("&G60&") onwards?" -> 1. Does the council have any existing SV(s) that means it has an increase above the rate peg for any year from 2021-22 (Year 1) onwards? | K30: no | S30: =IF(K30='WK0 - Input data'!B248,1,2) -> 2
C32: B. Proposed special variations (SVs)
C34: 2. Is the council applying for a one-year increase (s508(2)) or a multi-year increase (s508A)? | J34: select option | K34: s508(2) | S34: =IF(K34="",0,MATCH(K34,'WK0 - Input data'!B228:B229,0)) -> 1
C35: 3. For s508A applications: for how many years is the council requesting % increases as part of this application? | J35: select option | K35: na | L35: =IF(AND(S34=1,S35>1),"Error, s508(2) is for one year",IF(AND(S34=2,S35=1),"Please select number of years","ok")) -> ok | S35: =IF(K35="",0,MATCH(K35,'WK0 - Input data'!E234:E240,0)) -> 1
C36: 4. For s508A & s508(2) applications: is the special variation permanent or temporary? | J36: select option | K36: Permanent
C37: If temporary or combined, enter the number of years before the (temporary part of the) special variation is due to expire. | J37: enter years | S37: =IF(S34+S35=0,0,IF(S34=1,1,S35)) -> 1
C38: =CHOOSE($S$30,"5. Enter the percentage above the existing full SV (ie, incl rate peg) the council is applying for in the first year ","5. Enter the percentage above the rate peg the council is applying for in the first year") -> 5. Enter the percentage above the rate peg the council is applying for in the first year | J38: enter % | K38: 0.085
C39: =IF($S$40=1," - percentage of the Combined SV that this temporary"," na - ignore this row") -> na - ignore this row | J39: =IF($K$36='WK0 - Input data'!$B$245,"enter %","na - ignore") -> na - ignore | S39: DO NOT DELETE
C40: =IF($S$40=1," - percentage of the Combined SV that this permanent"," na - ignore this row") -> na - ignore this row | J40: % | K40: =IF(K36='WK0 - Input data'!$B$245,K38-K39,0) -> 0 | S40: =IF(K36='WK0 - Input data'!$B$245,1,2) -> 2
C42: C. Expiring special variations (SVs)
C43: 6. Does the council have an expiring variation? If yes, please specify when. | I43: 1st Expiring SV | J43: select option | K43: Yes - 30 June 2021 expiry
I44: 2nd Expiring SV | J44: select option | K44: na
C46: ="7. If the council has an expiring variation, enter the $ amount expiring in row "&ROW(C78)&" below." -> 7. If the council has an expiring variation, enter the $ amount expiring in row 78 below.
C48: D. Crown Land adjustments, catch ups, valuation objections | K48: $ | L48: % Y 0 income
C49: 8. Enter the amount of any Crown Land adjustments required | J49: enter $ | L49: =IF('WK2 - Notional General Income'!$M$562-$F$79=0,0,K49/('WK2 - Notional General Income'!$M$562-$F$79)) -> 0
C50: 9. Enter the amount for any catch ups or excess adjustments required | J50: =J49 -> enter $ | K50: 89294 | L50: =IF('WK2 - Notional General Income'!$M$562-$F$79=0,0,K50/('WK2 - Notional General Income'!$M$562-$F$79)) -> 0.005016953211
C51: 10. Enter any valuation objections required (input as a positive whole number) | J51: =J50 -> enter $ | L51: =IF('WK2 - Notional General Income'!$M$562-$F$79=0,0,K51/('WK2 - Notional General Income'!$M$562-$F$79)) -> 0
C54: E. Requested annual percentage increases and expiring SV amounts
C55: A special variation is the total % increase permitted in a council's general income, Including the rate peg and Crown land adjustments, before adjustments are made for
C56: catch ups/excesses and valuation objections.
C57: Note: Approved SV% increases do not change if the actual rate peg turns out to be different from that assumed for a particular year.
C59: Table 1 | D59: Requested annual percentage increases and expiring SV amounts
F60: ='WK0 - Input data'!F$55 -> Year 0 | G60: ='WK0 - Input data'!G$55 -> Year 1 | H60: ='WK0 - Input data'!H$55 -> Year 2 | I60: ='WK0 - Input data'!I$55 -> Year 3 | J60: ='WK0 - Input data'!J$55 -> Year 4 | K60: ='WK0 - Input data'!K$55 -> Year 5 | L60: ='WK0 - Input data'!L$55 -> Year 6 | M60: ='WK0 - Input data'!M$55 -> Year 7
C61: ='WK0 - Input data'!B$58 -> Financial year | F61: ='WK0 - Input data'!F$58 -> 2020-21 | G61: ='WK0 - Input data'!G$58 -> 2021-22 | H61: ='WK0 - Input data'!H$58 -> 2022-23 | I61: ='WK0 - Input data'!I$58 -> 2023-24 | J61: ='WK0 - Input data'!J$58 -> 2024-25 | K61: ='WK0 - Input data'!K$58 -> 2025-26 | L61: ='WK0 - Input data'!L$58 -> 2026-27 | M61: ='WK0 - Input data'!M$58 -> 2027-28
C62: 1= included in SV period | F62: =IF(VALUE(RIGHT(F60,1))>$S$37,0,1) -> 1 | G62: 1 | H62: 0 | I62: 0 | J62: 0 | K62: 0 | L62: 0 | M62: 0
C63: 0 = beyond temporary SV period | F63: =IF($K$36='WK0 - Input data'!$B$243,1,IF($K$37<VALUE(RIGHT(F60,1)),0,1)) -> 1 | G63: =IF($K$36='WK0 - Input data'!$B$243,1,IF($K$37<VALUE(RIGHT(G60,1)),0,1)) -> 1 | H63: =IF($K$36='WK0 - Input data'!$B$243,1,IF($K$37<VALUE(RIGHT(H60,1)),0,1)) -> 1 | I63: =IF($K$36='WK0 - Input data'!$B$243,1,IF($K$37<VALUE(RIGHT(I60,1)),0,1)) -> 1 | J63: =IF($K$36='WK0 - Input data'!$B$243,1,IF($K$37<VALUE(RIGHT(J60,1)),0,1)) -> 1 | K63: =IF($K$36='WK0 - Input data'!$B$243,1,IF($K$37<VALUE(RIGHT(K60,1)),0,1)) -> 1 | L63: =IF($K$36='WK0 - Input data'!$B$243,1,IF($K$37<VALUE(RIGHT(L60,1)),0,1)) -> 1 | M63: =IF($K$36='WK0 - Input data'!$B$243,1,IF($K$37<VALUE(RIGHT(M60,1)),0,1)) -> 1
C64: Annual % increases
C65: =CHOOSE($S$30," Enter existing full SV (ie, incl the rate peg) in the years in which it applies","na - leave blank") -> na - leave blank
C67: Rate peg only | G67: =IF(G63=0,0,'WK0 - Input data'!G60) -> 0.02 | H67: =IF(H63=0,0,'WK0 - Input data'!H60) -> 0.025 | I67: =IF(I63=0,0,'WK0 - Input data'!I60) -> 0.025 | J67: =IF(J63=0,0,'WK0 - Input data'!J60) -> 0.025 | K67: =IF(K63=0,0,'WK0 - Input data'!K60) -> 0.025 | L67: =IF(L63=0,0,'WK0 - Input data'!L60) -> 0.025 | M67: =IF(M63=0,0,'WK0 - Input data'!M60) -> 0.025
C68: plus | D68: =CHOOSE($S$30,"existing SV above rate peg"," na") -> na | G68: =IF(OR($S$30=2,G65=""),0,G65-G67) -> 0 | H68: 0 | I68: 0 | J68: 0 | K68: =IF(OR($S$30=2,K65=""),0,K65-K67) -> 0 | L68: 0 | M68: 0 | S68: DO NOT DELETE
C69: plus | D69: =$S$69&S70 -> percentage above the rate peg | G69: =CHOOSE($S$40,K39,K38) -> 0.085 | H69: =IF(H62=0,0,MAX(0,H72-H67-H68-CHOOSE($S$40,H70,0))) -> 0 | I69: =IF(I62=0,0,MAX(0,I72-I67-I68-CHOOSE($S$40,I70,0))) -> 0 | J69: 0 | K69: 0 | L69: 0 | M69: 0 | S69: =CHOOSE($S$30,"percentage above the existing full SV (incl rate peg)","percentage above the rate peg") -> percentage above the rate peg
C70: plus | D70: =CHOOSE($S$40,$S$69&S71,"na - ignore this row") -> na - ignore this row | G70: =K40 -> 0 | S70: =CHOOSE($S$40," that is temporary","") -> 
C71: =$C$69 -> plus | D71: Crown Land adjustment | G71: =L49 -> 0 | H71: 0 | I71: 0 | J71: 0 | K71: 0 | L71: 0 | M71: 0 | S71: =CHOOSE($S$40," that is permanent","") -> 
C72: =CHOOSE($S$30," Proposed SV (total proposed and existing SV)"," Proposed SV ") -> Proposed SV | F72: na | G72: =SUM(G67:G71) -> 0.105
C73: Cumulative % increase
C74: =CHOOSE($S$30,"Exising full SV (including rate peg) followed by rate peg only","Rate peg only") -> Rate peg only | G74: =SUM(G67:G68) -> 0.02 | H74: =IF(H63=0,0,(1+G74)*(1+H67+H68)-1) -> 0.0455 | I74: =IF(I63=0,0,(1+H74)*(1+I67+I68)-1) -> 0.0716375 | J74: 0.0984284375 | K74: 0.1258891484 | L74: 0.1540363771 | M74: 0.1828872866
C75: =C69 -> plus | D75: additional increases | G75: =IF(G69=0,".",G69+CHOOSE($S$40,G70,0)) -> 0.085 | H75: =IF(OR(H62=0,H63=0),0,MAX(0,H76-H74)) -> 0 | I75: =IF(I63=0,0,IF(I62=0,0,MAX(0,I76-I74))) -> 0 | J75: 0 | K75: 0 | L75: 0 | M75: 0
C76: =C72 -> Proposed SV | F76: na | G76: =IF(G72=0,".",G72) -> 0.105 | H76: =IF(H63=0,0,IF(H62=0,(1+G76)*(1+H67+H68)-1,(1+G76)*(1+H72)-1)) -> 0.132625 | I76: =IF(I63=0,0,IF(I62=0,(1+H76)*(1+I67+I68)-1,(1+H76)*(1+I72)-1)) -> 0.160940625 | J76: =IF(J63=0,0,IF(J62=0,(1+I76)*(1+J67+J68)-1,(1+I76)*(1+J72)-1)) -> 0.1899641406 | K76: 0.2197132441 | L76: 0.2502060752 | M76: 0.2814612271
C78: Expiring special variations
C79: $ value of expiring special | E79: $ (nominal) | F79: 1468284
C80: variations (ESV) | E80: % value of ESV | F80: =IF('WK4 - PGI summary'!F58=0,".",F79/'WK4 - PGI summary'!F58) -> 0.07620823859 | G80: =IF('WK4 - PGI summary'!G58=0,".",G79/'WK4 - PGI summary'!G58) -> 0 | H80: =IF('WK4 - PGI summary'!H58=0,".",H79/'WK4 - PGI summary'!H58) -> 0 | I80: =IF('WK4 - PGI summary'!I58=0,".",I79/'WK4 - PGI summary'!I58) -> 0 | J80: =IF('WK4 - PGI summary'!J58=0,".",J79/'WK4 - PGI summary'!J58) -> 0 | K80: =IF('WK4 - PGI summary'!K58=0,".",K79/'WK4 - PGI summary'!K58) -> 0 | L80: =IF('WK4 - PGI summary'!L58=0,".",L79/'WK4 - PGI summary'!L58) -> 0 | M80: =IF('WK4 - PGI summary'!M58=0,".",M79/'WK4 - PGI summary'!M58) -> 0

Sheet WK2 - Notional General Income
C3: ='WK1 - Identification'!E13 -> Armidale Regional Council | F3: ='WK1 - Identification'!C16 -> Former council areas: | G3: =TRANSPOSE('WK1 - Identification'!E16:E20) -> Armidale | H3: Dumaresq | I3: Guyra | J3: . | K3: .
H5: WORKSHEET 2
H7: ="CALCULATION OF NOTIONAL GENERAL INCOME "&'WK0 - Input data'!F58 -> CALCULATION OF NOTIONAL GENERAL INCOME 2020-21
H8: Applicable to the first year of the application
H10: All dollars in nominal terms
H11: This worksheet must reflect the rating structure levied in the previous year
E12: ="NOTE: Valuations used here are to be taken from Council's valuation list on 1 July "&'WK0 - Input data'!F57&" and are to include:" -> NOTE: Valuations used here are to be taken from Council's valuation list on 1 July 2020 and are to include:
E13: (i) supplementaries having the same base date and furnished to Council during that year, and
E14: (ii) estimates of increases in valuations provided to the Council under section 513.
H16: Calculation of Notional General Income - Ordinary Rates
C18: Rating Category (s514-518) | D18: Name of sub-category | E18: Number of Assessments | F18: Ad Valorem Rate (cents) | G18: Base Amount | H18: Base Amount % | I18: Minimum Amount | J18: Number on Minimum | K18: Land Value (see note above) | L18: Land Value of Land on Minimum | M18: Notional General Income | Q18: DO NOT DELETE
C19: ='WK1 - Identification'!E16 -> Armidale
C20: Residential | D20: Armidale | E20: 8227 | F20: 0.4907 | G20: 467.6 | H20: =IF(G20="",".",E20*G20/M20) -> 0.4154565056 | K20: 1103039867 | M20: =IF(E20="",".",IF(G20<>"",G20*E20+K20*(F20/100),(K20-L20)*(F20/100)+I20*J20)) -> 9259561.827 | Q20: =C19&C20 -> ArmidaleResidential
C21: Residential | D21: Armidale Non Urban | E21: 1075 | F21: 0.2464 | G21: 485 | H21: =IF(G21="",".",E21*G21/M21) -> 0.4221822534 | K21: 289601230 | M21: 1234952.431 | Q21: =Q20 -> ArmidaleResidential
C22: Residential | D22: Wollomombi | E22: 16 | F22: 1.6409 | G22: 200 | H22: 0.3471159632 | K22: 366800 | M22: 9218.8212 | Q22: =Q21 -> ArmidaleResidential
C23: Residential | D23: Ebor | E23: 15 | F23: 0.8909 | G23: 200 | H23: 0.359633042 | K23: 599600 | M23: 8341.8364 | Q23: ArmidaleResidential
C24: Residential | D24: Hillgrove | E24: 96 | F24: 1.7325 | G24: 200 | H24: 0.3322958909 | K24: 2226830 | M24: 57779.82975 | Q24: ArmidaleResidential
C25: Residential | H25: . | M25: . | Q25: ArmidaleResidential
C26: Residential | H26: . | M26: . | Q26: ArmidaleResidential
C27: Residential | H27: . | M27: . | Q27: ArmidaleResidential
C28: ='WK1 - Identification'!E17 -> Dumaresq
C29: Residential | H29: =IF(G29="",".",E29*G29/M29) -> . | M29: . | Q29: =C28&C29 -> DumaresqResidential
C30: Residential | H30: . | M30: . | Q30: =Q29 -> DumaresqResidential
C31: Residential | H31: . | M31: . | Q31: =Q30 -> DumaresqResidential
C32: Residential | H32: . | M32: . | Q32: DumaresqResidential
C33: Residential | H33: . | M33: . | Q33: DumaresqResidential
C34: Residential | H34: . | M34: . | Q34: DumaresqResidential
C35: Residential | H35: . | M35: . | Q35: DumaresqResidential
C36: Residential | H36: . | M36: . | Q36: DumaresqResidential
C37: ='WK1 - Identification'!E18 -> Guyra
C38: Residential | D38: Guyra | E38: 942 | F38: 0.4827 | G38: 238 | H38: =IF(G38="",".",E38*G38/M38) -> 0.4502656583 | K38: 56706730 | M38: 497919.3857 | Q38: =C37&C38 -> GuyraResidential
C39: Residential | D39: Village | E39: 142 | F39: 0.4917 | G39: 170 | H39: 0.4498357806 | K39: 6004480 | M39: 53664.02816 | Q39: =Q38 -> GuyraResidential
C40: Residential | D40: Non Urban | E40: 151 | F40: 0.2334 | G40: 258.8 | H40: 0.4221459769 | K40: 22919010 | M40: 92571.76934 | Q40: GuyraResidential
C41: Residential | D41: Ebor | H41: . | M41: . | Q41: GuyraResidential
C42: Residential | H42: . | M42: . | Q42: GuyraResidential
C43: Residential | H43: . | M43: . | Q43: GuyraResidential
C44: Residential | H44: . | M44: . | Q44: GuyraResidential
C45: Residential | H45: . | M45: . | Q45: GuyraResidential
C46: ='WK1 - Identification'!E19 -> .
C47: Residential | H47: =IF(G47="",".",E47*G47/M47) -> . | M47: . | Q47: =C46&C47 -> .Residential
C48: Residential | H48: . | M48: . | Q48: =Q47 -> .Residential
C49: Residential | H49: . | M49: . | Q49: .Residential
C50: Residential | H50: . | M50: . | Q50: .Residential
C51: Residential | H51: . | M51: . | Q51: .Residential
C52: Residential | H52: . | M52: . | Q52: .Residential
C53: Residential | H53: . | M53: . | Q53: .Residential
C54: Residential | H54: . | M54: . | Q54: .Residential
C55: ='WK1 - Identification'!E20 -> .
C56: Residential | H56: =IF(G56="",".",E56*G56/M56) -> . | M56: . | Q56: =C55&C56 -> .Residential
C57: Residential | H57: . | M57: . | Q57: =Q56 -> .Residential
C58: Residential | H58: . | M58: . | Q58: .Residential
C59: Residential | H59: . | M59: . | Q59: .Residential
C60: Residential | H60: . | M60: . | Q60: .Residential
C61: Residential | H61: . | M61: . | Q61: .Residential
C62: Residential | H62: . | M62: . | Q62: .Residential
C63: Residential | H63: . | M63: . | Q63: .Residential
D64: Total Residential | E64: =SUM(E20:E63) -> 10664 | J64: =SUM(J20:J63) -> 0 | K64: =SUM(K20:K63) -> 1481464547 | L64: =SUM(L20:L63) -> 0 | M64: =SUM(M20:M63) -> 11214009.93
C65: =C19 -> Armidale
C66: Business | D66: Armidale | E66: 390 | F66: 1.2987 | G66: 791 | H66: 0.1756839503 | K66: 111453553 | M66: =IF(E66="",".",IF(G66<>"",G66*E66+K66*(F66/100),(K66-L66)*(F66/100)+I66*J66)) -> 1755937.293 | Q66: =C65&C66 -> ArmidaleBusiness
C67: Business | D67: Industrial | E67: 157 | F67: 1.2893 | G67: 882.2 | H67: 0.1813938052 | K67: 48480300 | M67: 763561.9079 | Q67: =Q66 -> ArmidaleBusiness
C68: Business | D68: Non Urban | E68: 30 | F68: 0.3574 | G68: 737.3 | H68: 0.4787969307 | K68: 6737000 | M68: 46197.038 | Q68: =Q67 -> ArmidaleBusiness
C69: Business | H69: . | M69: . | Q69: ArmidaleBusiness
C70: Business | H70: . | M70: . | Q70: ArmidaleBusiness
C71: Business | H71: . | M71: . | Q71: ArmidaleBusiness
C72: Business | H72: . | M72: . | Q72: ArmidaleBusiness
C73: Business | H73: . | M73: . | Q73: ArmidaleBusiness
C74: Business | H74: . | M74: . | Q74: ArmidaleBusiness
C75: Business | H75: . | M75: . | Q75: ArmidaleBusiness
C76: Business | H76: . | M76: . | Q76: ArmidaleBusiness
C77: Business | H77: . | M77: . | Q77: ArmidaleBusiness
C78: Business | H78: . | M78: . | Q78: ArmidaleBusiness
C79: Business | H79: . | M79: . | Q79: ArmidaleBusiness
C80: Business | H80: . | M80: . | Q80: ArmidaleBusiness
C81: Business | H81: . | M81: . | Q81: ArmidaleBusiness
C82: Business | H82: . | M82: . | Q82: ArmidaleBusiness
C83: =C28 -> Dumaresq
C84: Business | H84: =IF(G84="",".",E84*G84/M84) -> . | M84: . | Q84: =C83&C84 -> DumaresqBusiness
C85: Business | H85: . | M85: . | Q85: =Q84 -> DumaresqBusiness
C86: Business | H86: . | M86: . | Q86: =Q85 -> DumaresqBusiness
C87: Business | H87: . | M87: . | Q87: DumaresqBusiness
C88: Business | H88: . | M88: . | Q88: DumaresqBusiness
C89: Business | H89: . | M89: . | Q89: DumaresqBusiness
C90: Business | H90: . | M90: . | Q90: DumaresqBusiness
C91: Business | H91: . | M91: . | Q91: DumaresqBusiness
C92: Business | H92: . | M92: . | Q92: DumaresqBusiness
C93: Business | H93: . | M93: . | Q93: DumaresqBusiness
C94: Business | H94: . | M94: . | Q94: DumaresqBusiness
C95: Business | H95: . | M95: . | Q95: DumaresqBusiness
C96: Business | H96: . | M96: . | Q96: DumaresqBusiness
C97: Business | H97: . | M97: . | Q97: DumaresqBusiness
C98: Business | H98: . | M98: . | Q98: DumaresqBusiness
C99: Business | H99: . | M99: . | Q99: DumaresqBusiness
C100: Business | H100: . | M100: . | Q100: DumaresqBusiness
C101: =C37 -> Guyra
C102: Business | D102: Guyra | E102: 99 | F102: 0.8899 | G102: 409.8 | H102: =IF(G102="",".",E102*G102/M102) -> 0.4477932735 | K102: 5621990 | M102: 90600.28901 | Q102: =C101&C102 -> GuyraBusiness
C103: Business | D103: Village | E103: 14 | F103: 0.3625 | G103: 106.7 | H103: 0.3747458007 | K103: 687550 | M103: 3986.16875 | Q103: =Q102 -> GuyraBusiness
C104: Business | H104: . | M104: . | Q104: GuyraBusiness
C105: Business | H105: . | M105: . | Q105: GuyraBusiness
C106: Business | H106: . | M106: . | Q106: GuyraBusiness
C107: Business | H107: . | M107: . | Q107: GuyraBusiness
C108: Business | H108: . | M108: . | Q108: GuyraBusiness
C109: Business | H109: . | M109: . | Q109: GuyraBusiness
C110: Business | H110: . | M110: . | Q110: GuyraBusiness
C111: Business | H111: . | M111: . | Q111: GuyraBusiness
C112: Business | H112: . | M112: . | Q112: GuyraBusiness
C113: Business | H113: . | M113: . | Q113: GuyraBusiness
C114: Business | H114: . | M114: . | Q114: GuyraBusiness
C115: Business | H115: . | M115: . | Q115: GuyraBusiness
C116: Business | H116: . | M116: . | Q116: GuyraBusiness
C117: Business | H117: . | M117: . | Q117: GuyraBusiness
C118: Business | H118: . | M118: . | Q118: GuyraBusiness
C119: =C46 -> .
C120: Business | H120: =IF(G120="",".",E120*G120/M120) -> . | M120: . | Q120: =C119&C120 -> .Business
C121: Business | H121: . | M121: . | Q121: =Q120 -> .Business
C122: Business | H122: . | M122: . | Q122: .Business
C123: Business | H123: . | M123: . | Q123: .Business
C124: Business | H124: . | M124: . | Q124: .Business
C125: Business | H125: . | M125: . | Q125: .Business
C126: Business | H126: . | M126: . | Q126: .Business
C127: Business | H127: . | M127: . | Q127: .Business
C128: Business | H128: . | M128: . | Q128: .Business
C129: Business | H129: . | M129: . | Q129: .Business
C130: Business | H130: . | M130: . | Q130: .Business
C131: Business | H131: . | M131: . | Q131: .Business
C132: Business | H132: . | M132: . | Q132: .Business
C133: Business | H133: . | M133: . | Q133: .Business
C134: Business | H134: . | M134: . | Q134: .Business
C135: Business | H135: . | M135: . | Q135: .Business
C136: Business | H136: . | M136: . | Q136: .Business
C137: =C55 -> .
C138: Business | H138: =IF(G138="",".",E138*G138/M138) -> . | M138: . | Q138: =C137&C138 -> .Business
C139: Business | H139: . | M139: . | Q139: =Q138 -> .Business
C140: Business | H140: . | M140: . | Q140: .Business
C141: Business | H141: . | M141: . | Q141: .Business
C142: Business | H142: . | M142: . | Q142: .Business
C143: Business | H143: . | M143: . | Q143: .Business
C144: Business | H144: . | M144: . | Q144: .Business
C145: Business | H145: . | M145: . | Q145: .Business
C146: Business | H146: . | M146: =IF(E146="",".",IF(G146<>"",G146*E146+K146*(F146/100),(K146-L146)*(F146/100)+I146*J146)) -> . | Q146: .Business
C147: Business | H147: . | M147: . | Q147: .Business
C148: Business | H148: =IF(G148="",".",E148*G148/M148) -> . | M148: . | Q148: .Business
C149: Business | H149: . | M149: . | Q149: .Business
C150: Business | H150: . | M150: . | Q150: .Business
C151: Business | H151: . | M151: . | Q151: .Business
C152: Business | H152: . | M152: . | Q152: .Business
C153: Business | H153: . | M153: . | Q153: .Business
C154: Business | H154: . | M154: . | Q154: .Business
D155: Total Business | E155: =SUM(E66:E154) -> 690 | J155: =SUM(J66:J154) -> 0 | K155: =SUM(K66:K154) -> 172980393 | L155: =SUM(L66:L154) -> 0 | M155: =SUM(M66:M154) -> 2660282.696
C156: =C19 -> Armidale
C157: Farmland | D157: Armidale | E157: 832 | F157: 0.1895 | G157: 1321.6 | H157: =IF(G157="",".",E157*G157/M157) -> 0.3759951885 | K157: 962985600 | M157: =IF(E157="",".",IF(G157<>"",G157*E157+K157*(F157/100),(K157-L157)*(F157/100)+I157*J157)) -> 2924428.912 | Q157: =C156&C157 -> ArmidaleFarmland
C158: Farmland | D158: Conservation Agreements | E158: 1 | G158: -2632 | H158: 1 | M158: -2632 | Q158: =Q157 -> ArmidaleFarmland
C159: Farmland | H159: . | M159: . | Q159: =Q158 -> ArmidaleFarmland
C160: Farmland | H160: . | M160: . | Q160: ArmidaleFarmland
C161: Farmland | H161: . | M161: . | Q161: ArmidaleFarmland
C162: Farmland | H162: . | M162: . | Q162: ArmidaleFarmland
C163: Farmland | H163: . | M163: . | Q163: ArmidaleFarmland
C164: Farmland | H164: . | M164: . | Q164: ArmidaleFarmland
C165: =C28 -> Dumaresq
C166: Farmland | H166: . | M166: . | Q166: =C165&C166 -> DumaresqFarmland
C167: Farmland | H167: . | M167: . | Q167: =Q166 -> DumaresqFarmland
C168: Farmland | H168: . | M168: . | Q168: =Q167 -> DumaresqFarmland
C169: Farmland | H169: . | M169: . | Q169: DumaresqFarmland
C170: Farmland | H170: . | M170: . | Q170: DumaresqFarmland
C171: Farmland | H171: . | M171: . | Q171: DumaresqFarmland
C172: Farmland | H172: . | M172: . | Q172: DumaresqFarmland
C173: Farmland | H173: . | M173: . | Q173: DumaresqFarmland
C174: =C37 -> Guyra
C175: Farmland | D175: Guyra | E175: 679 | F175: 0.1631 | G175: 468 | H175: =IF(G175="",".",E175*G175/M175) -> 0.1630174593 | K175: 1000331500 | M175: =IF(E175="",".",IF(G175<>"",G175*E175+K175*(F175/100),(K175-L175)*(F175/100)+I175*J175)) -> 1949312.676 | Q175: =C174&C175 -> GuyraFarmland
C176: Farmland | D176: Intensive | E176: 2 | F176: 0.6939 | G176: 1146.9 | H176: 0.1824754371 | K176: 1481000 | M176: 12570.459 | Q176: =Q175 -> GuyraFarmland
C177: Farmland | D177: Conservation Agreements | E177: 1 | G177: -915 | H177: 1 | M177: -915 | Q177: GuyraFarmland
C178: Farmland | H178: . | M178: . | Q178: GuyraFarmland
C179: Farmland | H179: . | M179: . | Q179: GuyraFarmland
C180: Farmland | H180: . | M180: . | Q180: GuyraFarmland
C181: Farmland | H181: . | M181: . | Q181: GuyraFarmland
C182: Farmland | H182: . | M182: . | Q182: GuyraFarmland
C183: =C46 -> .
C184: Farmland | H184: =IF(G184="",".",E184*G184/M184) -> . | M184: =IF(E184="",".",IF(G184<>"",G184*E184+K184*(F184/100),(K184-L184)*(F184/100)+I184*J184)) -> . | Q184: =C183&C184 -> .Farmland
C185: Farmland | H185: . | M185: . | Q185: .Farmland
C186: Farmland | H186: . | M186: . | Q186: .Farmland
C187: Farmland | H187: . | M187: . | Q187: .Farmland
C188: Farmland | H188: . | M188: . | Q188: .Farmland
C189: Farmland | H189: . | M189: . | Q189: .Farmland
C190: Farmland | H190: . | M190: . | Q190: .Farmland
C191: Farmland | H191: . | M191: . | Q191: .Farmland
C192: =C55 -> .
C193: Farmland | H193: =IF(G193="",".",E193*G193/M193) -> . | M193: . | Q193: =C192&C193 -> .Farmland
C194: Farmland | H194: . | M194: . | Q194: .Farmland
C195: Farmland | H195: . | M195: . | Q195: .Farmland
C196: Farmland | H196: . | M196: . | Q196: .Farmland
C197: Farmland | H197: . | M197: . | Q197: .Farmland
C198: Farmland | H198: . | M198: . | Q198: .Farmland
C199: Farmland | H199: . | M199: . | Q199: .Farmland
C200: Farmland | H200: . | M200: . | Q200: .Farmland
D201: Total Farmland | E201: =SUM(E157:E200) -> 1515 | J201: =SUM(J157:J200) -> 0 | K201: =SUM(K157:K200) -> 1964798100 | L201: =SUM(L157:L200) -> 0 | M201: =SUM(M157:M200) -> 4882765.047
C202: =C19 -> Armidale
C203: Mining | D203: Armidale | E203: 11 | F203: 7.8334 | G203: 995.3 | H203: =IF(G203="",".",E203*G203/M203) -> 0.1679750171 | K203: 692290 | M203: =IF(E203="",".",IF(G203<>"",G203*E203+K203*(F203/100),(K203-L203)*(F203/100)+I203*J203)) -> 65178.14486 | Q203: =C202&C203 -> ArmidaleMining
C204: Mining | H204: . | M204: . | Q204: =Q203 -> ArmidaleMining
C205: Mining | H205: . | M205: . | Q205: =Q204 -> ArmidaleMining
C206: Mining | H206: . | M206: . | Q206: ArmidaleMining
C207: Mining | H207: . | M207: . | Q207: ArmidaleMining
... 349 more rows

Sheet WK3 - Notional GI Yr1 YIELD
C3: ='WK2 - Notional General Income'!$C$3 -> Armidale Regional Council | F3: ='WK2 - Notional General Income'!F$3 -> Former council areas: | G3: ='WK2 - Notional General Income'!G$3 -> Armidale | H3: ='WK2 - Notional General Income'!H$3 -> Dumaresq | I3: ='WK2 - Notional General Income'!I$3 -> Guyra | J3: ='WK2 - Notional General Income'!J$3 -> . | K3: ='WK2 - Notional General Income'!K$3 -> .
H5: WORKSHEET 3
H7: ="CALCULATION OF NOTIONAL GENERAL INCOME "&'WK0 - Input data'!$G$58 -> CALCULATION OF NOTIONAL GENERAL INCOME 2021-22
H9: All dollars in nominal terms
H11: This worksheet must contain the rating structure proposed for the first year of the special variation application.
H12: Note: A rating structure that does not comply with the legislation may not be approved. It is Council's responsibility to check its rating structure with OLG before submission to IPART.
H14: Calculation of Notional General Income - Ordinary Rates
C18: Rating Category (s514-518) | D18: Name of sub-category | E18: Number of Assessments | F18: Ad valorem rate (cents) | G18: Base Amount $ | H18: Base Amount % | I18: Minimum Amount $ | J18: Number on Minimum | K18: Land Value as at start of year $ | L18: Land Value of Land on Minimum $ | M18: Notional General Income | Q18: DO NOT DELETE
C19: ='WK1 - Identification'!$E$16 -> Armidale
C20: Residential | D20: =IF('WK2 - Notional General Income'!D20="","",'WK2 - Notional General Income'!D20) -> Armidale | E20: 8239 | F20: 0.511798 | G20: 468 | H20: =IF(G20="",".",E20*G20/M20) -> 0.4059422014 | K20: 1102519477 | M20: =IF(E20="",".",IF(G20<>"",G20*E20+K20*(F20/100),(K20-L20)*(F20/100)+I20*J20)) -> 9498524.633 | Q20: =C19&C20 -> ArmidaleResidential
C21: Residential | D21: =IF('WK2 - Notional General Income'!D21="","",'WK2 - Notional General Income'!D21) -> Armidale Non Urban | E21: 1071 | F21: 0.335192 | G21: 260 | H21: =IF(G21="",".",E21*G21/M21) -> 0.2231165606 | K21: 289263230 | M21: 1248047.206 | Q21: =Q20 -> ArmidaleResidential
C22: Residential | D22: =IF('WK2 - Notional General Income'!D22="","",'WK2 - Notional General Income'!D22) -> Wollomombi | E22: 16 | F22: 1.705735 | G22: 200 | H22: 0.3383867167 | K22: 366800 | M22: 9456.63598 | Q22: =Q21 -> ArmidaleResidential
C23: Residential | D23: =IF('WK2 - Notional General Income'!D23="","",'WK2 - Notional General Income'!D23) -> Ebor | E23: 15 | F23: 0.576342 | G23: 200 | H23: 0.4647022523 | K23: 599600 | M23: 6455.746632 | Q23: ArmidaleResidential
C24: Residential | D24: =IF('WK2 - Notional General Income'!D24="","",'WK2 - Notional General Income'!D24) -> Hillgrove | E24: 99 | F24: 1.758525 | G24: 200 | H24: 0.3340450922 | K24: 2244690 | M24: 59273.43482 | Q24: ArmidaleResidential
C25: Residential | D25: =IF('WK2 - Notional General Income'!D25="","",'WK2 - Notional General Income'!D25) ->  | H25: . | M25: . | Q25: ArmidaleResidential
C26: Residential | D26: =IF('WK2 - Notional General Income'!D26="","",'WK2 - Notional General Income'!D26) ->  | H26: . | M26: . | Q26: ArmidaleResidential
C27: Residential | D27: =IF('WK2 - Notional General Income'!D27="","",'WK2 - Notional General Income'!D27) ->  | H27: . | M27: . | Q27: ArmidaleResidential
C28: ='WK1 - Identification'!$E$17 -> Dumaresq
C29: Residential | D29: =IF('WK2 - Notional General Income'!D29="","",'WK2 - Notional General Income'!D29) ->  | H29: . | M29: . | Q29: =C28&C29 -> DumaresqResidential
C30: Residential | D30: =IF('WK2 - Notional General Income'!D30="","",'WK2 - Notional General Income'!D30) ->  | H30: . | M30: . | Q30: =Q29 -> DumaresqResidential
C31: Residential | D31: =IF('WK2 - Notional General Income'!D31="","",'WK2 - Notional General Income'!D31) ->  | H31: . | M31: . | Q31: =Q30 -> DumaresqResidential
C32: Residential | D32: =IF('WK2 - Notional General Income'!D32="","",'WK2 - Notional General Income'!D32) ->  | H32: . | M32: . | Q32: DumaresqResidential
C33: Residential | D33: =IF('WK2 - Notional General Income'!D33="","",'WK2 - Notional General Income'!D33) ->  | H33: . | M33: . | Q33: DumaresqResidential
C34: Residential | D34: =IF('WK2 - Notional General Income'!D34="","",'WK2 - Notional General Income'!D34) ->  | H34: . | M34: . | Q34: DumaresqResidential
C35: Residential | D35: =IF('WK2 - Notional General Income'!D35="","",'WK2 - Notional General Income'!D35) ->  | H35: . | M35: . | Q35: DumaresqResidential
C36: Residential | D36: =IF('WK2 - Notional General Income'!D36="","",'WK2 - Notional General Income'!D36) ->  | H36: . | M36: . | Q36: DumaresqResidential
C37: ='WK1 - Identification'!$E$18 -> Guyra
C38: Residential | D38: =IF('WK2 - Notional General Income'!D38="","",'WK2 - Notional General Income'!D38) -> Guyra | E38: 945 | F38: 0.501856 | G38: 238 | H38: =IF(G38="",".",E38*G38/M38) -> 0.4403167172 | K38: 56964830 | M38: 510791.4172 | Q38: =C37&C38 -> GuyraResidential
C39: Residential | D39: =IF('WK2 - Notional General Income'!D39="","",'WK2 - Notional General Income'!D39) -> Village | E39: 106 | F39: 0.480179 | G39: 180 | H39: 0.4709858299 | K39: 4463080 | M39: 40510.77291 | Q39: =Q38 -> GuyraResidential
C40: Residential | D40: =IF('WK2 - Notional General Income'!D40="","",'WK2 - Notional General Income'!D40) -> Non Urban | E40: 150 | F40: 0.335192 | G40: 260 | H40: 0.3439136544 | K40: 22196400 | M40: 113400.5571 | Q40: GuyraResidential
C41: Residential | D41: =IF('WK2 - Notional General Income'!D41="","",'WK2 - Notional General Income'!D41) -> Ebor | E41: 38 | F41: 0.576342 | G41: 200 | H41: 0.4566695789 | K41: 1568900 | M41: 16642.22964 | Q41: GuyraResidential
C42: Residential | D42: =IF('WK2 - Notional General Income'!D42="","",'WK2 - Notional General Income'!D42) ->  | H42: . | M42: . | Q42: GuyraResidential
C43: Residential | D43: =IF('WK2 - Notional General Income'!D43="","",'WK2 - Notional General Income'!D43) ->  | H43: . | M43: . | Q43: GuyraResidential
C44: Residential | D44: =IF('WK2 - Notional General Income'!D44="","",'WK2 - Notional General Income'!D44) ->  | H44: . | M44: . | Q44: GuyraResidential
C45: Residential | D45: =IF('WK2 - Notional General Income'!D45="","",'WK2 - Notional General Income'!D45) ->  | H45: . | M45: . | Q45: GuyraResidential
C46: ='WK1 - Identification'!$E$19 -> .
C47: Residential | D47: =IF('WK2 - Notional General Income'!D47="","",'WK2 - Notional General Income'!D47) ->  | H47: =IF(G47="",".",E47*G47/M47) -> . | M47: . | Q47: =C46&C47 -> .Residential
C48: Residential | D48: =IF('WK2 - Notional General Income'!D48="","",'WK2 - Notional General Income'!D48) ->  | H48: . | M48: . | Q48: =Q47 -> .Residential
C49: Residential | D49: =IF('WK2 - Notional General Income'!D49="","",'WK2 - Notional General Income'!D49) ->  | H49: . | M49: . | Q49: .Residential
C50: Residential | D50: =IF('WK2 - Notional General Income'!D50="","",'WK2 - Notional General Income'!D50) ->  | H50: . | M50: . | Q50: .Residential
C51: Residential | D51: =IF('WK2 - Notional General Income'!D51="","",'WK2 - Notional General Income'!D51) ->  | H51: . | M51: . | Q51: .Residential
C52: Residential | D52: =IF('WK2 - Notional General Income'!D52="","",'WK2 - Notional General Income'!D52) ->  | H52: . | M52: . | Q52: .Residential
C53: Residential | D53: =IF('WK2 - Notional General Income'!D53="","",'WK2 - Notional General Income'!D53) ->  | H53: . | M53: . | Q53: .Residential
C54: Residential | D54: =IF('WK2 - Notional General Income'!D54="","",'WK2 - Notional General Income'!D54) ->  | H54: . | M54: . | Q54: .Residential
C55: ='WK1 - Identification'!$E$20 -> .
C56: Residential | D56: =IF('WK2 - Notional General Income'!D56="","",'WK2 - Notional General Income'!D56) ->  | H56: =IF(G56="",".",E56*G56/M56) -> . | M56: . | Q56: =C55&C56 -> .Residential
C57: Residential | D57: =IF('WK2 - Notional General Income'!D57="","",'WK2 - Notional General Income'!D57) ->  | H57: . | M57: . | Q57: =Q56 -> .Residential
C58: Residential | D58: =IF('WK2 - Notional General Income'!D58="","",'WK2 - Notional General Income'!D58) ->  | H58: . | M58: . | Q58: .Residential
C59: Residential | D59: =IF('WK2 - Notional General Income'!D59="","",'WK2 - Notional General Income'!D59) ->  | H59: . | M59: . | Q59: .Residential
C60: Residential | D60: =IF('WK2 - Notional General Income'!D60="","",'WK2 - Notional General Income'!D60) ->  | H60: . | M60: . | Q60: .Residential
C61: Residential | D61: =IF('WK2 - Notional General Income'!D61="","",'WK2 - Notional General Income'!D61) ->  | H61: . | M61: . | Q61: .Residential
C62: Residential | D62: =IF('WK2 - Notional General Income'!D62="","",'WK2 - Notional General Income'!D62) ->  | H62: . | M62: . | Q62: .Residential
C63: Residential | D63: =IF('WK2 - Notional General Income'!D63="","",'WK2 - Notional General Income'!D63) ->  | H63: . | M63: . | Q63: .Residential
D64: Total Residential | E64: =SUM(E20:E63) -> 10679 | J64: =SUM(J20:J63) -> 0 | K64: =SUM(K20:K63) -> 1480187007 | L64: =SUM(L20:L63) -> 0 | M64: =SUM(M20:M63) -> 11503102.63
C65: =C$19 -> Armidale
C66: Business | D66: =IF('WK2 - Notional General Income'!D66="","",'WK2 - Notional General Income'!D66) -> Armidale | E66: 393 | F66: 1.335636 | G66: 791 | H66: 0.1726209379 | K66: 111555753 | M66: =IF(E66="",".",IF(G66<>"",G66*E66+K66*(F66/100),(K66-L66)*(F66/100)+I66*J66)) -> 1800841.797 | Q66: =C65&C66 -> ArmidaleBusiness
C67: Business | D67: =IF('WK2 - Notional General Income'!D67="","",'WK2 - Notional General Income'!D67) -> Industrial | E67: 157 | F67: 1.330098 | G67: 882 | H67: 0.1767806976 | K67: 48480300 | M67: 783309.5007 | Q67: =Q66 -> ArmidaleBusiness
C68: Business | D68: =IF('WK2 - Notional General Income'!D68="","",'WK2 - Notional General Income'!D68) -> Non Urban | E68: 31 | F68: 0.433289 | G68: 420 | H68: 0.305473863 | K68: 6832000 | M68: 42622.30448 | Q68: =Q67 -> ArmidaleBusiness
C69: Business | D69: =IF('WK2 - Notional General Income'!D69="","",'WK2 - Notional General Income'!D69) ->  | H69: . | M69: . | Q69: ArmidaleBusiness
C70: Business | D70: =IF('WK2 - Notional General Income'!D70="","",'WK2 - Notional General Income'!D70) ->  | H70: . | M70: . | Q70: ArmidaleBusiness
C71: Business | D71: =IF('WK2 - Notional General Income'!D71="","",'WK2 - Notional General Income'!D71) ->  | H71: . | M71: . | Q71: ArmidaleBusiness
C72: Business | D72: =IF('WK2 - Notional General Income'!D72="","",'WK2 - Notional General Income'!D72) ->  | H72: . | M72: . | Q72: ArmidaleBusiness
C73: Business | D73: =IF('WK2 - Notional General Income'!D73="","",'WK2 - Notional General Income'!D73) ->  | H73: . | M73: . | Q73: ArmidaleBusiness
C74: Business | D74: =IF('WK2 - Notional General Income'!D74="","",'WK2 - Notional General Income'!D74) ->  | H74: . | M74: . | Q74: ArmidaleBusiness
C75: Business | D75: =IF('WK2 - Notional General Income'!D75="","",'WK2 - Notional General Income'!D75) ->  | H75: . | M75: . | Q75: ArmidaleBusiness
C76: Business | D76: =IF('WK2 - Notional General Income'!D76="","",'WK2 - Notional General Income'!D76) ->  | H76: . | M76: . | Q76: ArmidaleBusiness
C77: Business | D77: =IF('WK2 - Notional General Income'!D77="","",'WK2 - Notional General Income'!D77) ->  | H77: . | M77: . | Q77: ArmidaleBusiness
C78: Business | D78: =IF('WK2 - Notional General Income'!D78="","",'WK2 - Notional General Income'!D78) ->  | H78: . | M78: . | Q78: ArmidaleBusiness
C79: Business | D79: =IF('WK2 - Notional General Income'!D79="","",'WK2 - Notional General Income'!D79) ->  | H79: . | M79: . | Q79: ArmidaleBusiness
C80: Business | D80: =IF('WK2 - Notional General Income'!D80="","",'WK2 - Notional General Income'!D80) ->  | H80: . | M80: . | Q80: ArmidaleBusiness
C81: Business | D81: =IF('WK2 - Notional General Income'!D81="","",'WK2 - Notional General Income'!D81) ->  | H81: . | M81: . | Q81: ArmidaleBusiness
C82: Business | D82: =IF('WK2 - Notional General Income'!D82="","",'WK2 - Notional General Income'!D82) ->  | H82: . | M82: . | Q82: ArmidaleBusiness
C83: =C$28 -> Dumaresq
C84: Business | D84: =IF('WK2 - Notional General Income'!D84="","",'WK2 - Notional General Income'!D84) ->  | H84: =IF(G84="",".",E84*G84/M84) -> . | M84: . | Q84: =C83&C84 -> DumaresqBusiness
C85: Business | D85: =IF('WK2 - Notional General Income'!D85="","",'WK2 - Notional General Income'!D85) ->  | H85: . | M85: . | Q85: =Q84 -> DumaresqBusiness
C86: Business | D86: =IF('WK2 - Notional General Income'!D86="","",'WK2 - Notional General Income'!D86) ->  | H86: . | M86: . | Q86: =Q85 -> DumaresqBusiness
C87: Business | D87: =IF('WK2 - Notional General Income'!D87="","",'WK2 - Notional General Income'!D87) ->  | H87: . | M87: . | Q87: DumaresqBusiness
C88: Business | D88: =IF('WK2 - Notional General Income'!D88="","",'WK2 - Notional General Income'!D88) ->  | H88: . | M88: . | Q88: DumaresqBusiness
C89: Business | D89: =IF('WK2 - Notional General Income'!D89="","",'WK2 - Notional General Income'!D89) ->  | H89: . | M89: . | Q89: DumaresqBusiness
C90: Business | D90: =IF('WK2 - Notional General Income'!D90="","",'WK2 - Notional General Income'!D90) ->  | H90: . | M90: . | Q90: DumaresqBusiness
C91: Business | D91: =IF('WK2 - Notional General Income'!D91="","",'WK2 - Notional General Income'!D91) ->  | H91: . | M91: . | Q91: DumaresqBusiness
C92: Business | D92: =IF('WK2 - Notional General Income'!D92="","",'WK2 - Notional General Income'!D92) ->  | H92: . | M92: . | Q92: DumaresqBusiness
C93: Business | D93: =IF('WK2 - Notional General Income'!D93="","",'WK2 - Notional General Income'!D93) ->  | H93: . | M93: . | Q93: DumaresqBusiness
C94: Business | D94: =IF('WK2 - Notional General Income'!D94="","",'WK2 - Notional General Income'!D94) ->  | H94: . | M94: . | Q94: DumaresqBusiness
C95: Business | D95: =IF('WK2 - Notional General Income'!D95="","",'WK2 - Notional General Income'!D95) ->  | H95: . | M95: . | Q95: DumaresqBusiness
C96: Business | D96: =IF('WK2 - Notional General Income'!D96="","",'WK2 - Notional General Income'!D96) ->  | H96: . | M96: . | Q96: DumaresqBusiness
C97: Business | D97: =IF('WK2 - Notional General Income'!D97="","",'WK2 - Notional General Income'!D97) ->  | H97: . | M97: . | Q97: DumaresqBusiness
C98: Business | D98: =IF('WK2 - Notional General Income'!D98="","",'WK2 - Notional General Income'!D98) ->  | H98: . | M98: . | Q98: DumaresqBusiness
C99: Business | D99: =IF('WK2 - Notional General Income'!D99="","",'WK2 - Notional General Income'!D99) ->  | H99: . | M99: . | Q99: DumaresqBusiness
C100: Business | D100: =IF('WK2 - Notional General Income'!D100="","",'WK2 - Notional General Income'!D100) ->  | H100: . | M100: . | Q100: DumaresqBusiness
C101: =C$37 -> Guyra
C102: Business | D102: =IF('WK2 - Notional General Income'!D102="","",'WK2 - Notional General Income'!D102) -> Guyra | E102: 97 | F102: 0.996858 | G102: 410 | H102: =IF(G102="",".",E102*G102/M102) -> 0.4278998628 | K102: 5333990 | M102: 92942.30603 | Q102: =C101&C102 -> GuyraBusiness
C103: Business | D103: =IF('WK2 - Notional General Income'!D103="","",'WK2 - Notional General Income'!D103) -> Village | E103: 14 | F103: 0.433289 | G103: 420 | H103: 0.6637259154 | K103: 687550 | M103: 8859.078519 | Q103: =Q102 -> GuyraBusiness
C104: Business | D104: =IF('WK2 - Notional General Income'!D104="","",'WK2 - Notional General Income'!D104) ->  | H104: . | M104: . | Q104: GuyraBusiness
C105: Business | D105: =IF('WK2 - Notional General Income'!D105="","",'WK2 - Notional General Income'!D105) ->  | H105: . | M105: . | Q105: GuyraBusiness
C106: Business | D106: =IF('WK2 - Notional General Income'!D106="","",'WK2 - Notional General Income'!D106) ->  | H106: . | M106: . | Q106: GuyraBusiness
C107: Business | D107: =IF('WK2 - Notional General Income'!D107="","",'WK2 - Notional General Income'!D107) ->  | H107: . | M107: . | Q107: GuyraBusiness
C108: Business | D108: =IF('WK2 - Notional General Income'!D108="","",'WK2 - Notional General Income'!D108) ->  | H108: . | M108: . | Q108: GuyraBusiness
C109: Business | D109: =IF('WK2 - Notional General Income'!D109="","",'WK2 - Notional General Income'!D109) ->  | H109: . | M109: . | Q109: GuyraBusiness
C110: Business | D110: =IF('WK2 - Notional General Income'!D110="","",'WK2 - Notional General Income'!D110) ->  | H110: . | M110: . | Q110: GuyraBusiness
C111: Business | D111: =IF('WK2 - Notional General Income'!D111="","",'WK2 - Notional General Income'!D111) ->  | H111: . | M111: . | Q111: GuyraBusiness
C112: Business | D112: =IF('WK2 - Notional General Income'!D112="","",'WK2 - Notional General Income'!D112) ->  | H112: . | M112: . | Q112: GuyraBusiness
C113: Business | D113: =IF('WK2 - Notional General Income'!D113="","",'WK2 - Notional General Income'!D113) ->  | H113: . | M113: . | Q113: GuyraBusiness
C114: Business | D114: =IF('WK2 - Notional General Income'!D114="","",'WK2 - Notional General Income'!D114) ->  | H114: . | M114: . | Q114: GuyraBusiness
C115: Business | D115: =IF('WK2 - Notional General Income'!D115="","",'WK2 - Notional General Income'!D115) ->  | H115: . | M115: . | Q115: GuyraBusiness
C116: Business | D116: =IF('WK2 - Notional General Income'!D116="","",'WK2 - Notional General Income'!D116) ->  | H116: . | M116: . | Q116: GuyraBusiness
C117: Business | D117: =IF('WK2 - Notional General Income'!D117="","",'WK2 - Notional General Income'!D117) ->  | H117: . | M117: . | Q117: GuyraBusiness
C118: Business | D118: =IF('WK2 - Notional General Income'!D118="","",'WK2 - Notional General Income'!D118) ->  | H118: . | M118: . | Q118: GuyraBusiness
C119: =C$46 -> .
C120: Business | D120: =IF('WK2 - Notional General Income'!D120="","",'WK2 - Notional General Income'!D120) ->  | H120: =IF(G120="",".",E120*G120/M120) -> . | M120: . | Q120: =C119&C120 -> .Business
C121: Business | D121: =IF('WK2 - Notional General Income'!D121="","",'WK2 - Notional General Income'!D121) ->  | H121: . | M121: . | Q121: =Q120 -> .Business
C122: Business | D122: =IF('WK2 - Notional General Income'!D122="","",'WK2 - Notional General Income'!D122) ->  | H122: . | M122: . | Q122: .Business
C123: Business | D123: =IF('WK2 - Notional General Income'!D123="","",'WK2 - Notional General Income'!D123) ->  | H123: . | M123: . | Q123: .Business
C124: Business | D124: =IF('WK2 - Notional General Income'!D124="","",'WK2 - Notional General Income'!D124) ->  | H124: . | M124: . | Q124: .Business
C125: Business | D125: =IF('WK2 - Notional General Income'!D125="","",'WK2 - Notional General Income'!D125) ->  | H125: . | M125: . | Q125: .Business
C126: Business | D126: =IF('WK2 - Notional General Income'!D126="","",'WK2 - Notional General Income'!D126) ->  | H126: . | M126: . | Q126: .Business
C127: Business | D127: =IF('WK2 - Notional General Income'!D127="","",'WK2 - Notional General Income'!D127) ->  | H127: . | M127: . | Q127: .Business
C128: Business | D128: =IF('WK2 - Notional General Income'!D128="","",'WK2 - Notional General Income'!D128) ->  | H128: . | M128: . | Q128: .Business
C129: Business | D129: =IF('WK2 - Notional General Income'!D129="","",'WK2 - Notional General Income'!D129) ->  | H129: . | M129: . | Q129: .Business
C130: Business | D130: =IF('WK2 - Notional General Income'!D130="","",'WK2 - Notional General Income'!D130) ->  | H130: . | M130: . | Q130: .Business
C131: Business | D131: =IF('WK2 - Notional General Income'!D131="","",'WK2 - Notional General Income'!D131) ->  | H131: . | M131: . | Q131: .Business
C132: Business | D132: =IF('WK2 - Notional General Income'!D132="","",'WK2 - Notional General Income'!D132) ->  | H132: . | M132: . | Q132: .Business
C133: Business | D133: =IF('WK2 - Notional General Income'!D133="","",'WK2 - Notional General Income'!D133) ->  | H133: . | M133: . | Q133: .Business
C134: Business | D134: =IF('WK2 - Notional General Income'!D134="","",'WK2 - Notional General Income'!D134) ->  | H134: . | M134: . | Q134: .Business
C135: Business | D135: =IF('WK2 - Notional General Income'!D135="","",'WK2 - Notional General Income'!D135) ->  | H135: . | M135: . | Q135: .Business
C136: Business | D136: =IF('WK2 - Notional General Income'!D136="","",'WK2 - Notional General Income'!D136) ->  | H136: . | M136: . | Q136: .Business
C137: =C$55 -> .
C138: Business | D138: =IF('WK2 - Notional General Income'!D138="","",'WK2 - Notional General Income'!D138) ->  | H138: =IF(G138="",".",E138*G138/M138) -> . | M138: . | Q138: =C137&C138 -> .Business
C139: Business | D139: =IF('WK2 - Notional General Income'!D139="","",'WK2 - Notional General Income'!D139) ->  | H139: . | M139: . | Q139: =Q138 -> .Business
C140: Business | D140: =IF('WK2 - Notional General Income'!D140="","",'WK2 - Notional General Income'!D140) ->  | H140: . | M140: . | Q140: .Business
C141: Business | D141: =IF('WK2 - Notional General Income'!D141="","",'WK2 - Notional General Income'!D141) ->  | H141: . | M141: . | Q141: .Business
C142: Business | D142: =IF('WK2 - Notional General Income'!D142="","",'WK2 - Notional General Income'!D142) ->  | H142: . | M142: . | Q142: .Business
C143: Business | D143: =IF('WK2 - Notional General Income'!D143="","",'WK2 - Notional General Income'!D143) ->  | H143: . | M143: . | Q143: .Business
C144: Business | D144: =IF('WK2 - Notional General Income'!D144="","",'WK2 - Notional General Income'!D144) ->  | H144: . | M144: . | Q144: .Business
C145: Business | D145: =IF('WK2 - Notional General Income'!D145="","",'WK2 - Notional General Income'!D145) ->  | H145: . | M145: . | Q145: .Business
C146: Business | D146: =IF('WK2 - Notional General Income'!D146="","",'WK2 - Notional General Income'!D146) ->  | H146: =IF(G146="",".",E146*G146/M146) -> . | M146: =IF(E146="",".",IF(G146<>"",G146*E146+K146*(F146/100),(K146-L146)*(F146/100)+I146*J146)) -> . | Q146: .Business
C147: Business | D147: =IF('WK2 - Notional General Income'!D147="","",'WK2 - Notional General Income'!D147) ->  | H147: . | M147: . | Q147: .Business
C148: Business | D148: =IF('WK2 - Notional General Income'!D148="","",'WK2 - Notional General Income'!D148) ->  | H148: . | M148: . | Q148: .Business
C149: Business | D149: =IF('WK2 - Notional General Income'!D149="","",'WK2 - Notional General Income'!D149) ->  | H149: . | M149: . | Q149: .Business
C150: Business | D150: =IF('WK2 - Notional General Income'!D150="","",'WK2 - Notional General Income'!D150) ->  | H150: . | M150: . | Q150: .Business
C151: Business | D151: =IF('WK2 - Notional General Income'!D151="","",'WK2 - Notional General Income'!D151) ->  | H151: . | M151: . | Q151: .Business
C152: Business | D152: =IF('WK2 - Notional General Income'!D152="","",'WK2 - Notional General Income'!D152) ->  | H152: . | M152: . | Q152: .Business
C153: Business | D153: =IF('WK2 - Notional General Income'!D153="","",'WK2 - Notional General Income'!D153) ->  | H153: . | M153: . | Q153: .Business
C154: Business | D154: =IF('WK2 - Notional General Income'!D154="","",'WK2 - Notional General Income'!D154) ->  | H154: . | M154: . | Q154: .Business
D155: Total Business | E155: =SUM(E66:E154) -> 692 | J155: =SUM(J66:J154) -> 0 | K155: =SUM(K66:K154) -> 172889593 | L155: =SUM(L66:L154) -> 0 | M155: =SUM(M66:M154) -> 2728574.987
C156: =C$19 -> Armidale
C157: Farmland | D157: =IF('WK2 - Notional General Income'!D157="","",'WK2 - Notional General Income'!D157) -> Armidale | E157: 828 | F157: 0.151084 | G157: 1366 | H157: =IF(G157="",".",E157*G157/M157) -> 0.4379541326 | K157: 960739600 | M157: =IF(E157="",".",IF(G157<>"",G157*E157+K157*(F157/100),(K157-L157)*(F157/100)+I157*J157)) -> 2582571.817 | Q157: =C156&C157 -> ArmidaleFarmland
C158: Farmland | D158: =IF('WK2 - Notional General Income'!D158="","",'WK2 - Notional General Income'!D158) -> Conservation Agreements | H158: . | M158: . | Q158: =Q157 -> ArmidaleFarmland
C159: Farmland | D159: =IF('WK2 - Notional General Income'!D159="","",'WK2 - Notional General Income'!D159) ->  | H159: . | M159: . | Q159: =Q158 -> ArmidaleFarmland
C160: Farmland | D160: =IF('WK2 - Notional General Income'!D160="","",'WK2 - Notional General Income'!D160) ->  | H160: . | M160: . | Q160: ArmidaleFarmland
C161: Farmland | D161: =IF('WK2 - Notional General Income'!D161="","",'WK2 - Notional General Income'!D161) ->  | H161: . | M161: . | Q161: ArmidaleFarmland
C162: Farmland | D162: =IF('WK2 - Notional General Income'!D162="","",'WK2 - Notional General Income'!D162) ->  | H162: . | M162: . | Q162: ArmidaleFarmland
C163: Farmland | D163: =IF('WK2 - Notional General Income'!D163="","",'WK2 - Notional General Income'!D163) ->  | H163: . | M163: . | Q163: ArmidaleFarmland
C164: Farmland | D164: =IF('WK2 - Notional General Income'!D164="","",'WK2 - Notional General Income'!D164) ->  | H164: . | M164: . | Q164: ArmidaleFarmland
C165: =C$28 -> Dumaresq
C166: Farmland | D166: =IF('WK2 - Notional General Income'!D166="","",'WK2 - Notional General Income'!D166) ->  | H166: . | M166: . | Q166: =C165&C166 -> DumaresqFarmland
C167: Farmland | D167: =IF('WK2 - Notional General Income'!D167="","",'WK2 - Notional General Income'!D167) ->  | H167: . | M167: . | Q167: =Q166 -> DumaresqFarmland
C168: Farmland | D168: =IF('WK2 - Notional General Income'!D168="","",'WK2 - Notional General Income'!D168) ->  | H168: . | M168: . | Q168: =Q167 -> DumaresqFarmland
C169: Farmland | D169: =IF('WK2 - Notional General Income'!D169="","",'WK2 - Notional General Income'!D169) ->  | H169: . | M169: . | Q169: DumaresqFarmland
C170: Farmland | D170: =IF('WK2 - Notional General Income'!D170="","",'WK2 - Notional General Income'!D170) ->  | H170: . | M170: . | Q170: DumaresqFarmland
C171: Farmland | D171: =IF('WK2 - Notional General Income'!D171="","",'WK2 - Notional General Income'!D171) ->  | H171: . | M171: . | Q171: DumaresqFarmland
C172: Farmland | D172: =IF('WK2 - Notional General Income'!D172="","",'WK2 - Notional General Income'!D172) ->  | H172: . | M172: . | Q172: DumaresqFarmland
C173: Farmland | D173: =IF('WK2 - Notional General Income'!D173="","",'WK2 - Notional General Income'!D173) ->  | H173: . | M173: . | Q173: DumaresqFarmland
C174: =C$37 -> Guyra
C175: Farmland | D175: =IF('WK2 - Notional General Income'!D175="","",'WK2 - Notional General Income'!D175) -> Guyra | E175: 660 | F175: 0.151084 | G175: 1366 | H175: =IF(G175="",".",E175*G175/M175) -> 0.3729957751 | K175: 1003096500 | M175: =IF(E175="",".",IF(G175<>"",G175*E175+K175*(F175/100),(K175-L175)*(F175/100)+I175*J175)) -> 2417078.316 | Q175: =C174&C175 -> GuyraFarmland
C176: Farmland | D176: =IF('WK2 - Notional General Income'!D176="","",'WK2 - Notional General Income'!D176) -> Intensive | E176: 2 | F176: 0.715864 | G176: 1147 | H176: 0.1778853625 | K176: 1481000 | M176: 12895.94584 | Q176: =Q175 -> GuyraFarmland
C177: Farmland | D177: =IF('WK2 - Notional General Income'!D177="","",'WK2 - Notional General Income'!D177) -> Conservation Agreements | H177: =IF(G177="",".",E177*G177/M177) -> . | M177: . | Q177: GuyraFarmland
C178: Farmland | D178: =IF('WK2 - Notional General Income'!D178="","",'WK2 - Notional General Income'!D178) ->  | H178: . | M178: . | Q178: GuyraFarmland
C179: Farmland | D179: =IF('WK2 - Notional General Income'!D179="","",'WK2 - Notional General Income'!D179) ->  | H179: . | M179: . | Q179: GuyraFarmland
C180: Farmland | D180: =IF('WK2 - Notional General Income'!D180="","",'WK2 - Notional General Income'!D180) ->  | H180: . | M180: . | Q180: GuyraFarmland
C181: Farmland | D181: =IF('WK2 - Notional General Income'!D181="","",'WK2 - Notional General Income'!D181) ->  | H181: . | M181: . | Q181: GuyraFarmland
C182: Farmland | D182: =IF('WK2 - Notional General Income'!D182="","",'WK2 - Notional General Income'!D182) ->  | H182: . | M182: . | Q182: GuyraFarmland
C183: =C$46 -> .
C184: Farmland | D184: =IF('WK2 - Notional General Income'!D184="","",'WK2 - Notional General Income'!D184) ->  | H184: =IF(G184="",".",E184*G184/M184) -> . | M184: =IF(E184="",".",IF(G184<>"",G184*E184+K184*(F184/100),(K184-L184)*(F184/100)+I184*J184)) -> . | Q184: =C183&C184 -> .Farmland
C185: Farmland | D185: =IF('WK2 - Notional General Income'!D185="","",'WK2 - Notional General Income'!D185) ->  | H185: . | M185: . | Q185: .Farmland
C186: Farmland | D186: =IF('WK2 - Notional General Income'!D186="","",'WK2 - Notional General Income'!D186) ->  | H186: =IF(G186="",".",E186*G186/M186) -> . | M186: . | Q186: .Farmland
C187: Farmland | D187: =IF('WK2 - Notional General Income'!D187="","",'WK2 - Notional General Income'!D187) ->  | H187: . | M187: . | Q187: .Farmland
C188: Farmland | D188: =IF('WK2 - Notional General Income'!D188="","",'WK2 - Notional General Income'!D188) ->  | H188: . | M188: . | Q188: .Farmland
C189: Farmland | D189: =IF('WK2 - Notional General Income'!D189="","",'WK2 - Notional General Income'!D189) ->  | H189: . | M189: . | Q189: .Farmland
C190: Farmland | D190: =IF('WK2 - Notional General Income'!D190="","",'WK2 - Notional General Income'!D190) ->  | H190: . | M190: . | Q190: .Farmland
C191: Farmland | D191: =IF('WK2 - Notional General Income'!D191="","",'WK2 - Notional General Income'!D191) ->  | H191: . | M191: . | Q191: .Farmland
C192: =C$55 -> .
C193: Farmland | D193: =IF('WK2 - Notional General Income'!D193="","",'WK2 - Notional General Income'!D193) ->  | H193: =IF(G193="",".",E193*G193/M193) -> . | M193: . | Q193: =C192&C193 -> .Farmland
C194: Farmland | D194: =IF('WK2 - Notional General Income'!D194="","",'WK2 - Notional General Income'!D194) ->  | H194: . | M194: . | Q194: .Farmland
C195: Farmland | D195: =IF('WK2 - Notional General Income'!D195="","",'WK2 - Notional General Income'!D195) ->  | H195: . | M195: . | Q195: .Farmland
C196: Farmland | D196: =IF('WK2 - Notional General Income'!D196="","",'WK2 - Notional General Income'!D196) ->  | H196: . | M196: . | Q196: .Farmland
C197: Farmland | D197: =IF('WK2 - Notional General Income'!D197="","",'WK2 - Notional General Income'!D197) ->  | H197: . | M197: . | Q197: .Farmland
C198: Farmland | D198: =IF('WK2 - Notional General Income'!D198="","",'WK2 - Notional General Income'!D198) ->  | H198: . | M198: . | Q198: .Farmland
C199: Farmland | D199: =IF('WK2 - Notional General Income'!D199="","",'WK2 - Notional General Income'!D199) ->  | H199: . | M199: . | Q199: .Farmland
C200: Farmland | D200: =IF('WK2 - Notional General Income'!D200="","",'WK2 - Notional General Income'!D200) ->  | H200: . | M200: . | Q200: .Farmland
D201: Total Farmland | E201: =SUM(E157:E200) -> 1490 | J201: =SUM(J157:J200) -> 0 | K201: =SUM(K157:K200) -> 1965317100 | L201: =SUM(L157:L200) -> 0 | M201: =SUM(M157:M200) -> 5012546.079
C202: =C$19 -> Armidale
C203: Mining | D203: =IF('WK2 - Notional General Income'!D203="","",'WK2 - Notional General Income'!D203) -> Armidale | E203: 12 | F203: 8.740531 | G203: 995 | H203: =IF(G203="",".",E203*G203/M203) -> 0.1785697654 | K203: 628390 | M203: =IF(E203="",".",IF(G203<>"",G203*E203+K203*(F203/100),(K203-L203)*(F203/100)+I203*J203)) -> 66864.62275 | Q203: =C202&C203 -> ArmidaleMining
C204: Mining | D204: =IF('WK2 - Notional General Income'!D204="","",'WK2 - Notional General Income'!D204) ->  | H204: . | M204: . | Q204: =Q203 -> ArmidaleMining
C205: Mining | D205: =IF('WK2 - Notional General Income'!D205="","",'WK2 - Notional General Income'!D205) ->  | H205: . | M205: . | Q205: =Q204 -> ArmidaleMining
C206: Mining | D206: =IF('WK2 - Notional General Income'!D206="","",'WK2 - Notional General Income'!D206) ->  | H206: . | M206: . | Q206: ArmidaleMining
C207: Mining | D207: =IF('WK2 - Notional General Income'!D207="","",'WK2 - Notional General Income'!D207) ->  | H207: . | M207: . | Q207: ArmidaleMining
C208: Mining | D208: =IF('WK2 - Notional General Income'!D208="","",'WK2 - Notional General Income'!D208) ->  | H208: . | M208: . | Q208: ArmidaleMining
C209: Mining | D209: =IF('WK2 - Notional General Income'!D209="","",'WK2 - Notional General Income'!D209) ->  | H209: . | M209: . | Q209: ArmidaleMining
C210: Mining | D210: =IF('WK2 - Notional General Income'!D210="","",'WK2 - Notional General Income'!D210) ->  | H210: . | M210: . | Q210: ArmidaleMining
... 349 more rows

Sheet WK4 - PGI summary
C3: ='WK2 - Notional General Income'!$C$3 -> Armidale Regional Council
E5: WORKSHEET 4
E7: ="PERMISSIBLE GENERAL INCOME SUMMARY FOR "&'WK0 - Input data'!$D$45 -> PERMISSIBLE GENERAL INCOME SUMMARY FOR 2021-22
E8: All dollars in nominal terms
E9: Please check all income adjustments and expiring variation amounts with OLG
E10: before submitting the application. | J10: check = 0
C11: Prior year Notional General Income | H11: ='WK2 - Notional General Income'!M562 -> 19266735.82 | J11: =IF(H11=0,0,H11-G45) -> 0
C12: Less: | D12: Expiry of a prior special variation | H12: ='WK1 - Identification'!F79 -> 1468284 | J12: =IF(H12=0,0,H12-G46) -> 0
C14: Adjusted first year Notional General Income | G14: $ | H14: =H11-H12 -> 17798451.82
C16: Plus: | D16: Rate peg - first year | F16: ='WK1 - Identification'!G67 -> 0.02 | H16: =H$14*F16 -> 355969.0363 | J16: =IF(H16=0,0,H16-G49) -> 0
C17: Plus: | D17: =CHOOSE('WK1 - Identification'!$S$30,"Existing SV above rate peg - first year","na") -> na | F17: ='WK1 - Identification'!G68 -> 0 | H17: =H$14*F17 -> 0
C18: Plus: | D18: =CHOOSE('WK1 - Identification'!$S$40,"Additional increase that is temporary - first year","Additional increase - first year") -> Additional increase - first year | F18: ='WK1 - Identification'!G69 -> 0.085 | H18: 1512868.404 | J18: =IF(H18=0,0,H18-G51) -> 0
C19: Plus: | D19: =CHOOSE('WK1 - Identification'!$S$40,"Additional increase that is permanent - first year","na") -> na | F19: ='WK1 - Identification'!G70 -> 0 | H19: 0
C20: Plus: | D20: Crown Land adjustment - first year | F20: =IF(H14=0,0,H20/H14) -> 0 | H20: ='WK1 - Identification'!K49 -> 0 | J20: =IF(H20=0,0,H20-G53) -> 0
D22: Total special variation - first year | F22: =SUM(F16:F20) -> 0.105 | G22: $ | H22: =H14*F22 -> 1868837.441 | J22: =IF(H22=0,0,H22-G54) -> 2.328306437e-10
J23: =SUM(H16:H20)-H22 -> 0
C24: Other First Year Adjustments:
C25: Plus/Minus: | D25: Prior year Catch-up/(Excess) | H25: ='WK1 - Identification'!K50 -> 89294
C26: Minus: | D26: Valuation Objections claimed in prior year | H26: =-'WK1 - Identification'!K51 -> 0
F29: Total Adjustments | H29: =H25+H26 -> 89294 | J29: =H29-G57 -> 0
D31: First year Permissible General Income | G31: $ | H31: =H14+H22+H29 -> 19756583.26 | J31: =IF(H31=0,0,H31-G58) -> 0
B37: ="PERMISSABLE GENERAL INCOME (PGI) OVER PROPOSED SV PERIOD ("&E45&")" -> PERMISSABLE GENERAL INCOME (PGI) OVER PROPOSED SV PERIOD ($ nominal)
B38: Note: PGI estimates for years beyond proposed and/or exisiting SV period shown in light grey font. PGI beyond a temporary SV period = 0
F39: ='WK0 - Input data'!F$55 -> Year 0 | G39: ='WK0 - Input data'!G$55 -> Year 1 | H39: ='WK0 - Input data'!H$55 -> Year 2 | I39: ='WK0 - Input data'!I$55 -> Year 3 | J39: ='WK0 - Input data'!J$55 -> Year 4 | K39: ='WK0 - Input data'!K$55 -> Year 5 | L39: ='WK0 - Input data'!L$55 -> Year 6 | M39: ='WK0 - Input data'!M$55 -> Year 7 | N39: Total | O39: increase
C40: ='WK0 - Input data'!B$58 -> Financial year | E40: units | F40: ='WK0 - Input data'!F$58 -> 2020-21 | G40: ='WK0 - Input data'!G$58 -> 2021-22 | H40: ='WK0 - Input data'!H$58 -> 2022-23 | I40: ='WK0 - Input data'!I$58 -> 2023-24 | J40: ='WK0 - Input data'!J$58 -> 2024-25 | K40: ='WK0 - Input data'!K$58 -> 2025-26 | L40: ='WK0 - Input data'!L$58 -> 2026-27 | M40: ='WK0 - Input data'!M$58 -> 2027-28 | N40: =E45 -> $ nominal | O40: %
G41: =IF('WK1 - Identification'!G62=1,"Proposed SV period",IF(AND('WK1 - Identification'!G62=0,'WK1 - Identification'!G65>0),"Existing SV period","no SV")) -> Proposed SV period | H41: =IF('WK1 - Identification'!H62=1,"Proposed SV period",IF(AND('WK1 - Identification'!H62=0,'WK1 - Identification'!H65>0),"Existing SV period","no SV")) -> no SV | I41: =IF('WK1 - Identification'!I62=1,"Proposed SV period",IF(AND('WK1 - Identification'!I62=0,'WK1 - Identification'!I65>0),"Existing SV period","no SV")) -> no SV | J41: =IF('WK1 - Identification'!J62=1,"Proposed SV period",IF(AND('WK1 - Identification'!J62=0,'WK1 - Identification'!J65>0),"Existing SV period","no SV")) -> no SV | K41: =IF('WK1 - Identification'!K62=1,"Proposed SV period",IF(AND('WK1 - Identification'!K62=0,'WK1 - Identification'!K65>0),"Existing SV period","no SV")) -> no SV | L41: =IF('WK1 - Identification'!L62=1,"Proposed SV period",IF(AND('WK1 - Identification'!L62=0,'WK1 - Identification'!L65>0),"Existing SV period","no SV")) -> no SV | M41: =IF('WK1 - Identification'!M62=1,"Proposed SV period",IF(AND('WK1 - Identification'!M62=0,'WK1 - Identification'!M65>0),"Existing SV period","no SV")) -> no SV
C42: ='WK1 - Identification'!C63 -> 0 = beyond temporary SV period | F42: ='WK1 - Identification'!F63 -> 1 | G42: ='WK1 - Identification'!G63 -> 1 | H42: ='WK1 - Identification'!H63 -> 1 | I42: ='WK1 - Identification'!I63 -> 1 | J42: ='WK1 - Identification'!J63 -> 1 | K42: ='WK1 - Identification'!K63 -> 1 | L42: ='WK1 - Identification'!L63 -> 1 | M42: ='WK1 - Identification'!M63 -> 1
C44: PGI with proposed SV
C45: Prior year Notional General Income (NGI) | E45: ='WK0 - Input data'!$C$62 -> $ nominal | G45: =IF(G$42=0,0,F58) -> 19266735.82 | H45: =IF(H$42=0,0,G58) -> 19756583.26 | I45: 20250497.84 | J45: 20756760.29 | K45: 21275679.29 | L45: =IF(L$42=0,0,K58) -> 21807571.28 | M45: =IF(M$42=0,0,L58) -> 22352760.56
C46: less | D46: expiry of a prior special variation | E46: =E45 -> $ nominal | G46: ='WK1 - Identification'!F79 -> 1468284 | H46: ='WK1 - Identification'!G79 -> 0 | I46: ='WK1 - Identification'!H79 -> 0 | J46: ='WK1 - Identification'!I79 -> 0 | K46: ='WK1 - Identification'!J79 -> 0 | L46: ='WK1 - Identification'!K79 -> 0 | M46: =IF(M$42=0,0,'WK1 - Identification'!L79) -> 0
C47: Adjusted Notional General income | E47: =E46 -> $ nominal | G47: =G45-G46 -> 17798451.82 | H47: =H45-H46 -> 19756583.26 | I47: 20250497.84 | J47: 20756760.29 | K47: 21275679.29 | L47: =L45-L46 -> 21807571.28 | M47: 22352760.56
C49: plus | D49: rate peg increase | E49: =$E$45 -> $ nominal | G49: =G$47*'WK1 - Identification'!G67 -> 355969.0363 | H49: =H$47*'WK1 - Identification'!H67 -> 493914.5815 | I49: =I$47*'WK1 - Identification'!I67 -> 506262.446 | J49: =J$47*'WK1 - Identification'!J67 -> 518919.0071 | K49: =K$47*'WK1 - Identification'!K67 -> 531891.9823 | L49: =L$47*'WK1 - Identification'!L67 -> 545189.2819 | M49: =M$47*'WK1 - Identification'!M67 -> 558819.0139
C50: plus | D50: =CHOOSE('WK1 - Identification'!$S$30,"existing SV above rate peg","na") -> na | E50: =$E$45 -> $ nominal | G50: =G$47*'WK1 - Identification'!G68 -> 0 | H50: =H$47*'WK1 - Identification'!H68 -> 0 | I50: =I$47*'WK1 - Identification'!I68 -> 0 | J50: =J$47*'WK1 - Identification'!J68 -> 0 | K50: =K$47*'WK1 - Identification'!K68 -> 0 | L50: =L$47*'WK1 - Identification'!L68 -> 0 | M50: =M$47*'WK1 - Identification'!M68 -> 0
C51: =C49 -> plus | D51: =CHOOSE('WK1 - Identification'!$S$40,"additional increase that is temporary","additional increase") -> additional increase | E51: =E49 -> $ nominal | G51: =G$47*'WK1 - Identification'!G69 -> 1512868.404 | H51: =H$47*'WK1 - Identification'!H69 -> 0 | I51: =I$47*'WK1 - Identification'!I69 -> 0 | J51: =J$47*'WK1 - Identification'!J69 -> 0 | K51: =K$47*'WK1 - Identification'!K69 -> 0 | L51: =L$47*'WK1 - Identification'!L69 -> 0 | M51: =M$47*'WK1 - Identification'!M69 -> 0
C52: =C50 -> plus | D52: =CHOOSE('WK1 - Identification'!$S$40,"additional increase that is permanent","na") -> na | E52: =E50 -> $ nominal | G52: =G$47*'WK1 - Identification'!G70 -> 0 | H52: =H$47*'WK1 - Identification'!H70 -> 0 | I52: =I$47*'WK1 - Identification'!I70 -> 0 | J52: =J$47*'WK1 - Identification'!J70 -> 0 | K52: =K$47*'WK1 - Identification'!K70 -> 0 | L52: =L$47*'WK1 - Identification'!L70 -> 0 | M52: =M$47*'WK1 - Identification'!M70 -> 0
C53: =C51 -> plus | D53: Crown Land adjustment | E53: $ nominal | G53: =G$47*'WK1 - Identification'!G71 -> 0 | H53: =H$47*'WK1 - Identification'!H71 -> 0 | I53: =I$47*'WK1 - Identification'!I71 -> 0 | J53: =J$47*'WK1 - Identification'!J71 -> 0 | K53: =K$47*'WK1 - Identification'!K71 -> 0 | L53: =L$47*'WK1 - Identification'!L71 -> 0 | M53: =M$47*'WK1 - Identification'!M71 -> 0
C54: Total proposed SV | E54: =E53 -> $ nominal | G54: =SUM(G49:G53) -> 1868837.441 | H54: =SUM(H49:H53) -> 493914.5815 | I54: 506262.446 | J54: 518919.0071 | K54: 531891.9823 | L54: =SUM(L49:L53) -> 545189.2819 | M54: 558819.0139
C56: Notional General Income after SV applied | E56: =$E$45 -> $ nominal | G56: =G47+G54 -> 19667289.26 | H56: =H47+H54 -> 20250497.84 | I56: 20756760.29 | J56: 21275679.29 | K56: 21807571.28 | L56: =L47+L54 -> 22352760.56 | M56: 22911579.57
C57: =C49 -> plus | D57: other 1st-year adjustments | E57: =E56 -> $ nominal | G57: ='WK1 - Identification'!K50-'WK1 - Identification'!K51 -> 89294 | H57: 0 | I57: 0 | J57: 0 | K57: 0 | L57: 0 | M57: 0
C58: PGI with proposed SV | E58: =E57 -> $ nominal | F58: ='WK2 - Notional General Income'!M562 -> 19266735.82 | G58: =G56+G57 -> 19756583.26 | H58: =H56+H57 -> 20250497.84 | I58: 20756760.29 | J58: 21275679.29 | K58: 21807571.28 | L58: =L56+L57 -> 22352760.56 | M58: 22911579.57 | N58: =INDEX(F58:M58,'WK1 - Identification'!$S$37+1)-F58 -> 489847.4408 | O58: =IF(F58=0,0,N58/F58) -> 0.0254245164
C61: =CHOOSE('WK1 - Identification'!$S$30,"PGI if only the existing SV/rate peg applied","PGI if only the rate peg applied") -> PGI if only the rate peg applied
C62: =C45 -> Prior year Notional General Income (NGI) | E62: =$E$45 -> $ nominal | G62: =IF(G$42=0,0,F68) -> 19266735.82 | H62: 18243714.85 | I62: 18699807.73 | J62: 19167302.92 | K62: 19646485.49 | L62: 20137647.63 | M62: =IF(M$42=0,0,L68) -> 20641088.82
C63: =C46 -> less | D63: =D46 -> expiry of a prior special variation | E63: =E62 -> $ nominal | G63: =G46 -> 1468284 | H63: 0 | I63: 0 | J63: 0 | K63: 0 | L63: 0 | M63: =M46 -> 0
C64: =C47 -> Adjusted Notional General income | E64: =E63 -> $ nominal | G64: =G62-G63 -> 17798451.82 | H64: 18243714.85 | I64: 18699807.73 | J64: 19167302.92 | K64: 19646485.49 | L64: 20137647.63 | M64: =M62-M63 -> 20641088.82
C65: =C49 -> plus | D65: =D49 -> rate peg increase | E65: =$E$45 -> $ nominal | G65: =IF(G$42=0,0,'WK1 - Identification'!G67*G$64) -> 355969.0363 | H65: =IF(H$42=0,0,'WK1 - Identification'!H67*H$64) -> 456092.8713 | I65: =IF(I$42=0,0,'WK1 - Identification'!I67*I$64) -> 467495.1931 | J65: =IF(J$42=0,0,'WK1 - Identification'!J67*J$64) -> 479182.573 | K65: =IF(K$42=0,0,'WK1 - Identification'!K67*K$64) -> 491162.1373 | L65: =IF(L$42=0,0,'WK1 - Identification'!L67*L$64) -> 503441.1907 | M65: =IF(M$42=0,0,'WK1 - Identification'!M67*M$64) -> 516027.2205
C66: =C50 -> plus | D66: =D50 -> na | E66: =$E$45 -> $ nominal | G66: ='WK1 - Identification'!G68*G$64 -> 0 | H66: ='WK1 - Identification'!H68*H$64 -> 0 | I66: ='WK1 - Identification'!I68*I$64 -> 0 | J66: ='WK1 - Identification'!J68*J$64 -> 0 | K66: ='WK1 - Identification'!K68*K$64 -> 0 | L66: ='WK1 - Identification'!L68*L$64 -> 0 | M66: ='WK1 - Identification'!M68*M$64 -> 0
C67: =C57 -> plus | D67: =D57 -> other 1st-year adjustments | E67: =E65 -> $ nominal | G67: =G57 -> 89294 | H67: 0 | I67: 0 | J67: 0 | K67: 0 | L67: 0 | M67: =M57 -> 0
C68: =CHOOSE('WK1 - Identification'!$S$30,"PGI if only the existing SV/rate peg applied","PGI if only the rate peg applied") -> PGI if only the rate peg applied | E68: =E67 -> $ nominal | F68: =F58 -> 19266735.82 | G68: =SUM(G64:G67) -> 18243714.85 | H68: 18699807.73 | I68: 19167302.92 | J68: 19646485.49 | K68: 20137647.63 | L68: 20641088.82 | M68: =SUM(M64:M67) -> 21157116.04 | N68: =INDEX(F68:M68,'WK1 - Identification'!$S$37+1)-F68 -> -1023020.964 | O68: =IF(F68=0,0,N68/F68) -> -0.05309778332
C71: =CHOOSE('WK1 - Identification'!$S$30,"PGI if expiring SV renewed and only existing SV/rate peg applied","PGI if expiring SV renewed and only rate peg applied") -> PGI if expiring SV renewed and only rate peg applied
C72: =C62 -> Prior year Notional General Income (NGI) | E72: =$E$45 -> $ nominal | G72: =IF(G$42=0,0,F76) -> 19266735.82 | H72: 19741364.53 | I72: 20234898.65 | J72: 20740771.11 | K72: 21259290.39 | L72: 21790772.65 | M72: =IF(M$42=0,0,L76) -> 22335541.97
C73: =C65 -> plus | D73: rate peg increase | E73: =E72 -> $ nominal | G73: =G$72*'WK1 - Identification'!G67 -> 385334.7163 | H73: =H$72*'WK1 - Identification'!H67 -> 493534.1133 | I73: =I$72*'WK1 - Identification'!I67 -> 505872.4662 | J73: =J$72*'WK1 - Identification'!J67 -> 518519.2778 | K73: =K$72*'WK1 - Identification'!K67 -> 531482.2598 | L73: =L$72*'WK1 - Identification'!L67 -> 544769.3163 | M73: =M$72*'WK1 - Identification'!M67 -> 558388.5492
C74: plus | D74: na | E74: =E73 -> $ nominal | G74: =G$72*'WK1 - Identification'!G68 -> 0 | H74: =H$72*'WK1 - Identification'!H68 -> 0 | I74: =I$72*'WK1 - Identification'!I68 -> 0 | J74: =J$72*'WK1 - Identification'!J68 -> 0 | K74: =K$72*'WK1 - Identification'!K68 -> 0 | L74: =L$72*'WK1 - Identification'!L68 -> 0 | M74: =M$72*'WK1 - Identification'!M68 -> 0
C75: plus | D75: other 1st-year adjustments | E75: =E73 -> $ nominal | G75: =G57 -> 89294 | H75: 0 | I75: 0 | J75: 0 | K75: 0 | L75: 0 | M75: =M57 -> 0
C76: =C71 -> PGI if expiring SV renewed and only rate peg applied | E76: =E75 -> $ nominal | F76: =F58 -> 19266735.82 | G76: =SUM(G72:G75) -> 19741364.53 | H76: 20234898.65 | I76: 20740771.11 | J76: 21259290.39 | K76: 21790772.65 | L76: 22335541.97 | M76: =SUM(M72:M75) -> 22893930.52 | N76: =INDEX(F76:M76,'WK1 - Identification'!$S$37+1)-F76 -> 474628.7163 | O76: =IF(F76=0,0,N76/F76) -> 0.02463462004
B81: INCREASES IN PERMISSABLE GENERAL INCOME (PGI) OVER PROPOSED SV PERIOD (nominal)
B82: =$B$38 -> Note: PGI estimates for years beyond proposed and/or exisiting SV period shown in light grey font. PGI beyond a temporary SV period = 0
F83: =F$39 -> Year 0 | G83: Year 1 | H83: Year 2 | I83: Year 3 | J83: Year 4 | K83: Year 5 | L83: Year 6 | M83: Year 7 | N83: Total | O83: increase | Q83: check = 0
C84: =C$40 -> Financial year | F84: =F$40 -> 2020-21 | G84: 2021-22 | H84: 2022-23 | I84: 2023-24 | J84: 2024-25 | K84: 2025-26 | L84: 2026-27 | M84: 2027-28 | N84: =E92 -> $ nominal | O84: %
C86: Annual % increase in PGI
C87: =$C$58 -> PGI with proposed SV | E87: % | G87: =IF(F$58=0,0,G92/F$58) -> 0.0254245164 | H87: =IF(G$58=0,0,H92/G$58) -> 0.025 | I87: =IF(H$58=0,0,I92/H$58) -> 0.025 | J87: 0.025 | K87: =IF(J$58=0,0,K92/J$58) -> 0.025 | L87: =IF(K$58=0,0,L92/K$58) -> 0.025 | M87: =IF(L$58=0,0,M92/L$58) -> 0.025 | O87: =O58 -> 0.0254245164
C88: =$C$68 -> PGI if only the rate peg applied | E88: =E87 -> % | G88: =IF(F$58=0,0,G93/F$58) -> -0.05309778332 | H88: =IF(G$68=0,0,H93/G$68) -> 0.025 | I88: =IF(H$68=0,0,I93/H$68) -> 0.025 | J88: =IF(I$68=0,0,J93/I$68) -> 0.025 | K88: =IF(J$68=0,0,K93/J$68) -> 0.025 | L88: =IF(K$68=0,0,L93/K$68) -> 0.025 | M88: =IF(L$68=0,0,M93/L$68) -> 0.025 | O88: =O68 -> -0.05309778332
C89: =C76 -> PGI if expiring SV renewed and only rate peg applied | E89: =E88 -> % | G89: =IF(F$58=0,0,G94/F$58) -> 0.02463462004 | H89: =IF(G$76=0,0,H94/G$76) -> 0.025 | I89: 0.025 | J89: 0.025 | K89: 0.025 | L89: 0.025 | M89: 0.025 | O89: =O76 -> 0.02463462004
C91: Annual $ increase in PGI
C92: =C87 -> PGI with proposed SV | E92: =$E$45 -> $ nominal | G92: =IF(G$42=0,0,G58-F58) -> 489847.4408 | H92: 493914.5815 | I92: 506262.446 | J92: 518919.0071 | K92: 531891.9823 | L92: 545189.2819 | M92: 558819.0139 | N92: =SUMPRODUCT(G92:M92,'WK1 - Identification'!$G$62:$M$62) -> 489847.4408 | O92: =IF($F$58=0,0,N92/$F$58) -> 0.0254245164 | Q92: =N92-N58 -> 0
C93: =C88 -> PGI if only the rate peg applied | E93: =E92 -> $ nominal | G93: =IF(G$42=0,0,G68-F68) -> -1023020.964 | H93: 456092.8713 | I93: 467495.1931 | J93: 479182.573 | K93: 491162.1373 | L93: 503441.1907 | M93: =IF(M$42=0,0,M68-L68) -> 516027.2205 | N93: =SUMPRODUCT(G93:M93,'WK1 - Identification'!$G$62:$M$62) -> -1023020.964 | O93: =IF($F$58=0,0,N93/$F$58) -> -0.05309778332 | Q93: =N93-N68 -> 0
C94: =C89 -> PGI if expiring SV renewed and only rate peg applied | E94: =E93 -> $ nominal | G94: =IF(G$42=0,0,G76-F76) -> 474628.7163 | H94: 493534.1133 | I94: 505872.4662 | J94: 518519.2778 | K94: 531482.2598 | L94: 544769.3163 | M94: =IF(M$42=0,0,M76-L76) -> 558388.5492 | N94: =SUMPRODUCT(G94:M94,'WK1 - Identification'!$G$62:$M$62) -> 474628.7163 | O94: 0.02463462004 | Q94: =N94-N76 -> 0
C96: Annual $ increase in PGI with proposed SV more than:
C97: =C88 -> PGI if only the rate peg applied | E97: =$E$45 -> $ nominal | G97: =G92-G93 -> 1512868.404 | H97: 37821.71011 | I97: 38767.25286 | J97: =J92-J93 -> 39736.43419 | K97: 40729.84504 | L97: 41748.09117 | M97: =M92-M93 -> 42791.79345 | N97: =SUMPRODUCT(G97:M97,'WK1 - Identification'!$G$62:$M$62) -> 1512868.404 | O97: =O92-O93 -> 0.07852229972 | Q97: =IF(F68=0,0,(N58-N68)/F68-O97) -> 0
C98: =C89 -> PGI if expiring SV renewed and only rate peg applied | E98: =E97 -> $ nominal | G98: =G92-G94 -> 15218.72449 | H98: 380.4681121 | I98: 389.979815 | J98: =J92-J94 -> 399.7293103 | K98: 409.7225431 | L98: 419.9656067 | M98: =M92-M94 -> 430.4647468 | N98: =SUMPRODUCT(G98:M98,'WK1 - Identification'!$G$62:$M$62) -> 15218.72449 | O98: =O92-O94 -> 0.0007898963597 | Q98: =IF(F76=0,0,(N58-N76)/F76-O98) -> -2.710505431e-18
Q99: =N93-N92+N97 -> 0
C100: Cumulative PGI | Q100: =N94-N92+N98 -> 0
C101: =$C$58 -> PGI with proposed SV | E101: =E98 -> $ nominal | G101: =IF(G$42=0,0,SUM($G58:G58)) -> 19756583.26 | H101: =IF(H$42=0,0,SUM($G58:H58)) -> 40007081.1 | I101: =IF(I$42=0,0,SUM($G58:I58)) -> 60763841.38 | J101: =IF(J$42=0,0,SUM($G58:J58)) -> 82039520.68 | K101: =IF(K$42=0,0,SUM($G58:K58)) -> 103847092 | L101: =IF(L$42=0,0,SUM($G58:L58)) -> 126199852.5 | M101: =IF(M$42=0,0,SUM($G58:M58)) -> 149111432.1 | N101: =SUMPRODUCT(G101:M101,'WK1 - Identification'!$G$62:$M$62) -> 19756583.26
C102: =$C$68 -> PGI if only the rate peg applied | E102: =E101 -> $ nominal | G102: =IF(G$42=0,0,SUM($G68:G68)) -> 18243714.85 | H102: =IF(H$42=0,0,SUM($G68:H68)) -> 36943522.58 | I102: =IF(I$42=0,0,SUM($G68:I68)) -> 56110825.5 | J102: =IF(J$42=0,0,SUM($G68:J68)) -> 75757310.99 | K102: =IF(K$42=0,0,SUM($G68:K68)) -> 95894958.62 | L102: =IF(L$42=0,0,SUM($G68:L68)) -> 116536047.4 | M102: =IF(M$42=0,0,SUM($G68:M68)) -> 137693163.5 | N102: =SUMPRODUCT(G102:M102,'WK1 - Identification'!$G$62:$M$62) -> 18243714.85
C103: =C94 -> PGI if expiring SV renewed and only rate peg applied | E103: =E102 -> $ nominal | G103: =IF(G$42=0,0,SUM($G76:G76)) -> 19741364.53 | H103: =IF(H$42=0,0,SUM($G76:H76)) -> 39976263.18 | I103: =IF(I$42=0,0,SUM($G76:I76)) -> 60717034.29 | J103: =IF(J$42=0,0,SUM($G76:J76)) -> 81976324.69 | K103: =IF(K$42=0,0,SUM($G76:K76)) -> 103767097.3 | L103: =IF(L$42=0,0,SUM($G76:L76)) -> 126102639.3 | M103: =IF(M$42=0,0,SUM($G76:M76)) -> 148996569.8 | N103: =SUMPRODUCT(G103:M103,'WK1 - Identification'!$G$62:$M$62) -> 19741364.53
C105: Increase in cumulative PGI with proposed SV that exceeds the increase in the PGI under
C106: =C88 -> PGI if only the rate peg applied | E106: =$E$45 -> $ nominal | G106: =G$101-G102 -> 1512868.404 | H106: 3063558.519 | I106: 4653015.887 | J106: 6282209.688 | K106: 7952133.335 | L106: 9663805.073 | M106: =M$101-M102 -> 11418268.6 | N106: =SUMPRODUCT(G106:M106,'WK1 - Identification'!$G$62:$M$62) -> 1512868.404 | O106: =IF(N102=0,0,N106/N102) -> 0.0829254577 | Q106: =N101-N102-N106 -> 0
C107: =C89 -> PGI if expiring SV renewed and only rate peg applied | E107: =E106 -> $ nominal | G107: =G$101-G103 -> 15218.72449 | H107: 30817.91708 | I107: 46807.0895 | J107: 63195.99122 | K107: 79994.61549 | L107: 97213.20536 | M107: =M$101-M103 -> 114862.26 | N107: =SUMPRODUCT(G107:M107,'WK1 - Identification'!$G$62:$M$62) -> 15218.72449 | O107: =IF(N103=0,0,N107/N103) -> 0.0007709053981 | Q107: =N101-N103-N107 -> 0

Sheet WK5a(1) - Impact on Rates
C3: ='WK2 - Notional General Income'!$C$3 -> Armidale Regional Council | E3: Previous council area: | F3: =G5 -> Armidale
F5: WORKSHEET 5a | G5: ='WK1 - Identification'!$E$16 -> Armidale
F7: IMPACT ON MINIMUM RATES, AVERAGE RATES AND OTHER CHARGES
F8: All dollars in nominal terms
D10: The aim of this sheet is to show the minimum rate increase (if applicable), the average rate increase per sub-category
D11: (inclusive of all relevant rates) and the proposed annual charges in each year of the proposed special variation.
D12: It also aims to compare average rates with and without the proposed special variation.
D13: All ordinary rates and special rates need to be included.
D14: Note: rate estimates should reflect expected minimum or average rates, inclusive of any expiring variations.
F16: Minimum Rates - with proposed special variation
D17: If the council levies minimum rates for any category or sub-category, these rates should be detailed below.
D18: A separate minimum rates application is not necessary if the council is applying for a special variation
D19: that will have the effect of causing a minimum rate to exceed the statutory limit. | S19: Annual and cumulative increases
C21: Minimum Rates - with proposed special variation | H21: ='WK0 - Input data'!$C$63 -> $ nominal per year | J21: =$F$3 -> Armidale | O21: Number of assessments | S21: Annual increases (nominal $ per year) | AA21: Annual increases (%) | AI21: Cumulative increases (nominal $ per year) | AQ21: Cumulative increases (%)
C22: Category | D22: Sub-category or Special Rate name | E22: Current Minimum Rate | F22: Minimum Rate Year 1 | G22: Minimum Rate Year 2 | H22: Minimum Rate Year 3 | I22: Minimum Rate Year 4 | J22: Minimum Rate Year 5 | K22: Minimum Rate Year 6 | L22: Minimum Rate Year 7 | O22: (used to calculate average | S22: =C21 -> Minimum Rates - with proposed special variation | AA22: =$S22 -> Minimum Rates - with proposed special variation | AI22: =$S22 -> Minimum Rates - with proposed special variation | AQ22: =$S22 -> Minimum Rates - with proposed special variation
E23: ='WK1 - Identification'!F$61 -> 2020-21 | F23: ='WK1 - Identification'!G$61 -> 2021-22 | G23: ='WK1 - Identification'!H$61 -> 2022-23 | H23: ='WK1 - Identification'!I$61 -> 2023-24 | I23: ='WK1 - Identification'!J$61 -> 2024-25 | J23: ='WK1 - Identification'!K$61 -> 2025-26 | K23: ='WK1 - Identification'!L$61 -> 2026-27 | L23: ='WK1 - Identification'!M$61 -> 2027-28 | O23: rates) | S23: ='WK0 - Input data'!G55 -> Year 1 | T23: ='WK0 - Input data'!H55 -> Year 2 | U23: ='WK0 - Input data'!I55 -> Year 3 | V23: ='WK0 - Input data'!J55 -> Year 4 | W23: ='WK0 - Input data'!K55 -> Year 5 | X23: ='WK0 - Input data'!L55 -> Year 6 | Y23: ='WK0 - Input data'!M55 -> Year 7 | AA23: =AI23 -> Year 1 | AB23: Year 2 | AC23: Year 3 | AD23: Year 4 | AE23: Year 5 | AF23: Year 6 | AG23: Year 7 | AI23: =S23 -> Year 1 | AJ23: =T23 -> Year 2 | AK23: Year 3 | AL23: Year 4 | AM23: Year 5 | AN23: =X23 -> Year 6 | AO23: =Y23 -> Year 7 | AQ23: =AA23 -> Year 1 | AR23: Year 2 | AS23: Year 3 | AT23: Year 4 | AU23: Year 5 | AV23: Year 6 | AW23: Year 7
C24: ='WK3 - Notional GI Yr1 YIELD'!C20 -> Residential | D24: =IF('WK2 - Notional General Income'!D20="","",'WK2 - Notional General Income'!D20) -> Armidale | S24: =IF(F24=0,".",F24-E24) -> . | T24: =IF(G24="",".",G24-F24) -> . | U24: =IF(H24="",".",H24-G24) -> . | V24: =IF(I24="",".",I24-H24) -> . | W24: =IF(J24="",".",J24-I24) -> . | X24: =IF(K24="",".",K24-J24) -> . | Y24: =IF(L24="",".",L24-K24) -> . | AA24: =IFERROR(F24/E24-1,".") -> . | AB24: =IFERROR(G24/F24-1,".") -> . | AC24: . | AD24: . | AE24: . | AF24: . | AG24: . | AI24: =IF(S24=".",".",SUM($S24:S24)) -> . | AJ24: =IF(T24=".",".",SUM($S24:T24)) -> . | AK24: =IF(U24=".",".",SUM($S24:U24)) -> . | AL24: =IF(V24=".",".",SUM($S24:V24)) -> . | AM24: =IF(W24=".",".",SUM($S24:W24)) -> . | AN24: =IF(X24=".",".",SUM($S24:X24)) -> . | AO24: =IF(Y24=".",".",SUM($S24:Y24)) -> . | AQ24: =IFERROR(F24/$E24-1,".") -> . | AR24: =IFERROR(G24/$E24-1,".") -> . | AS24: . | AT24: . | AU24: . | AV24: . | AW24: .
C25: =C24 -> Residential | D25: =IF('WK2 - Notional General Income'!D21="","",'WK2 - Notional General Income'!D21) -> Armidale Non Urban | S25: =IF(F25="",".",F25-E25) -> . | T25: . | U25: . | V25: . | W25: . | X25: . | Y25: . | AA25: =IFERROR(F25/E25-1,".") -> . | AB25: . | AC25: . | AD25: . | AE25: . | AF25: . | AG25: . | AI25: =IF(S25=".",".",SUM($S25:S25)) -> . | AJ25: =IF(T25=".",".",SUM($S25:T25)) -> . | AK25: =IF(U25=".",".",SUM($S25:U25)) -> . | AL25: =IF(V25=".",".",SUM($S25:V25)) -> . | AM25: =IF(W25=".",".",SUM($S25:W25)) -> . | AN25: =IF(X25=".",".",SUM($S25:X25)) -> . | AO25: =IF(Y25=".",".",SUM($S25:Y25)) -> . | AQ25: =IFERROR(F25/$E25-1,".") -> . | AR25: . | AS25: . | AT25: . | AU25: . | AV25: . | AW25: .
C26: =C25 -> Residential | D26: =IF('WK2 - Notional General Income'!D22="","",'WK2 - Notional General Income'!D22) -> Wollomombi | S26: =IF(F26="",".",F26-E26) -> . | T26: . | U26: . | V26: . | W26: . | X26: . | Y26: . | AA26: . | AB26: . | AC26: . | AD26: . | AE26: . | AF26: . | AG26: . | AI26: =IF(S26=".",".",SUM($S26:S26)) -> . | AJ26: =IF(T26=".",".",SUM($S26:T26)) -> . | AK26: =IF(U26=".",".",SUM($S26:U26)) -> . | AL26: =IF(V26=".",".",SUM($S26:V26)) -> . | AM26: =IF(W26=".",".",SUM($S26:W26)) -> . | AN26: =IF(X26=".",".",SUM($S26:X26)) -> . | AO26: =IF(Y26=".",".",SUM($S26:Y26)) -> . | AQ26: . | AR26: . | AS26: . | AT26: . | AU26: . | AV26: . | AW26: .
C27: Residential | D27: =IF('WK2 - Notional General Income'!D23="","",'WK2 - Notional General Income'!D23) -> Ebor | S27: . | T27: . | U27: . | V27: . | W27: . | X27: . | Y27: . | AA27: . | AB27: . | AC27: . | AD27: . | AE27: . | AF27: . | AG27: . | AI27: =IF(S27=".",".",SUM($S27:S27)) -> . | AJ27: =IF(T27=".",".",SUM($S27:T27)) -> . | AK27: =IF(U27=".",".",SUM($S27:U27)) -> . | AL27: =IF(V27=".",".",SUM($S27:V27)) -> . | AM27: =IF(W27=".",".",SUM($S27:W27)) -> . | AN27: =IF(X27=".",".",SUM($S27:X27)) -> . | AO27: =IF(Y27=".",".",SUM($S27:Y27)) -> . | AQ27: . | AR27: . | AS27: . | AT27: . | AU27: . | AV27: . | AW27: .
C28: Residential | D28: =IF('WK2 - Notional General Income'!D24="","",'WK2 - Notional General Income'!D24) -> Hillgrove | S28: . | T28: . | U28: . | V28: . | W28: . | X28: . | Y28: . | AA28: . | AB28: . | AC28: . | AD28: . | AE28: . | AF28: . | AG28: . | AI28: =IF(S28=".",".",SUM($S28:S28)) -> . | AJ28: =IF(T28=".",".",SUM($S28:T28)) -> . | AK28: =IF(U28=".",".",SUM($S28:U28)) -> . | AL28: =IF(V28=".",".",SUM($S28:V28)) -> . | AM28: =IF(W28=".",".",SUM($S28:W28)) -> . | AN28: =IF(X28=".",".",SUM($S28:X28)) -> . | AO28: =IF(Y28=".",".",SUM($S28:Y28)) -> . | AQ28: . | AR28: . | AS28: . | AT28: . | AU28: . | AV28: . | AW28: .
C29: Residential | D29: =IF('WK2 - Notional General Income'!D25="","",'WK2 - Notional General Income'!D25) ->  | S29: =IF(F29="",".",F29-E29) -> . | T29: =IF(G29="",".",G29-F29) -> . | U29: =IF(H29="",".",H29-G29) -> . | V29: =IF(I29="",".",I29-H29) -> . | W29: =IF(J29="",".",J29-I29) -> . | X29: =IF(K29="",".",K29-J29) -> . | Y29: =IF(L29="",".",L29-K29) -> . | AA29: =IFERROR(F29/E29-1,".") -> . | AB29: =IFERROR(G29/F29-1,".") -> . | AC29: =IFERROR(H29/G29-1,".") -> . | AD29: =IFERROR(I29/H29-1,".") -> . | AE29: =IFERROR(J29/I29-1,".") -> . | AF29: =IFERROR(K29/J29-1,".") -> . | AG29: =IFERROR(L29/K29-1,".") -> . | AI29: =IF(S29=".",".",SUM($S29:S29)) -> . | AJ29: =IF(T29=".",".",SUM($S29:T29)) -> . | AK29: =IF(U29=".",".",SUM($S29:U29)) -> . | AL29: =IF(V29=".",".",SUM($S29:V29)) -> . | AM29: =IF(W29=".",".",SUM($S29:W29)) -> . | AN29: =IF(X29=".",".",SUM($S29:X29)) -> . | AO29: =IF(Y29=".",".",SUM($S29:Y29)) -> . | AQ29: =IFERROR(F29/$E29-1,".") -> . | AR29: =IFERROR(G29/$E29-1,".") -> . | AS29: =IFERROR(H29/$E29-1,".") -> . | AT29: =IFERROR(I29/$E29-1,".") -> . | AU29: =IFERROR(J29/$E29-1,".") -> . | AV29: =IFERROR(K29/$E29-1,".") -> . | AW29: =IFERROR(L29/$E29-1,".") -> .
C30: Residential | D30: =IF('WK2 - Notional General Income'!D26="","",'WK2 - Notional General Income'!D26) ->  | S30: . | T30: . | U30: . | V30: . | W30: . | X30: . | Y30: . | AA30: . | AB30: . | AC30: . | AD30: . | AE30: . | AF30: . | AG30: . | AI30: =IF(S30=".",".",SUM($S30:S30)) -> . | AJ30: =IF(T30=".",".",SUM($S30:T30)) -> . | AK30: =IF(U30=".",".",SUM($S30:U30)) -> . | AL30: =IF(V30=".",".",SUM($S30:V30)) -> . | AM30: =IF(W30=".",".",SUM($S30:W30)) -> . | AN30: =IF(X30=".",".",SUM($S30:X30)) -> . | AO30: =IF(Y30=".",".",SUM($S30:Y30)) -> . | AQ30: . | AR30: . | AS30: . | AT30: . | AU30: . | AV30: . | AW30: .
C31: Residential | D31: =IF('WK2 - Notional General Income'!D27="","",'WK2 - Notional General Income'!D27) ->  | S31: . | T31: . | U31: . | V31: . | W31: . | X31: . | Y31: . | AA31: . | AB31: . | AC31: . | AD31: . | AE31: . | AF31: . | AG31: . | AI31: =IF(S31=".",".",SUM($S31:S31)) -> . | AJ31: =IF(T31=".",".",SUM($S31:T31)) -> . | AK31: =IF(U31=".",".",SUM($S31:U31)) -> . | AL31: =IF(V31=".",".",SUM($S31:V31)) -> . | AM31: =IF(W31=".",".",SUM($S31:W31)) -> . | AN31: =IF(X31=".",".",SUM($S31:X31)) -> . | AO31: =IF(Y31=".",".",SUM($S31:Y31)) -> . | AQ31: . | AR31: . | AS31: . | AT31: . | AU31: . | AV31: . | AW31: .
AA32: . | AB32: . | AC32: . | AD32: . | AE32: . | AF32: . | AG32: . | AQ32: . | AR32: . | AS32: . | AT32: . | AU32: . | AV32: . | AW32: .
C33: ='WK3 - Notional GI Yr1 YIELD'!C66 -> Business | D33: =IF('WK2 - Notional General Income'!D66="","",'WK2 - Notional General Income'!D66) -> Armidale | S33: . | T33: . | U33: . | V33: . | W33: . | X33: . | Y33: . | AA33: . | AB33: . | AC33: . | AD33: . | AE33: . | AF33: . | AG33: . | AI33: =IF(S33=".",".",SUM($S33:S33)) -> . | AJ33: =IF(T33=".",".",SUM($S33:T33)) -> . | AK33: =IF(U33=".",".",SUM($S33:U33)) -> . | AL33: =IF(V33=".",".",SUM($S33:V33)) -> . | AM33: =IF(W33=".",".",SUM($S33:W33)) -> . | AN33: =IF(X33=".",".",SUM($S33:X33)) -> . | AO33: =IF(Y33=".",".",SUM($S33:Y33)) -> . | AQ33: . | AR33: . | AS33: . | AT33: . | AU33: . | AV33: . | AW33: .
C34: =C33 -> Business | D34: =IF('WK2 - Notional General Income'!D67="","",'WK2 - Notional General Income'!D67) -> Industrial | S34: . | T34: . | U34: . | V34: . | W34: . | X34: . | Y34: . | AA34: . | AB34: . | AC34: . | AD34: . | AE34: . | AF34: . | AG34: . | AI34: =IF(S34=".",".",SUM($S34:S34)) -> . | AJ34: =IF(T34=".",".",SUM($S34:T34)) -> . | AK34: =IF(U34=".",".",SUM($S34:U34)) -> . | AL34: =IF(V34=".",".",SUM($S34:V34)) -> . | AM34: =IF(W34=".",".",SUM($S34:W34)) -> . | AN34: =IF(X34=".",".",SUM($S34:X34)) -> . | AO34: =IF(Y34=".",".",SUM($S34:Y34)) -> . | AQ34: . | AR34: . | AS34: . | AT34: . | AU34: . | AV34: . | AW34: .
C35: =C34 -> Business | D35: =IF('WK2 - Notional General Income'!D68="","",'WK2 - Notional General Income'!D68) -> Non Urban | S35: . | T35: . | U35: . | V35: . | W35: . | X35: . | Y35: . | AA35: . | AB35: . | AC35: . | AD35: . | AE35: . | AF35: . | AG35: . | AI35: =IF(S35=".",".",SUM($S35:S35)) -> . | AJ35: =IF(T35=".",".",SUM($S35:T35)) -> . | AK35: =IF(U35=".",".",SUM($S35:U35)) -> . | AL35: =IF(V35=".",".",SUM($S35:V35)) -> . | AM35: =IF(W35=".",".",SUM($S35:W35)) -> . | AN35: =IF(X35=".",".",SUM($S35:X35)) -> . | AO35: =IF(Y35=".",".",SUM($S35:Y35)) -> . | AQ35: . | AR35: . | AS35: . | AT35: . | AU35: . | AV35: . | AW35: .
C36: Business | D36: =IF('WK2 - Notional General Income'!D69="","",'WK2 - Notional General Income'!D69) ->  | S36: . | T36: . | U36: . | V36: . | W36: . | X36: . | Y36: . | AA36: . | AB36: . | AC36: . | AD36: . | AE36: . | AF36: . | AG36: . | AI36: =IF(S36=".",".",SUM($S36:S36)) -> . | AJ36: =IF(T36=".",".",SUM($S36:T36)) -> . | AK36: =IF(U36=".",".",SUM($S36:U36)) -> . | AL36: =IF(V36=".",".",SUM($S36:V36)) -> . | AM36: =IF(W36=".",".",SUM($S36:W36)) -> . | AN36: =IF(X36=".",".",SUM($S36:X36)) -> . | AO36: =IF(Y36=".",".",SUM($S36:Y36)) -> . | AQ36: . | AR36: . | AS36: . | AT36: . | AU36: . | AV36: . | AW36: .
C37: Business | D37: =IF('WK2 - Notional General Income'!D70="","",'WK2 - Notional General Income'!D70) ->  | S37: . | T37: . | U37: . | V37: . | W37: . | X37: . | Y37: . | AA37: . | AB37: . | AC37: . | AD37: . | AE37: . | AF37: . | AG37: . | AI37: =IF(S37=".",".",SUM($S37:S37)) -> . | AJ37: =IF(T37=".",".",SUM($S37:T37)) -> . | AK37: =IF(U37=".",".",SUM($S37:U37)) -> . | AL37: =IF(V37=".",".",SUM($S37:V37)) -> . | AM37: =IF(W37=".",".",SUM($S37:W37)) -> . | AN37: =IF(X37=".",".",SUM($S37:X37)) -> . | AO37: =IF(Y37=".",".",SUM($S37:Y37)) -> . | AQ37: . | AR37: . | AS37: . | AT37: . | AU37: . | AV37: . | AW37: .
C38: Business | D38: =IF('WK2 - Notional General Income'!D71="","",'WK2 - Notional General Income'!D71) ->  | S38: . | T38: . | U38: . | V38: . | W38: . | X38: . | Y38: . | AA38: . | AB38: . | AC38: . | AD38: . | AE38: . | AF38: . | AG38: . | AI38: =IF(S38=".",".",SUM($S38:S38)) -> . | AJ38: =IF(T38=".",".",SUM($S38:T38)) -> . | AK38: =IF(U38=".",".",SUM($S38:U38)) -> . | AL38: =IF(V38=".",".",SUM($S38:V38)) -> . | AM38: =IF(W38=".",".",SUM($S38:W38)) -> . | AN38: =IF(X38=".",".",SUM($S38:X38)) -> . | AO38: =IF(Y38=".",".",SUM($S38:Y38)) -> . | AQ38: . | AR38: . | AS38: . | AT38: . | AU38: . | AV38: . | AW38: .
C39: Business | D39: =IF('WK2 - Notional General Income'!D72="","",'WK2 - Notional General Income'!D72) ->  | S39: . | T39: . | U39: . | V39: . | W39: . | X39: . | Y39: . | AA39: . | AB39: . | AC39: . | AD39: . | AE39: . | AF39: . | AG39: . | AI39: =IF(S39=".",".",SUM($S39:S39)) -> . | AJ39: =IF(T39=".",".",SUM($S39:T39)) -> . | AK39: =IF(U39=".",".",SUM($S39:U39)) -> . | AL39: =IF(V39=".",".",SUM($S39:V39)) -> . | AM39: =IF(W39=".",".",SUM($S39:W39)) -> . | AN39: =IF(X39=".",".",SUM($S39:X39)) -> . | AO39: =IF(Y39=".",".",SUM($S39:Y39)) -> . | AQ39: . | AR39: . | AS39: . | AT39: . | AU39: . | AV39: . | AW39: .
C40: Business | D40: =IF('WK2 - Notional General Income'!D73="","",'WK2 - Notional General Income'!D73) ->  | S40: . | T40: . | U40: . | V40: . | W40: . | X40: . | Y40: . | AA40: . | AB40: . | AC40: . | AD40: . | AE40: . | AF40: . | AG40: . | AI40: =IF(S40=".",".",SUM($S40:S40)) -> . | AJ40: =IF(T40=".",".",SUM($S40:T40)) -> . | AK40: =IF(U40=".",".",SUM($S40:U40)) -> . | AL40: =IF(V40=".",".",SUM($S40:V40)) -> . | AM40: =IF(W40=".",".",SUM($S40:W40)) -> . | AN40: =IF(X40=".",".",SUM($S40:X40)) -> . | AO40: =IF(Y40=".",".",SUM($S40:Y40)) -> . | AQ40: . | AR40: . | AS40: . | AT40: . | AU40: . | AV40: . | AW40: .
C41: Business | D41: =IF('WK2 - Notional General Income'!D74="","",'WK2 - Notional General Income'!D74) ->  | S41: . | T41: . | U41: . | V41: . | W41: . | X41: . | Y41: . | AA41: . | AB41: . | AC41: . | AD41: . | AE41: . | AF41: . | AG41: . | AI41: =IF(S41=".",".",SUM($S41:S41)) -> . | AJ41: =IF(T41=".",".",SUM($S41:T41)) -> . | AK41: =IF(U41=".",".",SUM($S41:U41)) -> . | AL41: =IF(V41=".",".",SUM($S41:V41)) -> . | AM41: =IF(W41=".",".",SUM($S41:W41)) -> . | AN41: =IF(X41=".",".",SUM($S41:X41)) -> . | AO41: =IF(Y41=".",".",SUM($S41:Y41)) -> . | AQ41: . | AR41: . | AS41: . | AT41: . | AU41: . | AV41: . | AW41: .
C42: Business | D42: =IF('WK2 - Notional General Income'!D75="","",'WK2 - Notional General Income'!D75) ->  | S42: . | T42: . | U42: . | V42: . | W42: . | X42: . | Y42: . | AA42: . | AB42: . | AC42: . | AD42: . | AE42: . | AF42: . | AG42: . | AI42: =IF(S42=".",".",SUM($S42:S42)) -> . | AJ42: =IF(T42=".",".",SUM($S42:T42)) -> . | AK42: =IF(U42=".",".",SUM($S42:U42)) -> . | AL42: =IF(V42=".",".",SUM($S42:V42)) -> . | AM42: =IF(W42=".",".",SUM($S42:W42)) -> . | AN42: =IF(X42=".",".",SUM($S42:X42)) -> . | AO42: =IF(Y42=".",".",SUM($S42:Y42)) -> . | AQ42: . | AR42: . | AS42: . | AT42: . | AU42: . | AV42: . | AW42: .
C43: Business | D43: =IF('WK2 - Notional General Income'!D76="","",'WK2 - Notional General Income'!D76) ->  | S43: . | T43: . | U43: . | V43: . | W43: . | X43: . | Y43: . | AA43: . | AB43: . | AC43: . | AD43: . | AE43: . | AF43: . | AG43: . | AI43: =IF(S43=".",".",SUM($S43:S43)) -> . | AJ43: =IF(T43=".",".",SUM($S43:T43)) -> . | AK43: =IF(U43=".",".",SUM($S43:U43)) -> . | AL43: =IF(V43=".",".",SUM($S43:V43)) -> . | AM43: =IF(W43=".",".",SUM($S43:W43)) -> . | AN43: =IF(X43=".",".",SUM($S43:X43)) -> . | AO43: =IF(Y43=".",".",SUM($S43:Y43)) -> . | AQ43: . | AR43: . | AS43: . | AT43: . | AU43: . | AV43: . | AW43: .
C44: Business | D44: =IF('WK2 - Notional General Income'!D77="","",'WK2 - Notional General Income'!D77) ->  | S44: . | T44: . | U44: . | V44: . | W44: . | X44: . | Y44: . | AA44: . | AB44: . | AC44: . | AD44: . | AE44: . | AF44: . | AG44: . | AI44: =IF(S44=".",".",SUM($S44:S44)) -> . | AJ44: =IF(T44=".",".",SUM($S44:T44)) -> . | AK44: =IF(U44=".",".",SUM($S44:U44)) -> . | AL44: =IF(V44=".",".",SUM($S44:V44)) -> . | AM44: =IF(W44=".",".",SUM($S44:W44)) -> . | AN44: =IF(X44=".",".",SUM($S44:X44)) -> . | AO44: =IF(Y44=".",".",SUM($S44:Y44)) -> . | AQ44: . | AR44: . | AS44: . | AT44: . | AU44: . | AV44: . | AW44: .
C45: Business | D45: =IF('WK2 - Notional General Income'!D78="","",'WK2 - Notional General Income'!D78) ->  | S45: . | T45: . | U45: . | V45: . | W45: . | X45: . | Y45: . | AA45: . | AB45: . | AC45: . | AD45: . | AE45: . | AF45: . | AG45: . | AI45: =IF(S45=".",".",SUM($S45:S45)) -> . | AJ45: =IF(T45=".",".",SUM($S45:T45)) -> . | AK45: =IF(U45=".",".",SUM($S45:U45)) -> . | AL45: =IF(V45=".",".",SUM($S45:V45)) -> . | AM45: =IF(W45=".",".",SUM($S45:W45)) -> . | AN45: =IF(X45=".",".",SUM($S45:X45)) -> . | AO45: =IF(Y45=".",".",SUM($S45:Y45)) -> . | AQ45: . | AR45: . | AS45: . | AT45: . | AU45: . | AV45: . | AW45: .
C46: Business | D46: =IF('WK2 - Notional General Income'!D79="","",'WK2 - Notional General Income'!D79) ->  | S46: . | T46: . | U46: . | V46: . | W46: . | X46: . | Y46: . | AA46: . | AB46: . | AC46: . | AD46: . | AE46: . | AF46: . | AG46: . | AI46: =IF(S46=".",".",SUM($S46:S46)) -> . | AJ46: =IF(T46=".",".",SUM($S46:T46)) -> . | AK46: =IF(U46=".",".",SUM($S46:U46)) -> . | AL46: =IF(V46=".",".",SUM($S46:V46)) -> . | AM46: =IF(W46=".",".",SUM($S46:W46)) -> . | AN46: =IF(X46=".",".",SUM($S46:X46)) -> . | AO46: =IF(Y46=".",".",SUM($S46:Y46)) -> . | AQ46: . | AR46: . | AS46: . | AT46: . | AU46: . | AV46: . | AW46: .
C47: Business | D47: =IF('WK2 - Notional General Income'!D80="","",'WK2 - Notional General Income'!D80) ->  | S47: =IF(F47="",".",F47-E47) -> . | T47: =IF(G47="",".",G47-F47) -> . | U47: =IF(H47="",".",H47-G47) -> . | V47: =IF(I47="",".",I47-H47) -> . | W47: =IF(J47="",".",J47-I47) -> . | X47: =IF(K47="",".",K47-J47) -> . | Y47: =IF(L47="",".",L47-K47) -> . | AA47: =IFERROR(F47/E47-1,".") -> . | AB47: =IFERROR(G47/F47-1,".") -> . | AC47: =IFERROR(H47/G47-1,".") -> . | AD47: =IFERROR(I47/H47-1,".") -> . | AE47: =IFERROR(J47/I47-1,".") -> . | AF47: =IFERROR(K47/J47-1,".") -> . | AG47: =IFERROR(L47/K47-1,".") -> . | AI47: =IF(S47=".",".",SUM($S47:S47)) -> . | AJ47: =IF(T47=".",".",SUM($S47:T47)) -> . | AK47: =IF(U47=".",".",SUM($S47:U47)) -> . | AL47: =IF(V47=".",".",SUM($S47:V47)) -> . | AM47: =IF(W47=".",".",SUM($S47:W47)) -> . | AN47: =IF(X47=".",".",SUM($S47:X47)) -> . | AO47: =IF(Y47=".",".",SUM($S47:Y47)) -> . | AQ47: =IFERROR(F47/$E47-1,".") -> . | AR47: =IFERROR(G47/$E47-1,".") -> . | AS47: =IFERROR(H47/$E47-1,".") -> . | AT47: =IFERROR(I47/$E47-1,".") -> . | AU47: =IFERROR(J47/$E47-1,".") -> . | AV47: =IFERROR(K47/$E47-1,".") -> . | AW47: =IFERROR(L47/$E47-1,".") -> .
C48: Business | D48: =IF('WK2 - Notional General Income'!D81="","",'WK2 - Notional General Income'!D81) ->  | S48: . | T48: . | U48: . | V48: . | W48: . | X48: . | Y48: . | AA48: . | AB48: . | AC48: . | AD48: . | AE48: . | AF48: . | AG48: . | AI48: =IF(S48=".",".",SUM($S48:S48)) -> . | AJ48: =IF(T48=".",".",SUM($S48:T48)) -> . | AK48: =IF(U48=".",".",SUM($S48:U48)) -> . | AL48: =IF(V48=".",".",SUM($S48:V48)) -> . | AM48: =IF(W48=".",".",SUM($S48:W48)) -> . | AN48: =IF(X48=".",".",SUM($S48:X48)) -> . | AO48: =IF(Y48=".",".",SUM($S48:Y48)) -> . | AQ48: . | AR48: . | AS48: . | AT48: . | AU48: . | AV48: . | AW48: .
C49: Business | D49: =IF('WK2 - Notional General Income'!D82="","",'WK2 - Notional General Income'!D82) ->  | S49: . | T49: . | U49: . | V49: . | W49: . | X49: . | Y49: . | AA49: . | AB49: . | AC49: . | AD49: . | AE49: . | AF49: . | AG49: . | AI49: =IF(S49=".",".",SUM($S49:S49)) -> . | AJ49: =IF(T49=".",".",SUM($S49:T49)) -> . | AK49: =IF(U49=".",".",SUM($S49:U49)) -> . | AL49: =IF(V49=".",".",SUM($S49:V49)) -> . | AM49: =IF(W49=".",".",SUM($S49:W49)) -> . | AN49: =IF(X49=".",".",SUM($S49:X49)) -> . | AO49: =IF(Y49=".",".",SUM($S49:Y49)) -> . | AQ49: . | AR49: . | AS49: . | AT49: . | AU49: . | AV49: . | AW49: .
AA50: . | AB50: . | AC50: . | AD50: . | AE50: . | AF50: . | AG50: . | AQ50: . | AR50: . | AS50: . | AT50: . | AU50: . | AV50: . | AW50: .
C51: ='WK3 - Notional GI Yr1 YIELD'!C157 -> Farmland | D51: =IF('WK2 - Notional General Income'!D157="","",'WK2 - Notional General Income'!D157) -> Armidale | S51: . | T51: . | U51: . | V51: . | W51: . | X51: . | Y51: . | AA51: . | AB51: . | AC51: . | AD51: . | AE51: . | AF51: . | AG51: . | AI51: =IF(S51=".",".",SUM($S51:S51)) -> . | AJ51: =IF(T51=".",".",SUM($S51:T51)) -> . | AK51: =IF(U51=".",".",SUM($S51:U51)) -> . | AL51: =IF(V51=".",".",SUM($S51:V51)) -> . | AM51: =IF(W51=".",".",SUM($S51:W51)) -> . | AN51: =IF(X51=".",".",SUM($S51:X51)) -> . | AO51: =IF(Y51=".",".",SUM($S51:Y51)) -> . | AQ51: . | AR51: . | AS51: . | AT51: . | AU51: . | AV51: . | AW51: .
C52: =C51 -> Farmland | D52: =IF('WK2 - Notional General Income'!D158="","",'WK2 - Notional General Income'!D158) -> Conservation Agreements | S52: . | T52: . | U52: . | V52: . | W52: . | X52: . | Y52: . | AA52: . | AB52: . | AC52: . | AD52: . | AE52: . | AF52: . | AG52: . | AI52: =IF(S52=".",".",SUM($S52:S52)) -> . | AJ52: =IF(T52=".",".",SUM($S52:T52)) -> . | AK52: =IF(U52=".",".",SUM($S52:U52)) -> . | AL52: =IF(V52=".",".",SUM($S52:V52)) -> . | AM52: =IF(W52=".",".",SUM($S52:W52)) -> . | AN52: =IF(X52=".",".",SUM($S52:X52)) -> . | AO52: =IF(Y52=".",".",SUM($S52:Y52)) -> . | AQ52: . | AR52: . | AS52: . | AT52: . | AU52: . | AV52: . | AW52: .
C53: Farmland | D53: =IF('WK2 - Notional General Income'!D159="","",'WK2 - Notional General Income'!D159) ->  | S53: . | T53: . | U53: . | V53: . | W53: . | X53: . | Y53: . | AA53: . | AB53: . | AC53: . | AD53: . | AE53: . | AF53: . | AG53: . | AI53: =IF(S53=".",".",SUM($S53:S53)) -> . | AJ53: =IF(T53=".",".",SUM($S53:T53)) -> . | AK53: =IF(U53=".",".",SUM($S53:U53)) -> . | AL53: =IF(V53=".",".",SUM($S53:V53)) -> . | AM53: =IF(W53=".",".",SUM($S53:W53)) -> . | AN53: =IF(X53=".",".",SUM($S53:X53)) -> . | AO53: =IF(Y53=".",".",SUM($S53:Y53)) -> . | AQ53: . | AR53: . | AS53: . | AT53: . | AU53: . | AV53: . | AW53: .
C54: Farmland | D54: =IF('WK2 - Notional General Income'!D160="","",'WK2 - Notional General Income'!D160) ->  | S54: . | T54: . | U54: . | V54: . | W54: . | X54: . | Y54: . | AA54: . | AB54: . | AC54: . | AD54: . | AE54: . | AF54: . | AG54: . | AI54: =IF(S54=".",".",SUM($S54:S54)) -> . | AJ54: =IF(T54=".",".",SUM($S54:T54)) -> . | AK54: =IF(U54=".",".",SUM($S54:U54)) -> . | AL54: =IF(V54=".",".",SUM($S54:V54)) -> . | AM54: =IF(W54=".",".",SUM($S54:W54)) -> . | AN54: =IF(X54=".",".",SUM($S54:X54)) -> . | AO54: =IF(Y54=".",".",SUM($S54:Y54)) -> . | AQ54: . | AR54: . | AS54: . | AT54: . | AU54: . | AV54: . | AW54: .
C55: Farmland | D55: =IF('WK2 - Notional General Income'!D161="","",'WK2 - Notional General Income'!D161) ->  | S55: . | T55: . | U55: . | V55: . | W55: . | X55: . | Y55: . | AA55: . | AB55: . | AC55: . | AD55: . | AE55: . | AF55: . | AG55: . | AI55: =IF(S55=".",".",SUM($S55:S55)) -> . | AJ55: =IF(T55=".",".",SUM($S55:T55)) -> . | AK55: =IF(U55=".",".",SUM($S55:U55)) -> . | AL55: =IF(V55=".",".",SUM($S55:V55)) -> . | AM55: =IF(W55=".",".",SUM($S55:W55)) -> . | AN55: =IF(X55=".",".",SUM($S55:X55)) -> . | AO55: =IF(Y55=".",".",SUM($S55:Y55)) -> . | AQ55: . | AR55: . | AS55: . | AT55: . | AU55: . | AV55: . | AW55: .
C56: Farmland | D56: =IF('WK2 - Notional General Income'!D162="","",'WK2 - Notional General Income'!D162) ->  | S56: =IF(F56="",".",F56-E56) -> . | T56: =IF(G56="",".",G56-F56) -> . | U56: =IF(H56="",".",H56-G56) -> . | V56: =IF(I56="",".",I56-H56) -> . | W56: =IF(J56="",".",J56-I56) -> . | X56: =IF(K56="",".",K56-J56) -> . | Y56: =IF(L56="",".",L56-K56) -> . | AA56: =IFERROR(F56/E56-1,".") -> . | AB56: =IFERROR(G56/F56-1,".") -> . | AC56: =IFERROR(H56/G56-1,".") -> . | AD56: =IFERROR(I56/H56-1,".") -> . | AE56: =IFERROR(J56/I56-1,".") -> . | AF56: =IFERROR(K56/J56-1,".") -> . | AG56: =IFERROR(L56/K56-1,".") -> . | AI56: =IF(S56=".",".",SUM($S56:S56)) -> . | AJ56: =IF(T56=".",".",SUM($S56:T56)) -> . | AK56: =IF(U56=".",".",SUM($S56:U56)) -> . | AL56: =IF(V56=".",".",SUM($S56:V56)) -> . | AM56: =IF(W56=".",".",SUM($S56:W56)) -> . | AN56: =IF(X56=".",".",SUM($S56:X56)) -> . | AO56: =IF(Y56=".",".",SUM($S56:Y56)) -> . | AQ56: =IFERROR(F56/$E56-1,".") -> . | AR56: =IFERROR(G56/$E56-1,".") -> . | AS56: =IFERROR(H56/$E56-1,".") -> . | AT56: =IFERROR(I56/$E56-1,".") -> . | AU56: =IFERROR(J56/$E56-1,".") -> . | AV56: =IFERROR(K56/$E56-1,".") -> . | AW56: =IFERROR(L56/$E56-1,".") -> .
C57: Farmland | D57: =IF('WK2 - Notional General Income'!D163="","",'WK2 - Notional General Income'!D163) ->  | S57: . | T57: . | U57: . | V57: . | W57: . | X57: . | Y57: . | AA57: . | AB57: . | AC57: . | AD57: . | AE57: . | AF57: . | AG57: . | AI57: =IF(S57=".",".",SUM($S57:S57)) -> . | AJ57: =IF(T57=".",".",SUM($S57:T57)) -> . | AK57: =IF(U57=".",".",SUM($S57:U57)) -> . | AL57: =IF(V57=".",".",SUM($S57:V57)) -> . | AM57: =IF(W57=".",".",SUM($S57:W57)) -> . | AN57: =IF(X57=".",".",SUM($S57:X57)) -> . | AO57: =IF(Y57=".",".",SUM($S57:Y57)) -> . | AQ57: . | AR57: . | AS57: . | AT57: . | AU57: . | AV57: . | AW57: .
C58: Farmland | D58: =IF('WK2 - Notional General Income'!D164="","",'WK2 - Notional General Income'!D164) ->  | S58: . | T58: . | U58: . | V58: . | W58: . | X58: . | Y58: . | AA58: . | AB58: . | AC58: . | AD58: . | AE58: . | AF58: . | AG58: . | AI58: =IF(S58=".",".",SUM($S58:S58)) -> . | AJ58: =IF(T58=".",".",SUM($S58:T58)) -> . | AK58: =IF(U58=".",".",SUM($S58:U58)) -> . | AL58: =IF(V58=".",".",SUM($S58:V58)) -> . | AM58: =IF(W58=".",".",SUM($S58:W58)) -> . | AN58: =IF(X58=".",".",SUM($S58:X58)) -> . | AO58: =IF(Y58=".",".",SUM($S58:Y58)) -> . | AQ58: . | AR58: . | AS58: . | AT58: . | AU58: . | AV58: . | AW58: .
C60: ='WK3 - Notional GI Yr1 YIELD'!C203 -> Mining | D60: =IF('WK2 - Notional General Income'!D203="","",'WK2 - Notional General Income'!D203) -> Armidale | S60: . | T60: . | U60: . | V60: . | W60: . | X60: . | Y60: . | AA60: . | AB60: . | AC60: . | AD60: . | AE60: . | AF60: . | AG60: . | AI60: =IF(S60=".",".",SUM($S60:S60)) -> . | AJ60: =IF(T60=".",".",SUM($S60:T60)) -> . | AK60: =IF(U60=".",".",SUM($S60:U60)) -> . | AL60: =IF(V60=".",".",SUM($S60:V60)) -> . | AM60: =IF(W60=".",".",SUM($S60:W60)) -> . | AN60: =IF(X60=".",".",SUM($S60:X60)) -> . | AO60: =IF(Y60=".",".",SUM($S60:Y60)) -> . | AQ60: . | AR60: . | AS60: . | AT60: . | AU60: . | AV60: . | AW60: .
C61: =C60 -> Mining | D61: =IF('WK2 - Notional General Income'!D204="","",'WK2 - Notional General Income'!D204) ->  | S61: . | T61: . | U61: . | V61: . | W61: . | X61: . | Y61: . | AA61: . | AB61: . | AC61: . | AD61: . | AE61: . | AF61: . | AG61: . | AI61: =IF(S61=".",".",SUM($S61:S61)) -> . | AJ61: =IF(T61=".",".",SUM($S61:T61)) -> . | AK61: =IF(U61=".",".",SUM($S61:U61)) -> . | AL61: =IF(V61=".",".",SUM($S61:V61)) -> . | AM61: =IF(W61=".",".",SUM($S61:W61)) -> . | AN61: =IF(X61=".",".",SUM($S61:X61)) -> . | AO61: =IF(Y61=".",".",SUM($S61:Y61)) -> . | AQ61: . | AR61: . | AS61: . | AT61: . | AU61: . | AV61: . | AW61: .
C62: =C61 -> Mining | D62: =IF('WK2 - Notional General Income'!D205="","",'WK2 - Notional General Income'!D205) ->  | S62: . | T62: . | U62: . | V62: . | W62: . | X62: . | Y62: . | AA62: . | AB62: . | AC62: . | AD62: . | AE62: . | AF62: . | AG62: . | AI62: =IF(S62=".",".",SUM($S62:S62)) -> . | AJ62: =IF(T62=".",".",SUM($S62:T62)) -> . | AK62: =IF(U62=".",".",SUM($S62:U62)) -> . | AL62: =IF(V62=".",".",SUM($S62:V62)) -> . | AM62: =IF(W62=".",".",SUM($S62:W62)) -> . | AN62: =IF(X62=".",".",SUM($S62:X62)) -> . | AO62: =IF(Y62=".",".",SUM($S62:Y62)) -> . | AQ62: . | AR62: . | AS62: . | AT62: . | AU62: . | AV62: . | AW62: .
C63: Mining | D63: =IF('WK2 - Notional General Income'!D206="","",'WK2 - Notional General Income'!D206) ->  | S63: . | T63: . | U63: . | V63: . | W63: . | X63: . | Y63: . | AA63: . | AB63: . | AC63: . | AD63: . | AE63: . | AF63: . | AG63: . | AI63: =IF(S63=".",".",SUM($S63:S63)) -> . | AJ63: =IF(T63=".",".",SUM($S63:T63)) -> . | AK63: =IF(U63=".",".",SUM($S63:U63)) -> . | AL63: =IF(V63=".",".",SUM($S63:V63)) -> . | AM63: =IF(W63=".",".",SUM($S63:W63)) -> . | AN63: =IF(X63=".",".",SUM($S63:X63)) -> . | AO63: =IF(Y63=".",".",SUM($S63:Y63)) -> . | AQ63: . | AR63: . | AS63: . | AT63: . | AU63: . | AV63: . | AW63: .
C64: Mining | D64: =IF('WK2 - Notional General Income'!D207="","",'WK2 - Notional General Income'!D207) ->  | S64: =IF(F64="",".",F64-E64) -> . | T64: =IF(G64="",".",G64-F64) -> . | U64: =IF(H64="",".",H64-G64) -> . | V64: =IF(I64="",".",I64-H64) -> . | W64: =IF(J64="",".",J64-I64) -> . | X64: =IF(K64="",".",K64-J64) -> . | Y64: =IF(L64="",".",L64-K64) -> . | AA64: =IFERROR(F64/E64-1,".") -> . | AB64: =IFERROR(G64/F64-1,".") -> . | AC64: =IFERROR(H64/G64-1,".") -> . | AD64: =IFERROR(I64/H64-1,".") -> . | AE64: =IFERROR(J64/I64-1,".") -> . | AF64: =IFERROR(K64/J64-1,".") -> . | AG64: =IFERROR(L64/K64-1,".") -> . | AI64: =IF(S64=".",".",SUM($S64:S64)) -> . | AJ64: =IF(T64=".",".",SUM($S64:T64)) -> . | AK64: =IF(U64=".",".",SUM($S64:U64)) -> . | AL64: =IF(V64=".",".",SUM($S64:V64)) -> . | AM64: =IF(W64=".",".",SUM($S64:W64)) -> . | AN64: =IF(X64=".",".",SUM($S64:X64)) -> . | AO64: =IF(Y64=".",".",SUM($S64:Y64)) -> . | AQ64: =IFERROR(F64/$E64-1,".") -> . | AR64: =IFERROR(G64/$E64-1,".") -> . | AS64: =IFERROR(H64/$E64-1,".") -> . | AT64: =IFERROR(I64/$E64-1,".") -> . | AU64: =IFERROR(J64/$E64-1,".") -> . | AV64: =IFERROR(K64/$E64-1,".") -> . | AW64: =IFERROR(L64/$E64-1,".") -> .
C65: Mining | D65: =IF('WK2 - Notional General Income'!D208="","",'WK2 - Notional General Income'!D208) ->  | S65: . | T65: . | U65: . | V65: . | W65: . | X65: . | Y65: . | AA65: . | AB65: . | AC65: . | AD65: . | AE65: . | AF65: . | AG65: . | AI65: =IF(S65=".",".",SUM($S65:S65)) -> . | AJ65: =IF(T65=".",".",SUM($S65:T65)) -> . | AK65: =IF(U65=".",".",SUM($S65:U65)) -> . | AL65: =IF(V65=".",".",SUM($S65:V65)) -> . | AM65: =IF(W65=".",".",SUM($S65:W65)) -> . | AN65: =IF(X65=".",".",SUM($S65:X65)) -> . | AO65: =IF(Y65=".",".",SUM($S65:Y65)) -> . | AQ65: . | AR65: . | AS65: . | AT65: . | AU65: . | AV65: . | AW65: .
C66: Mining | D66: =IF('WK2 - Notional General Income'!D209="","",'WK2 - Notional General Income'!D209) ->  | S66: . | T66: . | U66: . | V66: . | W66: . | X66: . | Y66: . | AA66: . | AB66: . | AC66: . | AD66: . | AE66: . | AF66: . | AG66: . | AI66: =IF(S66=".",".",SUM($S66:S66)) -> . | AJ66: =IF(T66=".",".",SUM($S66:T66)) -> . | AK66: =IF(U66=".",".",SUM($S66:U66)) -> . | AL66: =IF(V66=".",".",SUM($S66:V66)) -> . | AM66: =IF(W66=".",".",SUM($S66:W66)) -> . | AN66: =IF(X66=".",".",SUM($S66:X66)) -> . | AO66: =IF(Y66=".",".",SUM($S66:Y66)) -> . | AQ66: . | AR66: . | AS66: . | AT66: . | AU66: . | AV66: . | AW66: .
C67: Mining | D67: =IF('WK2 - Notional General Income'!D210="","",'WK2 - Notional General Income'!D210) ->  | S67: . | T67: . | U67: . | V67: . | W67: . | X67: . | Y67: . | AA67: . | AB67: . | AC67: . | AD67: . | AE67: . | AF67: . | AG67: . | AI67: =IF(S67=".",".",SUM($S67:S67)) -> . | AJ67: =IF(T67=".",".",SUM($S67:T67)) -> . | AK67: =IF(U67=".",".",SUM($S67:U67)) -> . | AL67: =IF(V67=".",".",SUM($S67:V67)) -> . | AM67: =IF(W67=".",".",SUM($S67:W67)) -> . | AN67: =IF(X67=".",".",SUM($S67:X67)) -> . | AO67: =IF(Y67=".",".",SUM($S67:Y67)) -> . | AQ67: . | AR67: . | AS67: . | AT67: . | AU67: . | AV67: . | AW67: .
C72: Average Ordinary and Special Rates - with proposed special variation | H72: =$H$21 -> $ nominal per year | J72: =$F$3 -> Armidale | S72: =S$21 -> Annual increases (nominal $ per year) | AA72: =AA$21 -> Annual increases (%) | AI72: =AI$21 -> Cumulative increases (nominal $ per year) | AQ72: =AQ$21 -> Cumulative increases (%)
C73: Category | D73: Sub-category or Special Rate name | E73: Current Average Rate | F73: Average Rate Year 1 | G73: Average Rate Year 2 | H73: Average Rate Year 3 | I73: Average Rate Year 4 | J73: Average Rate Year 5 | K73: Average Rate Year 6 | L73: Average Rate Year 7 | O73: ='WK2 - Notional General Income'!$E18 -> Number of Assessments | S73: Average Rates - with proposed special variation | AA73: =$S73 -> Average Rates - with proposed special variation | AI73: =$S73 -> Average Rates - with proposed special variation | AQ73: =$S73 -> Average Rates - with proposed special variation
E74: =E23 -> 2020-21 | F74: 2021-22 | G74: 2022-23 | H74: 2023-24 | I74: 2024-25 | J74: 2025-26 | K74: 2026-27 | L74: 2027-28 | O74: =E74 -> 2020-21 | P74: =F74 -> 2021-22 | S74: =S$23 -> Year 1 | T74: =T$23 -> Year 2 | U74: Year 3 | V74: Year 4 | W74: Year 5 | X74: Year 6 | Y74: Year 7 | AA74: =AA$23 -> Year 1 | AB74: Year 2 | AC74: Year 3 | AD74: Year 4 | AE74: Year 5 | AF74: Year 6 | AG74: Year 7 | AI74: =AI$23 -> Year 1 | AJ74: =AJ$23 -> Year 2 | AK74: Year 3 | AL74: Year 4 | AM74: Year 5 | AN74: Year 6 | AO74: Year 7 | AQ74: =AQ$23 -> Year 1 | AR74: =AR$23 -> Year 2 | AS74: Year 3 | AT74: Year 4 | AU74: Year 5 | AV74: Year 6 | AW74: Year 7
C75: ='WK2 - Notional General Income'!C20 -> Residential | D75: =IF('WK2 - Notional General Income'!D20="","",'WK2 - Notional General Income'!D20) -> Armidale | E75: =IF('WK2 - Notional General Income'!M20=".",".",'WK2 - Notional General Income'!M20/'WK2 - Notional General Income'!E20) -> 1125.508913 | F75: =IF('WK3 - Notional GI Yr1 YIELD'!M20=".",".",'WK3 - Notional GI Yr1 YIELD'!M20/'WK3 - Notional GI Yr1 YIELD'!E20) -> 1152.873484 | G75: =F75*1.025 -> 1181.695321 | H75: =G75*1.025 -> 1211.237704 | I75: 1241.518646 | J75: 1272.556613 | K75: 1304.370528 | L75: 1336.979791 | O75: ='WK2 - Notional General Income'!$E20 -> 8227 | P75: ='WK3 - Notional GI Yr1 YIELD'!$E20 -> 8239 | S75: =IF(OR(E75=".",F75="."),".",F75-E75) -> 27.36457077 | T75: =IF(OR(F75=".",G75="."),".",G75-F75) -> 28.82183709 | U75: =IF(H75="",".",H75-G75) -> 29.54238302 | V75: =IF(I75="",".",I75-H75) -> 30.2809426 | W75: =IF(J75="",".",J75-I75) -> 31.03796616 | X75: =IF(K75="",".",K75-J75) -> 31.81391532 | Y75: =IF(L75="",".",L75-K75) -> 32.6092632 | AA75: =IFERROR(F75/E75-1,".") -> 0.02431306448 | AB75: =IFERROR(G75/F75-1,".") -> 0.025 | AC75: =IFERROR(H75/G75-1,".") -> 0.025 | AD75: =IFERROR(I75/H75-1,".") -> 0.025 | AE75: =IFERROR(J75/I75-1,".") -> 0.025 | AF75: =IFERROR(K75/J75-1,".") -> 0.025 | AG75: =IFERROR(L75/K75-1,".") -> 0.025 | AI75: =IF(S75=".",".",SUM($S75:S75)) -> 27.36457077 | AJ75: =IF(T75=".",".",SUM($S75:T75)) -> 56.18640786 | AK75: =IF(U75=".",".",SUM($S75:U75)) -> 85.72879089 | AL75: =IF(V75=".",".",SUM($S75:V75)) -> 116.0097335 | AM75: =IF(W75=".",".",SUM($S75:W75)) -> 147.0476996 | AN75: =IF(X75=".",".",SUM($S75:X75)) -> 178.861615 | AO75: =IF(Y75=".",".",SUM($S75:Y75)) -> 211.4708782 | AQ75: =IFERROR(F75/$E75-1,".") -> 0.02431306448 | AR75: =IFERROR(G75/$E75-1,".") -> 0.04992089109 | AS75: =IFERROR(H75/$E75-1,".") -> 0.07616891336 | AT75: =IFERROR(I75/$E75-1,".") -> 0.1030731362 | AU75: =IFERROR(J75/$E75-1,".") -> 0.1306499646 | AV75: =IFERROR(K75/$E75-1,".") -> 0.1589162137 | AW75: =IFERROR(L75/$E75-1,".") -> 0.1878891191
C76: ='WK2 - Notional General Income'!C21 -> Residential | D76: =IF('WK2 - Notional General Income'!D21="","",'WK2 - Notional General Income'!D21) -> Armidale Non Urban | E76: =IF('WK2 - Notional General Income'!M21=".",".",'WK2 - Notional General Income'!M21/'WK2 - Notional General Income'!E21) -> 1148.792959 | F76: =IF('WK3 - Notional GI Yr1 YIELD'!M21=".",".",'WK3 - Notional GI Yr1 YIELD'!M21/'WK3 - Notional GI Yr1 YIELD'!E21) -> 1165.310183 | G76: =F76*1.025 -> 1194.442937 | H76: 1224.304011 | I76: 1254.911611 | J76: 1286.284401 | K76: 1318.441512 | L76: 1351.402549 | O76: ='WK2 - Notional General Income'!$E21 -> 1075 | P76: ='WK3 - Notional GI Yr1 YIELD'!$E21 -> 1071 | S76: =IF(OR(E76=".",F76="."),".",F76-E76) -> 16.51722411 | T76: =IF(OR(F76=".",G76="."),".",G76-F76) -> 29.13275457 | U76: 29.86107344 | V76: 30.60760027 | W76: 31.37279028 | X76: 32.15711004 | Y76: 32.96103779 | AA76: =IFERROR(F76/E76-1,".") -> 0.01437789462 | AB76: 0.025 | AC76: 0.025 | AD76: 0.025 | AE76: 0.025 | AF76: 0.025 | AG76: 0.025 | AI76: =IF(S76=".",".",SUM($S76:S76)) -> 16.51722411 | AJ76: =IF(T76=".",".",SUM($S76:T76)) -> 45.64997868 | AK76: =IF(U76=".",".",SUM($S76:U76)) -> 75.51105212 | AL76: =IF(V76=".",".",SUM($S76:V76)) -> 106.1186524 | AM76: =IF(W76=".",".",SUM($S76:W76)) -> 137.4914427 | AN76: =IF(X76=".",".",SUM($S76:X76)) -> 169.6485527 | AO76: =IF(Y76=".",".",SUM($S76:Y76)) -> 202.6095905 | AQ76: =IFERROR(F76/$E76-1,".") -> 0.01437789462 | AR76: 0.03973734199 | AS76: 0.06573077554 | AT76: 0.09237404493 | AU76: 0.119683396 | AV76: 0.147675481 | AW76: 0.176367368
C77: ='WK2 - Notional General Income'!C22 -> Residential | D77: =IF('WK2 - Notional General Income'!D22="","",'WK2 - Notional General Income'!D22) -> Wollomombi | E77: =IF('WK2 - Notional General Income'!M22=".",".",'WK2 - Notional General Income'!M22/'WK2 - Notional General Income'!E22) -> 576.176325 | F77: =IF('WK3 - Notional GI Yr1 YIELD'!M22=".",".",'WK3 - Notional GI Yr1 YIELD'!M22/'WK3 - Notional GI Yr1 YIELD'!E22) -> 591.0397487 | G77: =F77*1.025 -> 605.8157425 | H77: 620.961136 | I77: 636.4851644 | J77: 652.3972935 | K77: 668.7072259 | L77: 685.4249065 | O77: ='WK2 - Notional General Income'!$E22 -> 16 | P77: ='WK3 - Notional GI Yr1 YIELD'!$E22 -> 16 | S77: 14.86342375 | T77: 14.77599372 | U77: 15.14539356 | V77: 15.5240284 | W77: 15.91212911 | X77: 16.30993234 | Y77: 16.71768065 | AA77: 0.02579665825 | AB77: 0.025 | AC77: 0.025 | AD77: 0.025 | AE77: 0.025 | AF77: 0.025 | AG77: 0.025 | AI77: =IF(S77=".",".",SUM($S77:S77)) -> 14.86342375 | AJ77: =IF(T77=".",".",SUM($S77:T77)) -> 29.63941747 | AK77: =IF(U77=".",".",SUM($S77:U77)) -> 44.78481103 | AL77: =IF(V77=".",".",SUM($S77:V77)) -> 60.30883943 | AM77: =IF(W77=".",".",SUM($S77:W77)) -> 76.22096854 | AN77: =IF(X77=".",".",SUM($S77:X77)) -> 92.53090088 | AO77: =IF(Y77=".",".",SUM($S77:Y77)) -> 109.2485815 | AQ77: 0.02579665825 | AR77: 0.05144157471 | AS77: 0.07772761408 | AT77: 0.1046708044 | AU77: 0.1322875745 | AV77: 0.1605947639 | AW77: 0.189609633
C78: ='WK2 - Notional General Income'!C23 -> Residential | D78: =IF('WK2 - Notional General Income'!D23="","",'WK2 - Notional General Income'!D23) -> Ebor | E78: =IF('WK2 - Notional General Income'!M23=".",".",'WK2 - Notional General Income'!M23/'WK2 - Notional General Income'!E23) -> 556.1224267 | F78: =IF('WK3 - Notional GI Yr1 YIELD'!M23=".",".",'WK3 - Notional GI Yr1 YIELD'!M23/'WK3 - Notional GI Yr1 YIELD'!E23) -> 430.3831088 | G78: =F78*1.025 -> 441.1426865 | H78: 452.1712537 | I78: 463.475535 | J78: 475.0624234 | K78: 486.938984 | L78: 499.1124586 | O78: ='WK2 - Notional General Income'!$E23 -> 15 | P78: ='WK3 - Notional GI Yr1 YIELD'!$E23 -> 15 | S78: -125.7393179 | T78: 10.75957772 | U78: 11.02856716 | V78: 11.30428134 | W78: 11.58688838 | X78: 11.87656059 | Y78: 12.1734746 | AA78: -0.2261000669 | AB78: 0.025 | AC78: 0.025 | AD78: 0.025 | AE78: 0.025 | AF78: 0.025 | AG78: 0.025 | AI78: =IF(S78=".",".",SUM($S78:S78)) -> -125.7393179 | AJ78: =IF(T78=".",".",SUM($S78:T78)) -> -114.9797401 | AK78: =IF(U78=".",".",SUM($S78:U78)) -> -103.951173 | AL78: =IF(V78=".",".",SUM($S78:V78)) -> -92.64689164 | AM78: =IF(W78=".",".",SUM($S78:W78)) -> -81.06000327 | AN78: =IF(X78=".",".",SUM($S78:X78)) -> -69.18344268 | AO78: =IF(Y78=".",".",SUM($S78:Y78)) -> -57.00996808 | AQ78: -0.2261000669 | AR78: -0.2067525686 | AS78: -0.1869213828 | AT78: -0.1665944173 | AU78: -0.1457592778 | AV78: -0.1244032597 | AW78: -0.1025133412
C79: ='WK2 - Notional General Income'!C24 -> Residential | D79: =IF('WK2 - Notional General Income'!D24="","",'WK2 - Notional General Income'!D24) -> Hillgrove | E79: =IF('WK2 - Notional General Income'!M24=".",".",'WK2 - Notional General Income'!M24/'WK2 - Notional General Income'!E24) -> 601.8732266 | F79: =IF('WK3 - Notional GI Yr1 YIELD'!M24=".",".",'WK3 - Notional GI Yr1 YIELD'!M24/'WK3 - Notional GI Yr1 YIELD'!E24) -> 598.7215639 | G79: =F79*1.025 -> 613.689603 | H79: 629.031843 | I79: 644.7576391 | J79: 660.8765801 | K79: 677.3984946 | L79: 694.333457 | O79: ='WK2 - Notional General Income'!$E24 -> 96 | P79: ='WK3 - Notional GI Yr1 YIELD'!$E24 -> 99 | S79: -3.151662699 | T79: 14.9680391 | U79: 15.34224007 | V79: 15.72579608 | W79: 16.11894098 | X79: 16.5219145 | Y79: 16.93496236 | AA79: -0.005236422821 | AB79: 0.025 | AC79: 0.025 | AD79: 0.025 | AE79: 0.025 | AF79: 0.025 | AG79: 0.025 | AI79: =IF(S79=".",".",SUM($S79:S79)) -> -3.151662699 | AJ79: =IF(T79=".",".",SUM($S79:T79)) -> 11.8163764 | AK79: =IF(U79=".",".",SUM($S79:U79)) -> 27.15861647 | AL79: =IF(V79=".",".",SUM($S79:V79)) -> 42.88441255 | AM79: =IF(W79=".",".",SUM($S79:W79)) -> 59.00335353 | AN79: =IF(X79=".",".",SUM($S79:X79)) -> 75.52526803 | AO79: =IF(Y79=".",".",SUM($S79:Y79)) -> 92.46023039 | AQ79: -0.005236422821 | AR79: 0.01963266661 | AS79: 0.04512348327 | AT79: 0.07125157036 | AU79: 0.09803285961 | AV79: 0.1254836811 | AW79: 0.1536207731
C80: ='WK2 - Notional General Income'!C25 -> Residential | D80: =IF('WK2 - Notional General Income'!D25="","",'WK2 - Notional General Income'!D25) ->  | E80: =IF('WK2 - Notional General Income'!M25=".",".",'WK2 - Notional General Income'!M25/'WK2 - Notional General Income'!E25) -> . | F80: =IF('WK3 - Notional GI Yr1 YIELD'!M25=".",".",'WK3 - Notional GI Yr1 YIELD'!M25/'WK3 - Notional GI Yr1 YIELD'!E25) -> . | O80: ='WK2 - Notional General Income'!$E25 -> 0 | P80: ='WK3 - Notional GI Yr1 YIELD'!$E25 -> 0 | S80: . | T80: . | U80: . | V80: . | W80: . | X80: . | Y80: . | AA80: . | AB80: . | AC80: . | AD80: . | AE80: . | AF80: . | AG80: . | AI80: =IF(S80=".",".",SUM($S80:S80)) -> . | AJ80: =IF(T80=".",".",SUM($S80:T80)) -> . | AK80: =IF(U80=".",".",SUM($S80:U80)) -> . | AL80: =IF(V80=".",".",SUM($S80:V80)) -> . | AM80: =IF(W80=".",".",SUM($S80:W80)) -> . | AN80: =IF(X80=".",".",SUM($S80:X80)) -> . | AO80: =IF(Y80=".",".",SUM($S80:Y80)) -> . | AQ80: . | AR80: . | AS80: . | AT80: . | AU80: . | AV80: . | AW80: .
C81: ='WK2 - Notional General Income'!C26 -> Residential | D81: =IF('WK2 - Notional General Income'!D26="","",'WK2 - Notional General Income'!D26) ->  | E81: =IF('WK2 - Notional General Income'!M26=".",".",'WK2 - Notional General Income'!M26/'WK2 - Notional General Income'!E26) -> . | F81: =IF('WK3 - Notional GI Yr1 YIELD'!M26=".",".",'WK3 - Notional GI Yr1 YIELD'!M26/'WK3 - Notional GI Yr1 YIELD'!E26) -> . | O81: ='WK2 - Notional General Income'!$E26 -> 0 | P81: ='WK3 - Notional GI Yr1 YIELD'!$E26 -> 0 | S81: . | T81: . | U81: . | V81: . | W81: . | X81: . | Y81: . | AA81: . | AB81: . | AC81: . | AD81: . | AE81: . | AF81: . | AG81: . | AI81: =IF(S81=".",".",SUM($S81:S81)) -> . | AJ81: =IF(T81=".",".",SUM($S81:T81)) -> . | AK81: =IF(U81=".",".",SUM($S81:U81)) -> . | AL81: =IF(V81=".",".",SUM($S81:V81)) -> . | AM81: =IF(W81=".",".",SUM($S81:W81)) -> . | AN81: =IF(X81=".",".",SUM($S81:X81)) -> . | AO81: =IF(Y81=".",".",SUM($S81:Y81)) -> . | AQ81: . | AR81: . | AS81: . | AT81: . | AU81: . | AV81: . | AW81: .
C82: ='WK2 - Notional General Income'!C27 -> Residential | D82: =IF('WK2 - Notional General Income'!D27="","",'WK2 - Notional General Income'!D27) ->  | E82: =IF('WK2 - Notional General Income'!M27=".",".",'WK2 - Notional General Income'!M27/'WK2 - Notional General Income'!E27) -> . | F82: =IF('WK3 - Notional GI Yr1 YIELD'!M27=".",".",'WK3 - Notional GI Yr1 YIELD'!M27/'WK3 - Notional GI Yr1 YIELD'!E27) -> . | O82: ='WK2 - Notional General Income'!$E27 -> 0 | P82: ='WK3 - Notional GI Yr1 YIELD'!$E27 -> 0 | S82: . | T82: . | U82: . | V82: . | W82: . | X82: . | Y82: . | AA82: . | AB82: . | AC82: . | AD82: . | AE82: . | AF82: . | AG82: . | AI82: =IF(S82=".",".",SUM($S82:S82)) -> . | AJ82: =IF(T82=".",".",SUM($S82:T82)) -> . | AK82: =IF(U82=".",".",SUM($S82:U82)) -> . | AL82: =IF(V82=".",".",SUM($S82:V82)) -> . | AM82: =IF(W82=".",".",SUM($S82:W82)) -> . | AN82: =IF(X82=".",".",SUM($S82:X82)) -> . | AO82: =IF(Y82=".",".",SUM($S82:Y82)) -> . | AQ82: . | AR82: . | AS82: . | AT82: . | AU82: . | AV82: . | AW82: .
C83: Special rate | D83: =IF('WK2 - Notional General Income'!D255="","",'WK2 - Notional General Income'!D255) ->  | E83: =IF('WK2 - Notional General Income'!M255=".",".",'WK2 - Notional General Income'!M255/'WK2 - Notional General Income'!E255) -> . | F83: =IF('WK3 - Notional GI Yr1 YIELD'!M255=".",".",'WK3 - Notional GI Yr1 YIELD'!M255/'WK3 - Notional GI Yr1 YIELD'!E255) -> . | O83: ='WK2 - Notional General Income'!$E255 -> 0 | P83: ='WK3 - Notional GI Yr1 YIELD'!$E255 -> 0 | S83: . | T83: . | U83: . | V83: . | W83: . | X83: . | Y83: . | AA83: . | AB83: . | AC83: . | AD83: . | AE83: . | AF83: . | AG83: . | AI83: =IF(S83=".",".",SUM($S83:S83)) -> . | AJ83: =IF(T83=".",".",SUM($S83:T83)) -> . | AK83: =IF(U83=".",".",SUM($S83:U83)) -> . | AL83: =IF(V83=".",".",SUM($S83:V83)) -> . | AM83: =IF(W83=".",".",SUM($S83:W83)) -> . | AN83: =IF(X83=".",".",SUM($S83:X83)) -> . | AO83: =IF(Y83=".",".",SUM($S83:Y83)) -> . | AQ83: . | AR83: . | AS83: . | AT83: . | AU83: . | AV83: . | AW83: .
C84: Special rate | D84: =IF('WK2 - Notional General Income'!D256="","",'WK2 - Notional General Income'!D256) ->  | E84: =IF('WK2 - Notional General Income'!M256=".",".",'WK2 - Notional General Income'!M256/'WK2 - Notional General Income'!E256) -> . | F84: =IF('WK3 - Notional GI Yr1 YIELD'!M256=".",".",'WK3 - Notional GI Yr1 YIELD'!M256/'WK3 - Notional GI Yr1 YIELD'!E256) -> . | O84: ='WK2 - Notional General Income'!$E256 -> 0 | P84: ='WK3 - Notional GI Yr1 YIELD'!$E256 -> 0 | S84: . | T84: . | U84: . | V84: . | W84: . | X84: . | Y84: . | AA84: . | AB84: . | AC84: . | AD84: . | AE84: . | AF84: . | AG84: . | AI84: =IF(S84=".",".",SUM($S84:S84)) -> . | AJ84: =IF(T84=".",".",SUM($S84:T84)) -> . | AK84: =IF(U84=".",".",SUM($S84:U84)) -> . | AL84: =IF(V84=".",".",SUM($S84:V84)) -> . | AM84: =IF(W84=".",".",SUM($S84:W84)) -> . | AN84: =IF(X84=".",".",SUM($S84:X84)) -> . | AO84: =IF(Y84=".",".",SUM($S84:Y84)) -> . | AQ84: . | AR84: . | AS84: . | AT84: . | AU84: . | AV84: . | AW84: .
C85: Special rate | D85: =IF('WK2 - Notional General Income'!D257="","",'WK2 - Notional General Income'!D257) ->  | E85: =IF('WK2 - Notional General Income'!M257=".",".",'WK2 - Notional General Income'!M257/'WK2 - Notional General Income'!E257) -> . | F85: =IF('WK3 - Notional GI Yr1 YIELD'!M257=".",".",'WK3 - Notional GI Yr1 YIELD'!M257/'WK3 - Notional GI Yr1 YIELD'!E257) -> . | O85: ='WK2 - Notional General Income'!$E257 -> 0 | P85: ='WK3 - Notional GI Yr1 YIELD'!$E257 -> 0 | S85: . | T85: . | U85: . | V85: . | W85: . | X85: . | Y85: . | AA85: . | AB85: . | AC85: . | AD85: . | AE85: . | AF85: . | AG85: . | AI85: =IF(S85=".",".",SUM($S85:S85)) -> . | AJ85: =IF(T85=".",".",SUM($S85:T85)) -> . | AK85: =IF(U85=".",".",SUM($S85:U85)) -> . | AL85: =IF(V85=".",".",SUM($S85:V85)) -> . | AM85: =IF(W85=".",".",SUM($S85:W85)) -> . | AN85: =IF(X85=".",".",SUM($S85:X85)) -> . | AO85: =IF(Y85=".",".",SUM($S85:Y85)) -> . | AQ85: . | AR85: . | AS85: . | AT85: . | AU85: . | AV85: . | AW85: .
C86: Special rate | D86: =IF('WK2 - Notional General Income'!D258="","",'WK2 - Notional General Income'!D258) ->  | E86: =IF('WK2 - Notional General Income'!M258=".",".",'WK2 - Notional General Income'!M258/'WK2 - Notional General Income'!E258) -> . | F86: =IF('WK3 - Notional GI Yr1 YIELD'!M258=".",".",'WK3 - Notional GI Yr1 YIELD'!M258/'WK3 - Notional GI Yr1 YIELD'!E258) -> . | O86: ='WK2 - Notional General Income'!$E258 -> 0 | P86: ='WK3 - Notional GI Yr1 YIELD'!$E258 -> 0 | S86: . | T86: . | U86: . | V86: . | W86: . | X86: . | Y86: . | AA86: . | AB86: . | AC86: . | AD86: . | AE86: . | AF86: . | AG86: . | AI86: =IF(S86=".",".",SUM($S86:S86)) -> . | AJ86: =IF(T86=".",".",SUM($S86:T86)) -> . | AK86: =IF(U86=".",".",SUM($S86:U86)) -> . | AL86: =IF(V86=".",".",SUM($S86:V86)) -> . | AM86: =IF(W86=".",".",SUM($S86:W86)) -> . | AN86: =IF(X86=".",".",SUM($S86:X86)) -> . | AO86: =IF(Y86=".",".",SUM($S86:Y86)) -> . | AQ86: . | AR86: . | AS86: . | AT86: . | AU86: . | AV86: . | AW86: .
C87: Special rate | D87: =IF('WK2 - Notional General Income'!D259="","",'WK2 - Notional General Income'!D259) ->  | E87: =IF('WK2 - Notional General Income'!M259=".",".",'WK2 - Notional General Income'!M259/'WK2 - Notional General Income'!E259) -> . | F87: =IF('WK3 - Notional GI Yr1 YIELD'!M259=".",".",'WK3 - Notional GI Yr1 YIELD'!M259/'WK3 - Notional GI Yr1 YIELD'!E259) -> . | O87: ='WK2 - Notional General Income'!$E259 -> 0 | P87: ='WK3 - Notional GI Yr1 YIELD'!$E259 -> 0 | S87: . | T87: . | U87: . | V87: . | W87: . | X87: . | Y87: . | AA87: . | AB87: . | AC87: . | AD87: . | AE87: . | AF87: . | AG87: . | AI87: =IF(S87=".",".",SUM($S87:S87)) -> . | AJ87: =IF(T87=".",".",SUM($S87:T87)) -> . | AK87: =IF(U87=".",".",SUM($S87:U87)) -> . | AL87: =IF(V87=".",".",SUM($S87:V87)) -> . | AM87: =IF(W87=".",".",SUM($S87:W87)) -> . | AN87: =IF(X87=".",".",SUM($S87:X87)) -> . | AO87: =IF(Y87=".",".",SUM($S87:Y87)) -> . | AQ87: . | AR87: . | AS87: . | AT87: . | AU87: . | AV87: . | AW87: .
C88: Special rate | D88: =IF('WK2 - Notional General Income'!D260="","",'WK2 - Notional General Income'!D260) ->  | E88: =IF('WK2 - Notional General Income'!M260=".",".",'WK2 - Notional General Income'!M260/'WK2 - Notional General Income'!E260) -> . | F88: =IF('WK3 - Notional GI Yr1 YIELD'!M260=".",".",'WK3 - Notional GI Yr1 YIELD'!M260/'WK3 - Notional GI Yr1 YIELD'!E260) -> . | O88: ='WK2 - Notional General Income'!$E260 -> 0 | P88: ='WK3 - Notional GI Yr1 YIELD'!$E260 -> 0 | S88: . | T88: . | U88: . | V88: . | W88: . | X88: . | Y88: . | AA88: . | AB88: . | AC88: . | AD88: . | AE88: . | AF88: . | AG88: . | AI88: =IF(S88=".",".",SUM($S88:S88)) -> . | AJ88: =IF(T88=".",".",SUM($S88:T88)) -> . | AK88: =IF(U88=".",".",SUM($S88:U88)) -> . | AL88: =IF(V88=".",".",SUM($S88:V88)) -> . | AM88: =IF(W88=".",".",SUM($S88:W88)) -> . | AN88: =IF(X88=".",".",SUM($S88:X88)) -> . | AO88: =IF(Y88=".",".",SUM($S88:Y88)) -> . | AQ88: . | AR88: . | AS88: . | AT88: . | AU88: . | AV88: . | AW88: .
C89: Special rate | D89: =IF('WK2 - Notional General Income'!D261="","",'WK2 - Notional General Income'!D261) ->  | E89: =IF('WK2 - Notional General Income'!M261=".",".",'WK2 - Notional General Income'!M261/'WK2 - Notional General Income'!E261) -> . | F89: =IF('WK3 - Notional GI Yr1 YIELD'!M261=".",".",'WK3 - Notional GI Yr1 YIELD'!M261/'WK3 - Notional GI Yr1 YIELD'!E261) -> . | O89: ='WK2 - Notional General Income'!$E261 -> 0 | P89: ='WK3 - Notional GI Yr1 YIELD'!$E261 -> 0 | S89: . | T89: . | U89: . | V89: . | W89: . | X89: . | Y89: . | AA89: . | AB89: . | AC89: . | AD89: . | AE89: . | AF89: . | AG89: . | AI89: =IF(S89=".",".",SUM($S89:S89)) -> . | AJ89: =IF(T89=".",".",SUM($S89:T89)) -> . | AK89: =IF(U89=".",".",SUM($S89:U89)) -> . | AL89: =IF(V89=".",".",SUM($S89:V89)) -> . | AM89: =IF(W89=".",".",SUM($S89:W89)) -> . | AN89: =IF(X89=".",".",SUM($S89:X89)) -> . | AO89: =IF(Y89=".",".",SUM($S89:Y89)) -> . | AQ89: . | AR89: . | AS89: . | AT89: . | AU89: . | AV89: . | AW89: .
C90: Special rate | D90: =IF('WK2 - Notional General Income'!D262="","",'WK2 - Notional General Income'!D262) ->  | E90: =IF('WK2 - Notional General Income'!M262=".",".",'WK2 - Notional General Income'!M262/'WK2 - Notional General Income'!E262) -> . | F90: =IF('WK3 - Notional GI Yr1 YIELD'!M262=".",".",'WK3 - Notional GI Yr1 YIELD'!M262/'WK3 - Notional GI Yr1 YIELD'!E262) -> . | O90: ='WK2 - Notional General Income'!$E262 -> 0 | P90: ='WK3 - Notional GI Yr1 YIELD'!$E262 -> 0 | S90: . | T90: . | U90: . | V90: . | W90: . | X90: . | Y90: . | AA90: . | AB90: . | AC90: . | AD90: . | AE90: . | AF90: . | AG90: . | AI90: =IF(S90=".",".",SUM($S90:S90)) -> . | AJ90: =IF(T90=".",".",SUM($S90:T90)) -> . | AK90: =IF(U90=".",".",SUM($S90:U90)) -> . | AL90: =IF(V90=".",".",SUM($S90:V90)) -> . | AM90: =IF(W90=".",".",SUM($S90:W90)) -> . | AN90: =IF(X90=".",".",SUM($S90:X90)) -> . | AO90: =IF(Y90=".",".",SUM($S90:Y90)) -> . | AQ90: . | AR90: . | AS90: . | AT90: . | AU90: . | AV90: . | AW90: .
C91: Special rate | D91: =IF('WK2 - Notional General Income'!D263="","",'WK2 - Notional General Income'!D263) ->  | E91: =IF('WK2 - Notional General Income'!M263=".",".",'WK2 - Notional General Income'!M263/'WK2 - Notional General Income'!E263) -> . | F91: =IF('WK3 - Notional GI Yr1 YIELD'!M263=".",".",'WK3 - Notional GI Yr1 YIELD'!M263/'WK3 - Notional GI Yr1 YIELD'!E263) -> . | O91: ='WK2 - Notional General Income'!$E263 -> 0 | P91: ='WK3 - Notional GI Yr1 YIELD'!$E263 -> 0 | S91: . | T91: . | U91: . | V91: . | W91: . | X91: . | Y91: . | AA91: . | AB91: . | AC91: . | AD91: . | AE91: . | AF91: . | AG91: . | AI91: =IF(S91=".",".",SUM($S91:S91)) -> . | AJ91: =IF(T91=".",".",SUM($S91:T91)) -> . | AK91: =IF(U91=".",".",SUM($S91:U91)) -> . | AL91: =IF(V91=".",".",SUM($S91:V91)) -> . | AM91: =IF(W91=".",".",SUM($S91:W91)) -> . | AN91: =IF(X91=".",".",SUM($S91:X91)) -> . | AO91: =IF(Y91=".",".",SUM($S91:Y91)) -> . | AQ91: . | AR91: . | AS91: . | AT91: . | AU91: . | AV91: . | AW91: .
C92: Special rate | D92: =IF('WK2 - Notional General Income'!D264="","",'WK2 - Notional General Income'!D264) ->  | E92: =IF('WK2 - Notional General Income'!M264=".",".",'WK2 - Notional General Income'!M264/'WK2 - Notional General Income'!E264) -> . | F92: =IF('WK3 - Notional GI Yr1 YIELD'!M264=".",".",'WK3 - Notional GI Yr1 YIELD'!M264/'WK3 - Notional GI Yr1 YIELD'!E264) -> . | O92: ='WK2 - Notional General Income'!$E264 -> 0 | P92: ='WK3 - Notional GI Yr1 YIELD'!$E264 -> 0 | S92: . | T92: . | U92: . | V92: . | W92: . | X92: . | Y92: . | AA92: . | AB92: . | AC92: . | AD92: . | AE92: . | AF92: . | AG92: . | AI92: =IF(S92=".",".",SUM($S92:S92)) -> . | AJ92: =IF(T92=".",".",SUM($S92:T92)) -> . | AK92: =IF(U92=".",".",SUM($S92:U92)) -> . | AL92: =IF(V92=".",".",SUM($S92:V92)) -> . | AM92: =IF(W92=".",".",SUM($S92:W92)) -> . | AN92: =IF(X92=".",".",SUM($S92:X92)) -> . | AO92: =IF(Y92=".",".",SUM($S92:Y92)) -> . | AQ92: . | AR92: . | AS92: . | AT92: . | AU92: . | AV92: . | AW92: .
D93: TOTAL AVERAGE | E93: =IF($O93=0,".",SUMPRODUCT(E75:E92,$O75:$O92)/$O93) -> 1120.994246 | F93: =IF($P93=0,".",SUMPRODUCT(F75:F92,$P75:$P92)/$P93) -> 1146.372633 | G93: 1175.031949 | H93: 1204.407748 | I93: 1234.517941 | J93: 1265.38089 | K93: 1297.015412 | L93: 1329.440797 | O93: =SUM(O75:O82) -> 9429 | P93: =SUM(P75:P82) -> 9440 | S93: 25.37838709 | T93: 28.65931583 | U93: =IF(H93=".",".",H93-G93) -> 29.37579872 | V93: 30.11019369 | W93: 30.86294853 | X93: 31.63452225 | Y93: 32.4253853 | AA93: 0.02263917694 | AB93: 0.025 | AC93: 0.025 | AD93: 0.025 | AE93: 0.025 | AF93: 0.025 | AG93: 0.025 | AI93: =IF(S93=".",".",SUM($S93:S93)) -> 25.37838709 | AJ93: =IF(T93=".",".",SUM($S93:T93)) -> 54.03770291 | AK93: =IF(U93=".",".",SUM($S93:U93)) -> 83.41350164 | AL93: =IF(V93=".",".",SUM($S93:V93)) -> 113.5236953 | AM93: =IF(W93=".",".",SUM($S93:W93)) -> 144.3866439 | AN93: =IF(X93=".",".",SUM($S93:X93)) -> 176.0211661 | AO93: =IF(Y93=".",".",SUM($S93:Y93)) -> 208.4465514 | AQ93: 0.02263917694 | AR93: 0.04820515637 | AS93: 0.07441028527 | AT93: 0.1012705424 | AU93: 0.128802306 | AV93: 0.1570223636 | AW93: 0.1859479227
C94: Business | D94: =IF('WK2 - Notional General Income'!D66="","",'WK2 - Notional General Income'!D66) -> Armidale | E94: =IF('WK2 - Notional General Income'!M66=".",".",'WK2 - Notional General Income'!M66/'WK2 - Notional General Income'!E66) -> 4502.403315 | F94: =IF('WK3 - Notional GI Yr1 YIELD'!M66=".",".",'WK3 - Notional GI Yr1 YIELD'!M66/'WK3 - Notional GI Yr1 YIELD'!E66) -> 4582.294649 | G94: =F94*1.025 -> 4696.852015 | H94: =G94*1.025 -> 4814.273316 | I94: 4934.630149 | J94: 5057.995902 | K94: 5184.4458 | L94: 5314.056945 | O94: ='WK2 - Notional General Income'!$E66 -> 390 | P94: ='WK3 - Notional GI Yr1 YIELD'!$E66 -> 393 | S94: =IF(OR(E94=".",F94="."),".",F94-E94) -> 79.89133431 | T94: =IF(OR(F94=".",G94="."),".",G94-F94) -> 114.5573662 | U94: 117.4213004 | V94: 120.3568329 | W94: 123.3657537 | X94: 126.4498976 | Y94: 129.611145 | AA94: 0.01774415323 | AB94: 0.025 | AC94: 0.025 | AD94: 0.025 | AE94: 0.025 | AF94: 0.025 | AG94: 0.025 | AI94: =IF(S94=".",".",SUM($S94:S94)) -> 79.89133431 | AJ94: =IF(T94=".",".",SUM($S94:T94)) -> 194.4487005 | AK94: =IF(U94=".",".",SUM($S94:U94)) -> 311.8700009 | AL94: =IF(V94=".",".",SUM($S94:V94)) -> 432.2268338 | AM94: =IF(W94=".",".",SUM($S94:W94)) -> 555.5925875 | AN94: =IF(X94=".",".",SUM($S94:X94)) -> 682.0424851 | AO94: =IF(Y94=".",".",SUM($S94:Y94)) -> 811.6536301 | AQ94: 0.01774415323 | AR94: 0.04318775706 | AS94: 0.06926745098 | AT94: 0.09599913726 | AU94: 0.1233991157 | AV94: 0.1514840936 | AW94: 0.1802711959
C95: Business | D95: =IF('WK2 - Notional General Income'!D67="","",'WK2 - Notional General Income'!D67) -> Industrial | E95: =IF('WK2 - Notional General Income'!M67=".",".",'WK2 - Notional General Income'!M67/'WK2 - Notional General Income'!E67) -> 4863.451643 | F95: =IF('WK3 - Notional GI Yr1 YIELD'!M67=".",".",'WK3 - Notional GI Yr1 YIELD'!M67/'WK3 - Notional GI Yr1 YIELD'!E67) -> 4989.232488 | G95: =F95*1.025 -> 5113.963301 | H95: 5241.812383 | I95: 5372.857693 | J95: 5507.179135 | K95: 5644.858614 | L95: 5785.980079 | O95: ='WK2 - Notional General Income'!$E67 -> 157 | P95: ='WK3 - Notional GI Yr1 YIELD'!$E67 -> 157 | S95: 125.7808458 | T95: 124.7308122 | U95: =IF(H95="",".",H95-G95) -> 127.8490825 | V95: =IF(I95="",".",I95-H95) -> 131.0453096 | W95: =IF(J95="",".",J95-I95) -> 134.3214423 | X95: =IF(K95="",".",K95-J95) -> 137.6794784 | Y95: =IF(L95="",".",L95-K95) -> 141.1214653 | AA95: 0.02586246458 | AB95: 0.025 | AC95: 0.025 | AD95: 0.025 | AE95: 0.025 | AF95: 0.025 | AG95: 0.025 | AI95: =IF(S95=".",".",SUM($S95:S95)) -> 125.7808458 | AJ95: =IF(T95=".",".",SUM($S95:T95)) -> 250.511658 | AK95: =IF(U95=".",".",SUM($S95:U95)) -> 378.3607406 | AL95: =IF(V95=".",".",SUM($S95:V95)) -> 509.4060501 | AM95: =IF(W95=".",".",SUM($S95:W95)) -> 643.7274925 | AN95: =IF(X95=".",".",SUM($S95:X95)) -> 781.4069708 | AO95: =IF(Y95=".",".",SUM($S95:Y95)) -> 922.5284362 | AQ95: 0.02586246458 | AR95: 0.05150902619 | AS95: 0.07779675184 | AT95: 0.1047416706 | AU95: 0.1323602124 | AV95: 0.1606692177 | AW95: 0.1896859482
C96: Business | D96: =IF('WK2 - Notional General Income'!D68="","",'WK2 - Notional General Income'!D68) -> Non Urban | E96: =IF('WK2 - Notional General Income'!M68=".",".",'WK2 - Notional General Income'!M68/'WK2 - Notional General Income'!E68) -> 1539.901267 | F96: =IF('WK3 - Notional GI Yr1 YIELD'!M68=".",".",'WK3 - Notional GI Yr1 YIELD'!M68/'WK3 - Notional GI Yr1 YIELD'!E68) -> 1374.913048 | G96: =F96*1.025 -> 1409.285874 | H96: 1444.518021 | I96: 1480.630971 | J96: 1517.646746 | K96: 1555.587914 | L96: 1594.477612 | O96: ='WK2 - Notional General Income'!$E68 -> 30 | P96: ='WK3 - Notional GI Yr1 YIELD'!$E68 -> 31 | S96: -164.9882189 | T96: 34.37282619 | U96: 35.23214685 | V96: 36.11295052 | W96: 37.01577428 | X96: 37.94116864 | Y96: 38.88969786 | AA96: -0.1071420762 | AB96: 0.025 | AC96: 0.025 | AD96: 0.025 | AE96: 0.025 | AF96: 0.025 | AG96: 0.025 | AI96: =IF(S96=".",".",SUM($S96:S96)) -> -164.9882189 | AJ96: =IF(T96=".",".",SUM($S96:T96)) -> -130.6153927 | AK96: =IF(U96=".",".",SUM($S96:U96)) -> -95.38324588 | AL96: =IF(V96=".",".",SUM($S96:V96)) -> -59.27029536 | AM96: =IF(W96=".",".",SUM($S96:W96)) -> -22.25452108 | AN96: =IF(X96=".",".",SUM($S96:X96)) -> 15.68664756 | AO96: =IF(Y96=".",".",SUM($S96:Y96)) -> 54.57634541 | AQ96: -0.1071420762 | AR96: -0.08482062815 | AS96: -0.06194114386 | AT96: -0.03848967245 | AU96: -0.01445191426 | AV96: 0.01018678788 | AW96: 0.03544145758
C97: Business | D97: =IF('WK2 - Notional General Income'!D69="","",'WK2 - Notional General Income'!D69) ->  | E97: =IF('WK2 - Notional General Income'!M69=".",".",'WK2 - Notional General Income'!M69/'WK2 - Notional General Income'!E69) -> . | F97: =IF('WK3 - Notional GI Yr1 YIELD'!M69=".",".",'WK3 - Notional GI Yr1 YIELD'!M69/'WK3 - Notional GI Yr1 YIELD'!E69) -> . | O97: ='WK2 - Notional General Income'!$E69 -> 0 | P97: ='WK3 - Notional GI Yr1 YIELD'!$E69 -> 0 | S97: . | T97: . | U97: . | V97: . | W97: . | X97: . | Y97: . | AA97: . | AB97: . | AC97: . | AD97: . | AE97: . | AF97: . | AG97: . | AI97: =IF(S97=".",".",SUM($S97:S97)) -> . | AJ97: =IF(T97=".",".",SUM($S97:T97)) -> . | AK97: =IF(U97=".",".",SUM($S97:U97)) -> . | AL97: =IF(V97=".",".",SUM($S97:V97)) -> . | AM97: =IF(W97=".",".",SUM($S97:W97)) -> . | AN97: =IF(X97=".",".",SUM($S97:X97)) -> . | AO97: =IF(Y97=".",".",SUM($S97:Y97)) -> . | AQ97: . | AR97: . | AS97: . | AT97: . | AU97: . | AV97: . | AW97: .
C98: Business | D98: =IF('WK2 - Notional General Income'!D70="","",'WK2 - Notional General Income'!D70) ->  | E98: =IF('WK2 - Notional General Income'!M70=".",".",'WK2 - Notional General Income'!M70/'WK2 - Notional General Income'!E70) -> . | F98: =IF('WK3 - Notional GI Yr1 YIELD'!M70=".",".",'WK3 - Notional GI Yr1 YIELD'!M70/'WK3 - Notional GI Yr1 YIELD'!E70) -> . | O98: ='WK2 - Notional General Income'!$E70 -> 0 | P98: ='WK3 - Notional GI Yr1 YIELD'!$E70 -> 0 | S98: . | T98: . | U98: . | V98: . | W98: . | X98: . | Y98: . | AA98: . | AB98: . | AC98: . | AD98: . | AE98: . | AF98: . | AG98: . | AI98: =IF(S98=".",".",SUM($S98:S98)) -> . | AJ98: =IF(T98=".",".",SUM($S98:T98)) -> . | AK98: =IF(U98=".",".",SUM($S98:U98)) -> . | AL98: =IF(V98=".",".",SUM($S98:V98)) -> . | AM98: =IF(W98=".",".",SUM($S98:W98)) -> . | AN98: =IF(X98=".",".",SUM($S98:X98)) -> . | AO98: =IF(Y98=".",".",SUM($S98:Y98)) -> . | AQ98: . | AR98: . | AS98: . | AT98: . | AU98: . | AV98: . | AW98: .
C99: Business | D99: =IF('WK2 - Notional General Income'!D71="","",'WK2 - Notional General Income'!D71) ->  | E99: =IF('WK2 - Notional General Income'!M71=".",".",'WK2 - Notional General Income'!M71/'WK2 - Notional General Income'!E71) -> . | F99: =IF('WK3 - Notional GI Yr1 YIELD'!M71=".",".",'WK3 - Notional GI Yr1 YIELD'!M71/'WK3 - Notional GI Yr1 YIELD'!E71) -> . | O99: ='WK2 - Notional General Income'!$E71 -> 0 | P99: ='WK3 - Notional GI Yr1 YIELD'!$E71 -> 0 | S99: . | T99: . | U99: . | V99: . | W99: . | X99: . | Y99: . | AA99: . | AB99: . | AC99: . | AD99: . | AE99: . | AF99: . | AG99: . | AI99: =IF(S99=".",".",SUM($S99:S99)) -> . | AJ99: =IF(T99=".",".",SUM($S99:T99)) -> . | AK99: =IF(U99=".",".",SUM($S99:U99)) -> . | AL99: =IF(V99=".",".",SUM($S99:V99)) -> . | AM99: =IF(W99=".",".",SUM($S99:W99)) -> . | AN99: =IF(X99=".",".",SUM($S99:X99)) -> . | AO99: =IF(Y99=".",".",SUM($S99:Y99)) -> . | AQ99: . | AR99: . | AS99: . | AT99: . | AU99: . | AV99: . | AW99: .
C100: Business | D100: =IF('WK2 - Notional General Income'!D72="","",'WK2 - Notional General Income'!D72) ->  | E100: =IF('WK2 - Notional General Income'!M72=".",".",'WK2 - Notional General Income'!M72/'WK2 - Notional General Income'!E72) -> . | F100: =IF('WK3 - Notional GI Yr1 YIELD'!M72=".",".",'WK3 - Notional GI Yr1 YIELD'!M72/'WK3 - Notional GI Yr1 YIELD'!E72) -> . | O100: ='WK2 - Notional General Income'!$E72 -> 0 | P100: ='WK3 - Notional GI Yr1 YIELD'!$E72 -> 0 | S100: . | T100: . | U100: . | V100: . | W100: . | X100: . | Y100: . | AA100: . | AB100: . | AC100: . | AD100: . | AE100: . | AF100: . | AG100: . | AI100: =IF(S100=".",".",SUM($S100:S100)) -> . | AJ100: =IF(T100=".",".",SUM($S100:T100)) -> . | AK100: =IF(U100=".",".",SUM($S100:U100)) -> . | AL100: =IF(V100=".",".",SUM($S100:V100)) -> . | AM100: =IF(W100=".",".",SUM($S100:W100)) -> . | AN100: =IF(X100=".",".",SUM($S100:X100)) -> . | AO100: =IF(Y100=".",".",SUM($S100:Y100)) -> . | AQ100: . | AR100: . | AS100: . | AT100: . | AU100: . | AV100: . | AW100: .
C101: Business | D101: =IF('WK2 - Notional General Income'!D73="","",'WK2 - Notional General Income'!D73) ->  | E101: =IF('WK2 - Notional General Income'!M73=".",".",'WK2 - Notional General Income'!M73/'WK2 - Notional General Income'!E73) -> . | F101: =IF('WK3 - Notional GI Yr1 YIELD'!M73=".",".",'WK3 - Notional GI Yr1 YIELD'!M73/'WK3 - Notional GI Yr1 YIELD'!E73) -> . | O101: ='WK2 - Notional General Income'!$E73 -> 0 | P101: ='WK3 - Notional GI Yr1 YIELD'!$E73 -> 0 | S101: . | T101: . | U101: . | V101: . | W101: . | X101: . | Y101: . | AA101: . | AB101: . | AC101: . | AD101: . | AE101: . | AF101: . | AG101: . | AI101: =IF(S101=".",".",SUM($S101:S101)) -> . | AJ101: =IF(T101=".",".",SUM($S101:T101)) -> . | AK101: =IF(U101=".",".",SUM($S101:U101)) -> . | AL101: =IF(V101=".",".",SUM($S101:V101)) -> . | AM101: =IF(W101=".",".",SUM($S101:W101)) -> . | AN101: =IF(X101=".",".",SUM($S101:X101)) -> . | AO101: =IF(Y101=".",".",SUM($S101:Y101)) -> . | AQ101: . | AR101: . | AS101: . | AT101: . | AU101: . | AV101: . | AW101: .
C102: Business | D102: =IF('WK2 - Notional General Income'!D74="","",'WK2 - Notional General Income'!D74) ->  | E102: =IF('WK2 - Notional General Income'!M74=".",".",'WK2 - Notional General Income'!M74/'WK2 - Notional General Income'!E74) -> . | F102: =IF('WK3 - Notional GI Yr1 YIELD'!M74=".",".",'WK3 - Notional GI Yr1 YIELD'!M74/'WK3 - Notional GI Yr1 YIELD'!E74) -> . | O102: ='WK2 - Notional General Income'!$E74 -> 0 | P102: ='WK3 - Notional GI Yr1 YIELD'!$E74 -> 0 | S102: . | T102: . | U102: . | V102: . | W102: . | X102: . | Y102: . | AA102: . | AB102: . | AC102: . | AD102: . | AE102: . | AF102: . | AG102: . | AI102: =IF(S102=".",".",SUM($S102:S102)) -> . | AJ102: =IF(T102=".",".",SUM($S102:T102)) -> . | AK102: =IF(U102=".",".",SUM($S102:U102)) -> . | AL102: =IF(V102=".",".",SUM($S102:V102)) -> . | AM102: =IF(W102=".",".",SUM($S102:W102)) -> . | AN102: =IF(X102=".",".",SUM($S102:X102)) -> . | AO102: =IF(Y102=".",".",SUM($S102:Y102)) -> . | AQ102: . | AR102: . | AS102: . | AT102: . | AU102: . | AV102: . | AW102: .
C103: Business | D103: =IF('WK2 - Notional General Income'!D75="","",'WK2 - Notional General Income'!D75) ->  | E103: =IF('WK2 - Notional General Income'!M75=".",".",'WK2 - Notional General Income'!M75/'WK2 - Notional General Income'!E75) -> . | F103: =IF('WK3 - Notional GI Yr1 YIELD'!M75=".",".",'WK3 - Notional GI Yr1 YIELD'!M75/'WK3 - Notional GI Yr1 YIELD'!E75) -> . | O103: ='WK2 - Notional General Income'!$E75 -> 0 | P103: ='WK3 - Notional GI Yr1 YIELD'!$E75 -> 0 | S103: . | T103: . | U103: . | V103: . | W103: . | X103: . | Y103: . | AA103: . | AB103: . | AC103: . | AD103: . | AE103: . | AF103: . | AG103: . | AI103: =IF(S103=".",".",SUM($S103:S103)) -> . | AJ103: =IF(T103=".",".",SUM($S103:T103)) -> . | AK103: =IF(U103=".",".",SUM($S103:U103)) -> . | AL103: =IF(V103=".",".",SUM($S103:V103)) -> . | AM103: =IF(W103=".",".",SUM($S103:W103)) -> . | AN103: =IF(X103=".",".",SUM($S103:X103)) -> . | AO103: =IF(Y103=".",".",SUM($S103:Y103)) -> . | AQ103: . | AR103: . | AS103: . | AT103: . | AU103: . | AV103: . | AW103: .
C104: Business | D104: =IF('WK2 - Notional General Income'!D76="","",'WK2 - Notional General Income'!D76) ->  | E104: =IF('WK2 - Notional General Income'!M76=".",".",'WK2 - Notional General Income'!M76/'WK2 - Notional General Income'!E76) -> . | F104: =IF('WK3 - Notional GI Yr1 YIELD'!M76=".",".",'WK3 - Notional GI Yr1 YIELD'!M76/'WK3 - Notional GI Yr1 YIELD'!E76) -> . | O104: ='WK2 - Notional General Income'!$E76 -> 0 | P104: ='WK3 - Notional GI Yr1 YIELD'!$E76 -> 0 | S104: . | T104: . | U104: . | V104: . | W104: . | X104: . | Y104: . | AA104: . | AB104: . | AC104: . | AD104: . | AE104: . | AF104: . | AG104: . | AI104: =IF(S104=".",".",SUM($S104:S104)) -> . | AJ104: =IF(T104=".",".",SUM($S104:T104)) -> . | AK104: =IF(U104=".",".",SUM($S104:U104)) -> . | AL104: =IF(V104=".",".",SUM($S104:V104)) -> . | AM104: =IF(W104=".",".",SUM($S104:W104)) -> . | AN104: =IF(X104=".",".",SUM($S104:X104)) -> . | AO104: =IF(Y104=".",".",SUM($S104:Y104)) -> . | AQ104: . | AR104: . | AS104: . | AT104: . | AU104: . | AV104: . | AW104: .
C105: Business | D105: =IF('WK2 - Notional General Income'!D77="","",'WK2 - Notional General Income'!D77) ->  | E105: =IF('WK2 - Notional General Income'!M77=".",".",'WK2 - Notional General Income'!M77/'WK2 - Notional General Income'!E77) -> . | F105: =IF('WK3 - Notional GI Yr1 YIELD'!M77=".",".",'WK3 - Notional GI Yr1 YIELD'!M77/'WK3 - Notional GI Yr1 YIELD'!E77) -> . | O105: ='WK2 - Notional General Income'!$E77 -> 0 | P105: ='WK3 - Notional GI Yr1 YIELD'!$E77 -> 0 | S105: . | T105: . | U105: . | V105: . | W105: . | X105: . | Y105: . | AA105: . | AB105: . | AC105: . | AD105: . | AE105: . | AF105: . | AG105: . | AI105: =IF(S105=".",".",SUM($S105:S105)) -> . | AJ105: =IF(T105=".",".",SUM($S105:T105)) -> . | AK105: =IF(U105=".",".",SUM($S105:U105)) -> . | AL105: =IF(V105=".",".",SUM($S105:V105)) -> . | AM105: =IF(W105=".",".",SUM($S105:W105)) -> . | AN105: =IF(X105=".",".",SUM($S105:X105)) -> . | AO105: =IF(Y105=".",".",SUM($S105:Y105)) -> . | AQ105: . | AR105: . | AS105: . | AT105: . | AU105: . | AV105: . | AW105: .
C106: Business | D106: =IF('WK2 - Notional General Income'!D78="","",'WK2 - Notional General Income'!D78) ->  | E106: =IF('WK2 - Notional General Income'!M78=".",".",'WK2 - Notional General Income'!M78/'WK2 - Notional General Income'!E78) -> . | F106: =IF('WK3 - Notional GI Yr1 YIELD'!M78=".",".",'WK3 - Notional GI Yr1 YIELD'!M78/'WK3 - Notional GI Yr1 YIELD'!E78) -> . | O106: ='WK2 - Notional General Income'!$E78 -> 0 | P106: ='WK3 - Notional GI Yr1 YIELD'!$E78 -> 0 | S106: . | T106: . | U106: . | V106: . | W106: . | X106: . | Y106: . | AA106: . | AB106: . | AC106: . | AD106: . | AE106: . | AF106: . | AG106: . | AI106: =IF(S106=".",".",SUM($S106:S106)) -> . | AJ106: =IF(T106=".",".",SUM($S106:T106)) -> . | AK106: =IF(U106=".",".",SUM($S106:U106)) -> . | AL106: =IF(V106=".",".",SUM($S106:V106)) -> . | AM106: =IF(W106=".",".",SUM($S106:W106)) -> . | AN106: =IF(X106=".",".",SUM($S106:X106)) -> . | AO106: =IF(Y106=".",".",SUM($S106:Y106)) -> . | AQ106: . | AR106: . | AS106: . | AT106: . | AU106: . | AV106: . | AW106: .
C107: Business | D107: =IF('WK2 - Notional General Income'!D79="","",'WK2 - Notional General Income'!D79) ->  | E107: =IF('WK2 - Notional General Income'!M79=".",".",'WK2 - Notional General Income'!M79/'WK2 - Notional General Income'!E79) -> . | F107: =IF('WK3 - Notional GI Yr1 YIELD'!M79=".",".",'WK3 - Notional GI Yr1 YIELD'!M79/'WK3 - Notional GI Yr1 YIELD'!E79) -> . | O107: ='WK2 - Notional General Income'!$E79 -> 0 | P107: ='WK3 - Notional GI Yr1 YIELD'!$E79 -> 0 | S107: . | T107: . | U107: . | V107: . | W107: . | X107: . | Y107: . | AA107: . | AB107: . | AC107: . | AD107: . | AE107: . | AF107: . | AG107: . | AI107: =IF(S107=".",".",SUM($S107:S107)) -> . | AJ107: =IF(T107=".",".",SUM($S107:T107)) -> . | AK107: =IF(U107=".",".",SUM($S107:U107)) -> . | AL107: =IF(V107=".",".",SUM($S107:V107)) -> . | AM107: =IF(W107=".",".",SUM($S107:W107)) -> . | AN107: =IF(X107=".",".",SUM($S107:X107)) -> . | AO107: =IF(Y107=".",".",SUM($S107:Y107)) -> . | AQ107: . | AR107: . | AS107: . | AT107: . | AU107: . | AV107: . | AW107: .
C108: Business | D108: =IF('WK2 - Notional General Income'!D80="","",'WK2 - Notional General Income'!D80) ->  | E108: =IF('WK2 - Notional General Income'!M80=".",".",'WK2 - Notional General Income'!M80/'WK2 - Notional General Income'!E80) -> . | F108: =IF('WK3 - Notional GI Yr1 YIELD'!M80=".",".",'WK3 - Notional GI Yr1 YIELD'!M80/'WK3 - Notional GI Yr1 YIELD'!E80) -> . | O108: ='WK2 - Notional General Income'!$E80 -> 0 | P108: ='WK3 - Notional GI Yr1 YIELD'!$E80 -> 0 | S108: . | T108: . | U108: . | V108: . | W108: . | X108: . | Y108: . | AA108: . | AB108: . | AC108: . | AD108: . | AE108: . | AF108: . | AG108: . | AI108: =IF(S108=".",".",SUM($S108:S108)) -> . | AJ108: =IF(T108=".",".",SUM($S108:T108)) -> . | AK108: =IF(U108=".",".",SUM($S108:U108)) -> . | AL108: =IF(V108=".",".",SUM($S108:V108)) -> . | AM108: =IF(W108=".",".",SUM($S108:W108)) -> . | AN108: =IF(X108=".",".",SUM($S108:X108)) -> . | AO108: =IF(Y108=".",".",SUM($S108:Y108)) -> . | AQ108: . | AR108: . | AS108: . | AT108: . | AU108: . | AV108: . | AW108: .
C109: Business | D109: =IF('WK2 - Notional General Income'!D81="","",'WK2 - Notional General Income'!D81) ->  | E109: =IF('WK2 - Notional General Income'!M81=".",".",'WK2 - Notional General Income'!M81/'WK2 - Notional General Income'!E81) -> . | F109: =IF('WK3 - Notional GI Yr1 YIELD'!M81=".",".",'WK3 - Notional GI Yr1 YIELD'!M81/'WK3 - Notional GI Yr1 YIELD'!E81) -> . | O109: ='WK2 - Notional General Income'!$E81 -> 0 | P109: ='WK3 - Notional GI Yr1 YIELD'!$E81 -> 0 | S109: . | T109: . | U109: . | V109: . | W109: . | X109: . | Y109: . | AA109: . | AB109: . | AC109: . | AD109: . | AE109: . | AF109: . | AG109: . | AI109: =IF(S109=".",".",SUM($S109:S109)) -> . | AJ109: =IF(T109=".",".",SUM($S109:T109)) -> . | AK109: =IF(U109=".",".",SUM($S109:U109)) -> . | AL109: =IF(V109=".",".",SUM($S109:V109)) -> . | AM109: =IF(W109=".",".",SUM($S109:W109)) -> . | AN109: =IF(X109=".",".",SUM($S109:X109)) -> . | AO109: =IF(Y109=".",".",SUM($S109:Y109)) -> . | AQ109: . | AR109: . | AS109: . | AT109: . | AU109: . | AV109: . | AW109: .
C110: Business | D110: =IF('WK2 - Notional General Income'!D82="","",'WK2 - Notional General Income'!D82) ->  | E110: =IF('WK2 - Notional General Income'!M82=".",".",'WK2 - Notional General Income'!M82/'WK2 - Notional General Income'!E82) -> . | F110: =IF('WK3 - Notional GI Yr1 YIELD'!M82=".",".",'WK3 - Notional GI Yr1 YIELD'!M82/'WK3 - Notional GI Yr1 YIELD'!E82) -> . | O110: ='WK2 - Notional General Income'!$E82 -> 0 | P110: ='WK3 - Notional GI Yr1 YIELD'!$E82 -> 0 | S110: . | T110: . | U110: . | V110: . | W110: . | X110: . | Y110: . | AA110: . | AB110: . | AC110: . | AD110: . | AE110: . | AF110: . | AG110: . | AI110: =IF(S110=".",".",SUM($S110:S110)) -> . | AJ110: =IF(T110=".",".",SUM($S110:T110)) -> . | AK110: =IF(U110=".",".",SUM($S110:U110)) -> . | AL110: =IF(V110=".",".",SUM($S110:V110)) -> . | AM110: =IF(W110=".",".",SUM($S110:W110)) -> . | AN110: =IF(X110=".",".",SUM($S110:X110)) -> . | AO110: =IF(Y110=".",".",SUM($S110:Y110)) -> . | AQ110: . | AR110: . | AS110: . | AT110: . | AU110: . | AV110: . | AW110: .
C111: Special rate | D111: =IF('WK2 - Notional General Income'!D265="","",'WK2 - Notional General Income'!D265) ->  | E111: =IF('WK2 - Notional General Income'!M265=".",".",'WK2 - Notional General Income'!M265/'WK2 - Notional General Income'!E265) -> . | F111: =IF('WK3 - Notional GI Yr1 YIELD'!M265=".",".",'WK3 - Notional GI Yr1 YIELD'!M265/'WK3 - Notional GI Yr1 YIELD'!E265) -> . | O111: ='WK2 - Notional General Income'!$E265 -> 0 | P111: ='WK3 - Notional GI Yr1 YIELD'!$E265 -> 0 | S111: . | T111: . | U111: . | V111: . | W111: . | X111: . | Y111: . | AA111: . | AB111: . | AC111: . | AD111: . | AE111: . | AF111: . | AG111: . | AI111: =IF(S111=".",".",SUM($S111:S111)) -> . | AJ111: =IF(T111=".",".",SUM($S111:T111)) -> . | AK111: =IF(U111=".",".",SUM($S111:U111)) -> . | AL111: =IF(V111=".",".",SUM($S111:V111)) -> . | AM111: =IF(W111=".",".",SUM($S111:W111)) -> . | AN111: =IF(X111=".",".",SUM($S111:X111)) -> . | AO111: =IF(Y111=".",".",SUM($S111:Y111)) -> . | AQ111: . | AR111: . | AS111: . | AT111: . | AU111: . | AV111: . | AW111: .
C112: Special rate | D112: =IF('WK2 - Notional General Income'!D266="","",'WK2 - Notional General Income'!D266) ->  | E112: =IF('WK2 - Notional General Income'!M266=".",".",'WK2 - Notional General Income'!M266/'WK2 - Notional General Income'!E266) -> . | F112: =IF('WK3 - Notional GI Yr1 YIELD'!M266=".",".",'WK3 - Notional GI Yr1 YIELD'!M266/'WK3 - Notional GI Yr1 YIELD'!E266) -> . | O112: ='WK2 - Notional General Income'!$E266 -> 0 | P112: ='WK3 - Notional GI Yr1 YIELD'!$E266 -> 0 | S112: . | T112: . | U112: . | V112: . | W112: . | X112: . | Y112: . | AA112: . | AB112: . | AC112: . | AD112: . | AE112: . | AF112: . | AG112: . | AI112: =IF(S112=".",".",SUM($S112:S112)) -> . | AJ112: =IF(T112=".",".",SUM($S112:T112)) -> . | AK112: =IF(U112=".",".",SUM($S112:U112)) -> . | AL112: =IF(V112=".",".",SUM($S112:V112)) -> . | AM112: =IF(W112=".",".",SUM($S112:W112)) -> . | AN112: =IF(X112=".",".",SUM($S112:X112)) -> . | AO112: =IF(Y112=".",".",SUM($S112:Y112)) -> . | AQ112: . | AR112: . | AS112: . | AT112: . | AU112: . | AV112: . | AW112: .
C113: Special rate | D113: =IF('WK2 - Notional General Income'!D267="","",'WK2 - Notional General Income'!D267) ->  | E113: =IF('WK2 - Notional General Income'!M267=".",".",'WK2 - Notional General Income'!M267/'WK2 - Notional General Income'!E267) -> . | F113: =IF('WK3 - Notional GI Yr1 YIELD'!M267=".",".",'WK3 - Notional GI Yr1 YIELD'!M267/'WK3 - Notional GI Yr1 YIELD'!E267) -> . | O113: ='WK2 - Notional General Income'!$E267 -> 0 | P113: ='WK3 - Notional GI Yr1 YIELD'!$E267 -> 0 | S113: . | T113: . | U113: . | V113: . | W113: . | X113: . | Y113: . | AA113: . | AB113: . | AC113: . | AD113: . | AE113: . | AF113: . | AG113: . | AI113: =IF(S113=".",".",SUM($S113:S113)) -> . | AJ113: =IF(T113=".",".",SUM($S113:T113)) -> . | AK113: =IF(U113=".",".",SUM($S113:U113)) -> . | AL113: =IF(V113=".",".",SUM($S113:V113)) -> . | AM113: =IF(W113=".",".",SUM($S113:W113)) -> . | AN113: =IF(X113=".",".",SUM($S113:X113)) -> . | AO113: =IF(Y113=".",".",SUM($S113:Y113)) -> . | AQ113: . | AR113: . | AS113: . | AT113: . | AU113: . | AV113: . | AW113: .
C114: Special rate | D114: =IF('WK2 - Notional General Income'!D268="","",'WK2 - Notional General Income'!D268) ->  | E114: =IF('WK2 - Notional General Income'!M268=".",".",'WK2 - Notional General Income'!M268/'WK2 - Notional General Income'!E268) -> . | F114: =IF('WK3 - Notional GI Yr1 YIELD'!M268=".",".",'WK3 - Notional GI Yr1 YIELD'!M268/'WK3 - Notional GI Yr1 YIELD'!E268) -> . | O114: ='WK2 - Notional General Income'!$E268 -> 0 | P114: ='WK3 - Notional GI Yr1 YIELD'!$E268 -> 0 | S114: . | T114: . | U114: . | V114: . | W114: . | X114: . | Y114: . | AA114: . | AB114: . | AC114: . | AD114: . | AE114: . | AF114: . | AG114: . | AI114: =IF(S114=".",".",SUM($S114:S114)) -> . | AJ114: =IF(T114=".",".",SUM($S114:T114)) -> . | AK114: =IF(U114=".",".",SUM($S114:U114)) -> . | AL114: =IF(V114=".",".",SUM($S114:V114)) -> . | AM114: =IF(W114=".",".",SUM($S114:W114)) -> . | AN114: =IF(X114=".",".",SUM($S114:X114)) -> . | AO114: =IF(Y114=".",".",SUM($S114:Y114)) -> . | AQ114: . | AR114: . | AS114: . | AT114: . | AU114: . | AV114: . | AW114: .
C115: Special rate | D115: =IF('WK2 - Notional General Income'!D269="","",'WK2 - Notional General Income'!D269) ->  | E115: =IF('WK2 - Notional General Income'!M269=".",".",'WK2 - Notional General Income'!M269/'WK2 - Notional General Income'!E269) -> . | F115: =IF('WK3 - Notional GI Yr1 YIELD'!M269=".",".",'WK3 - Notional GI Yr1 YIELD'!M269/'WK3 - Notional GI Yr1 YIELD'!E269) -> . | O115: ='WK2 - Notional General Income'!$E269 -> 0 | P115: ='WK3 - Notional GI Yr1 YIELD'!$E269 -> 0 | S115: . | T115: . | U115: . | V115: . | W115: . | X115: . | Y115: . | AA115: . | AB115: . | AC115: . | AD115: . | AE115: . | AF115: . | AG115: . | AI115: =IF(S115=".",".",SUM($S115:S115)) -> . | AJ115: =IF(T115=".",".",SUM($S115:T115)) -> . | AK115: =IF(U115=".",".",SUM($S115:U115)) -> . | AL115: =IF(V115=".",".",SUM($S115:V115)) -> . | AM115: =IF(W115=".",".",SUM($S115:W115)) -> . | AN115: =IF(X115=".",".",SUM($S115:X115)) -> . | AO115: =IF(Y115=".",".",SUM($S115:Y115)) -> . | AQ115: . | AR115: . | AS115: . | AT115: . | AU115: . | AV115: . | AW115: .
C116: Special rate | D116: =IF('WK2 - Notional General Income'!D270="","",'WK2 - Notional General Income'!D270) ->  | E116: =IF('WK2 - Notional General Income'!M270=".",".",'WK2 - Notional General Income'!M270/'WK2 - Notional General Income'!E270) -> . | F116: =IF('WK3 - Notional GI Yr1 YIELD'!M270=".",".",'WK3 - Notional GI Yr1 YIELD'!M270/'WK3 - Notional GI Yr1 YIELD'!E270) -> . | O116: ='WK2 - Notional General Income'!$E270 -> 0 | P116: ='WK3 - Notional GI Yr1 YIELD'!$E270 -> 0 | S116: . | T116: . | U116: . | V116: . | W116: . | X116: . | Y116: . | AA116: . | AB116: . | AC116: . | AD116: . | AE116: . | AF116: . | AG116: . | AI116: =IF(S116=".",".",SUM($S116:S116)) -> . | AJ116: =IF(T116=".",".",SUM($S116:T116)) -> . | AK116: =IF(U116=".",".",SUM($S116:U116)) -> . | AL116: =IF(V116=".",".",SUM($S116:V116)) -> . | AM116: =IF(W116=".",".",SUM($S116:W116)) -> . | AN116: =IF(X116=".",".",SUM($S116:X116)) -> . | AO116: =IF(Y116=".",".",SUM($S116:Y116)) -> . | AQ116: . | AR116: . | AS116: . | AT116: . | AU116: . | AV116: . | AW116: .
C117: Special rate | D117: =IF('WK2 - Notional General Income'!D271="","",'WK2 - Notional General Income'!D271) ->  | E117: =IF('WK2 - Notional General Income'!M271=".",".",'WK2 - Notional General Income'!M271/'WK2 - Notional General Income'!E271) -> . | F117: =IF('WK3 - Notional GI Yr1 YIELD'!M271=".",".",'WK3 - Notional GI Yr1 YIELD'!M271/'WK3 - Notional GI Yr1 YIELD'!E271) -> . | O117: ='WK2 - Notional General Income'!$E271 -> 0 | P117: ='WK3 - Notional GI Yr1 YIELD'!$E271 -> 0 | S117: . | T117: . | U117: . | V117: . | W117: . | X117: . | Y117: . | AA117: . | AB117: . | AC117: . | AD117: . | AE117: . | AF117: . | AG117: . | AI117: =IF(S117=".",".",SUM($S117:S117)) -> . | AJ117: =IF(T117=".",".",SUM($S117:T117)) -> . | AK117: =IF(U117=".",".",SUM($S117:U117)) -> . | AL117: =IF(V117=".",".",SUM($S117:V117)) -> . | AM117: =IF(W117=".",".",SUM($S117:W117)) -> . | AN117: =IF(X117=".",".",SUM($S117:X117)) -> . | AO117: =IF(Y117=".",".",SUM($S117:Y117)) -> . | AQ117: . | AR117: . | AS117: . | AT117: . | AU117: . | AV117: . | AW117: .
C118: Special rate | D118: =IF('WK2 - Notional General Income'!D272="","",'WK2 - Notional General Income'!D272) ->  | E118: =IF('WK2 - Notional General Income'!M272=".",".",'WK2 - Notional General Income'!M272/'WK2 - Notional General Income'!E272) -> . | F118: =IF('WK3 - Notional GI Yr1 YIELD'!M272=".",".",'WK3 - Notional GI Yr1 YIELD'!M272/'WK3 - Notional GI Yr1 YIELD'!E272) -> . | O118: ='WK2 - Notional General Income'!$E272 -> 0 | P118: ='WK3 - Notional GI Yr1 YIELD'!$E272 -> 0 | S118: . | T118: . | U118: . | V118: . | W118: . | X118: . | Y118: . | AA118: . | AB118: . | AC118: . | AD118: . | AE118: . | AF118: . | AG118: . | AI118: =IF(S118=".",".",SUM($S118:S118)) -> . | AJ118: =IF(T118=".",".",SUM($S118:T118)) -> . | AK118: =IF(U118=".",".",SUM($S118:U118)) -> . | AL118: =IF(V118=".",".",SUM($S118:V118)) -> . | AM118: =IF(W118=".",".",SUM($S118:W118)) -> . | AN118: =IF(X118=".",".",SUM($S118:X118)) -> . | AO118: =IF(Y118=".",".",SUM($S118:Y118)) -> . | AQ118: . | AR118: . | AS118: . | AT118: . | AU118: . | AV118: . | AW118: .
C119: Special rate | D119: =IF('WK2 - Notional General Income'!D273="","",'WK2 - Notional General Income'!D273) ->  | E119: =IF('WK2 - Notional General Income'!M273=".",".",'WK2 - Notional General Income'!M273/'WK2 - Notional General Income'!E273) -> . | F119: =IF('WK3 - Notional GI Yr1 YIELD'!M273=".",".",'WK3 - Notional GI Yr1 YIELD'!M273/'WK3 - Notional GI Yr1 YIELD'!E273) -> . | O119: ='WK2 - Notional General Income'!$E273 -> 0 | P119: ='WK3 - Notional GI Yr1 YIELD'!$E273 -> 0 | S119: . | T119: . | U119: =IF(H119="",".",H119-G119) -> . | V119: =IF(I119="",".",I119-H119) -> . | W119: =IF(J119="",".",J119-I119) -> . | X119: =IF(K119="",".",K119-J119) -> . | Y119: =IF(L119="",".",L119-K119) -> . | AA119: . | AB119: . | AC119: . | AD119: . | AE119: . | AF119: . | AG119: . | AI119: =IF(S119=".",".",SUM($S119:S119)) -> . | AJ119: =IF(T119=".",".",SUM($S119:T119)) -> . | AK119: =IF(U119=".",".",SUM($S119:U119)) -> . | AL119: =IF(V119=".",".",SUM($S119:V119)) -> . | AM119: =IF(W119=".",".",SUM($S119:W119)) -> . | AN119: =IF(X119=".",".",SUM($S119:X119)) -> . | AO119: =IF(Y119=".",".",SUM($S119:Y119)) -> . | AQ119: . | AR119: . | AS119: . | AT119: . | AU119: . | AV119: . | AW119: .
C120: Special rate | D120: =IF('WK2 - Notional General Income'!D274="","",'WK2 - Notional General Income'!D274) ->  | E120: =IF('WK2 - Notional General Income'!M274=".",".",'WK2 - Notional General Income'!M274/'WK2 - Notional General Income'!E274) -> . | F120: =IF('WK3 - Notional GI Yr1 YIELD'!M274=".",".",'WK3 - Notional GI Yr1 YIELD'!M274/'WK3 - Notional GI Yr1 YIELD'!E274) -> . | O120: ='WK2 - Notional General Income'!$E274 -> 0 | P120: ='WK3 - Notional GI Yr1 YIELD'!$E274 -> 0 | S120: . | T120: . | U120: . | V120: . | W120: . | X120: . | Y120: . | AA120: . | AB120: . | AC120: . | AD120: . | AE120: . | AF120: . | AG120: . | AI120: =IF(S120=".",".",SUM($S120:S120)) -> . | AJ120: =IF(T120=".",".",SUM($S120:T120)) -> . | AK120: =IF(U120=".",".",SUM($S120:U120)) -> . | AL120: =IF(V120=".",".",SUM($S120:V120)) -> . | AM120: =IF(W120=".",".",SUM($S120:W120)) -> . | AN120: =IF(X120=".",".",SUM($S120:X120)) -> . | AO120: =IF(Y120=".",".",SUM($S120:Y120)) -> . | AQ120: . | AR120: . | AS120: . | AT120: . | AU120: . | AV120: . | AW120: .
C121: Special rate | D121: =IF('WK2 - Notional General Income'!D275="","",'WK2 - Notional General Income'!D275) ->  | E121: =IF('WK2 - Notional General Income'!M275=".",".",'WK2 - Notional General Income'!M275/'WK2 - Notional General Income'!E275) -> . | F121: =IF('WK3 - Notional GI Yr1 YIELD'!M275=".",".",'WK3 - Notional GI Yr1 YIELD'!M275/'WK3 - Notional GI Yr1 YIELD'!E275) -> . | O121: ='WK2 - Notional General Income'!$E275 -> 0 | P121: ='WK3 - Notional GI Yr1 YIELD'!$E275 -> 0 | S121: . | T121: . | U121: . | V121: . | W121: . | X121: . | Y121: . | AA121: . | AB121: . | AC121: . | AD121: . | AE121: . | AF121: . | AG121: . | AI121: =IF(S121=".",".",SUM($S121:S121)) -> . | AJ121: =IF(T121=".",".",SUM($S121:T121)) -> . | AK121: =IF(U121=".",".",SUM($S121:U121)) -> . | AL121: =IF(V121=".",".",SUM($S121:V121)) -> . | AM121: =IF(W121=".",".",SUM($S121:W121)) -> . | AN121: =IF(X121=".",".",SUM($S121:X121)) -> . | AO121: =IF(Y121=".",".",SUM($S121:Y121)) -> . | AQ121: . | AR121: . | AS121: . | AT121: . | AU121: . | AV121: . | AW121: .
C122: Special rate | D122: =IF('WK2 - Notional General Income'!D276="","",'WK2 - Notional General Income'!D276) ->  | E122: =IF('WK2 - Notional General Income'!M276=".",".",'WK2 - Notional General Income'!M276/'WK2 - Notional General Income'!E276) -> . | F122: =IF('WK3 - Notional GI Yr1 YIELD'!M276=".",".",'WK3 - Notional GI Yr1 YIELD'!M276/'WK3 - Notional GI Yr1 YIELD'!E276) -> . | O122: ='WK2 - Notional General Income'!$E276 -> 0 | P122: ='WK3 - Notional GI Yr1 YIELD'!$E276 -> 0 | S122: . | T122: . | U122: . | V122: . | W122: . | X122: . | Y122: . | AA122: . | AB122: . | AC122: . | AD122: . | AE122: . | AF122: . | AG122: . | AI122: =IF(S122=".",".",SUM($S122:S122)) -> . | AJ122: =IF(T122=".",".",SUM($S122:T122)) -> . | AK122: =IF(U122=".",".",SUM($S122:U122)) -> . | AL122: =IF(V122=".",".",SUM($S122:V122)) -> . | AM122: =IF(W122=".",".",SUM($S122:W122)) -> . | AN122: =IF(X122=".",".",SUM($S122:X122)) -> . | AO122: =IF(Y122=".",".",SUM($S122:Y122)) -> . | AQ122: . | AR122: . | AS122: . | AT122: . | AU122: . | AV122: . | AW122: .
C123: Special rate | D123: =IF('WK2 - Notional General Income'!D277="","",'WK2 - Notional General Income'!D277) ->  | E123: =IF('WK2 - Notional General Income'!M277=".",".",'WK2 - Notional General Income'!M277/'WK2 - Notional General Income'!E277) -> . | F123: =IF('WK3 - Notional GI Yr1 YIELD'!M277=".",".",'WK3 - Notional GI Yr1 YIELD'!M277/'WK3 - Notional GI Yr1 YIELD'!E277) -> . | O123: ='WK2 - Notional General Income'!$E277 -> 0 | P123: ='WK3 - Notional GI Yr1 YIELD'!$E277 -> 0 | S123: . | T123: . | U123: . | V123: . | W123: . | X123: . | Y123: . | AA123: . | AB123: . | AC123: . | AD123: . | AE123: . | AF123: . | AG123: . | AI123: =IF(S123=".",".",SUM($S123:S123)) -> . | AJ123: =IF(T123=".",".",SUM($S123:T123)) -> . | AK123: =IF(U123=".",".",SUM($S123:U123)) -> . | AL123: =IF(V123=".",".",SUM($S123:V123)) -> . | AM123: =IF(W123=".",".",SUM($S123:W123)) -> . | AN123: =IF(X123=".",".",SUM($S123:X123)) -> . | AO123: =IF(Y123=".",".",SUM($S123:Y123)) -> . | AQ123: . | AR123: . | AS123: . | AT123: . | AU123: . | AV123: . | AW123: .
C124: Special rate | D124: =IF('WK2 - Notional General Income'!D278="","",'WK2 - Notional General Income'!D278) ->  | E124: =IF('WK2 - Notional General Income'!M278=".",".",'WK2 - Notional General Income'!M278/'WK2 - Notional General Income'!E278) -> . | F124: =IF('WK3 - Notional GI Yr1 YIELD'!M278=".",".",'WK3 - Notional GI Yr1 YIELD'!M278/'WK3 - Notional GI Yr1 YIELD'!E278) -> . | O124: ='WK2 - Notional General Income'!$E278 -> 0 | P124: ='WK3 - Notional GI Yr1 YIELD'!$E278 -> 0 | S124: . | T124: . | U124: . | V124: . | W124: . | X124: . | Y124: . | AA124: . | AB124: . | AC124: . | AD124: . | AE124: . | AF124: . | AG124: . | AI124: =IF(S124=".",".",SUM($S124:S124)) -> . | AJ124: =IF(T124=".",".",SUM($S124:T124)) -> . | AK124: =IF(U124=".",".",SUM($S124:U124)) -> . | AL124: =IF(V124=".",".",SUM($S124:V124)) -> . | AM124: =IF(W124=".",".",SUM($S124:W124)) -> . | AN124: =IF(X124=".",".",SUM($S124:X124)) -> . | AO124: =IF(Y124=".",".",SUM($S124:Y124)) -> . | AQ124: . | AR124: . | AS124: . | AT124: . | AU124: . | AV124: . | AW124: .
C125: Special rate | D125: =IF('WK2 - Notional General Income'!D279="","",'WK2 - Notional General Income'!D279) ->  | E125: =IF('WK2 - Notional General Income'!M279=".",".",'WK2 - Notional General Income'!M279/'WK2 - Notional General Income'!E279) -> . | F125: =IF('WK3 - Notional GI Yr1 YIELD'!M279=".",".",'WK3 - Notional GI Yr1 YIELD'!M279/'WK3 - Notional GI Yr1 YIELD'!E279) -> . | O125: ='WK2 - Notional General Income'!$E279 -> 0 | P125: ='WK3 - Notional GI Yr1 YIELD'!$E279 -> 0 | S125: . | T125: . | U125: . | V125: . | W125: . | X125: . | Y125: . | AA125: . | AB125: . | AC125: . | AD125: . | AE125: . | AF125: . | AG125: . | AI125: =IF(S125=".",".",SUM($S125:S125)) -> . | AJ125: =IF(T125=".",".",SUM($S125:T125)) -> . | AK125: =IF(U125=".",".",SUM($S125:U125)) -> . | AL125: =IF(V125=".",".",SUM($S125:V125)) -> . | AM125: =IF(W125=".",".",SUM($S125:W125)) -> . | AN125: =IF(X125=".",".",SUM($S125:X125)) -> . | AO125: =IF(Y125=".",".",SUM($S125:Y125)) -> . | AQ125: . | AR125: . | AS125: . | AT125: . | AU125: . | AV125: . | AW125: .
C126: Special rate | D126: =IF('WK2 - Notional General Income'!D280="","",'WK2 - Notional General Income'!D280) ->  | E126: =IF('WK2 - Notional General Income'!M280=".",".",'WK2 - Notional General Income'!M280/'WK2 - Notional General Income'!E280) -> . | F126: =IF('WK3 - Notional GI Yr1 YIELD'!M280=".",".",'WK3 - Notional GI Yr1 YIELD'!M280/'WK3 - Notional GI Yr1 YIELD'!E280) -> . | O126: ='WK2 - Notional General Income'!$E280 -> 0 | P126: ='WK3 - Notional GI Yr1 YIELD'!$E280 -> 0 | S126: . | T126: . | U126: . | V126: . | W126: . | X126: . | Y126: . | AA126: . | AB126: . | AC126: . | AD126: . | AE126: . | AF126: . | AG126: . | AI126: =IF(S126=".",".",SUM($S126:S126)) -> . | AJ126: =IF(T126=".",".",SUM($S126:T126)) -> . | AK126: =IF(U126=".",".",SUM($S126:U126)) -> . | AL126: =IF(V126=".",".",SUM($S126:V126)) -> . | AM126: =IF(W126=".",".",SUM($S126:W126)) -> . | AN126: =IF(X126=".",".",SUM($S126:X126)) -> . | AO126: =IF(Y126=".",".",SUM($S126:Y126)) -> . | AQ126: . | AR126: . | AS126: . | AT126: . | AU126: . | AV126: . | AW126: .
C127: Special rate | D127: =IF('WK2 - Notional General Income'!D281="","",'WK2 - Notional General Income'!D281) ->  | E127: =IF('WK2 - Notional General Income'!M281=".",".",'WK2 - Notional General Income'!M281/'WK2 - Notional General Income'!E281) -> . | F127: =IF('WK3 - Notional GI Yr1 YIELD'!M281=".",".",'WK3 - Notional GI Yr1 YIELD'!M281/'WK3 - Notional GI Yr1 YIELD'!E281) -> . | O127: ='WK2 - Notional General Income'!$E281 -> 0 | P127: ='WK3 - Notional GI Yr1 YIELD'!$E281 -> 0 | S127: . | T127: . | U127: . | V127: . | W127: . | X127: . | Y127: . | AA127: . | AB127: . | AC127: . | AD127: . | AE127: . | AF127: . | AG127: . | AI127: =IF(S127=".",".",SUM($S127:S127)) -> . | AJ127: =IF(T127=".",".",SUM($S127:T127)) -> . | AK127: =IF(U127=".",".",SUM($S127:U127)) -> . | AL127: =IF(V127=".",".",SUM($S127:V127)) -> . | AM127: =IF(W127=".",".",SUM($S127:W127)) -> . | AN127: =IF(X127=".",".",SUM($S127:X127)) -> . | AO127: =IF(Y127=".",".",SUM($S127:Y127)) -> . | AQ127: . | AR127: . | AS127: . | AT127: . | AU127: . | AV127: . | AW127: .
C128: Special rate | D128: =IF('WK2 - Notional General Income'!D282="","",'WK2 - Notional General Income'!D282) ->  | E128: =IF('WK2 - Notional General Income'!M282=".",".",'WK2 - Notional General Income'!M282/'WK2 - Notional General Income'!E282) -> . | F128: =IF('WK3 - Notional GI Yr1 YIELD'!M282=".",".",'WK3 - Notional GI Yr1 YIELD'!M282/'WK3 - Notional GI Yr1 YIELD'!E282) -> . | O128: ='WK2 - Notional General Income'!$E282 -> 0 | P128: ='WK3 - Notional GI Yr1 YIELD'!$E282 -> 0 | S128: . | T128: . | U128: . | V128: . | W128: . | X128: . | Y128: . | AA128: . | AB128: . | AC128: . | AD128: . | AE128: . | AF128: . | AG128: . | AI128: =IF(S128=".",".",SUM($S128:S128)) -> . | AJ128: =IF(T128=".",".",SUM($S128:T128)) -> . | AK128: =IF(U128=".",".",SUM($S128:U128)) -> . | AL128: =IF(V128=".",".",SUM($S128:V128)) -> . | AM128: =IF(W128=".",".",SUM($S128:W128)) -> . | AN128: =IF(X128=".",".",SUM($S128:X128)) -> . | AO128: =IF(Y128=".",".",SUM($S128:Y128)) -> . | AQ128: . | AR128: . | AS128: . | AT128: . | AU128: . | AV128: . | AW128: .
C129: Special rate | D129: =IF('WK2 - Notional General Income'!D283="","",'WK2 - Notional General Income'!D283) ->  | E129: =IF('WK2 - Notional General Income'!M283=".",".",'WK2 - Notional General Income'!M283/'WK2 - Notional General Income'!E283) -> . | F129: =IF('WK3 - Notional GI Yr1 YIELD'!M283=".",".",'WK3 - Notional GI Yr1 YIELD'!M283/'WK3 - Notional GI Yr1 YIELD'!E283) -> . | O129: ='WK2 - Notional General Income'!$E283 -> 0 | P129: ='WK3 - Notional GI Yr1 YIELD'!$E283 -> 0 | S129: . | T129: . | U129: . | V129: . | W129: . | X129: . | Y129: . | AA129: . | AB129: . | AC129: . | AD129: . | AE129: . | AF129: . | AG129: . | AI129: =IF(S129=".",".",SUM($S129:S129)) -> . | AJ129: =IF(T129=".",".",SUM($S129:T129)) -> . | AK129: =IF(U129=".",".",SUM($S129:U129)) -> . | AL129: =IF(V129=".",".",SUM($S129:V129)) -> . | AM129: =IF(W129=".",".",SUM($S129:W129)) -> . | AN129: =IF(X129=".",".",SUM($S129:X129)) -> . | AO129: =IF(Y129=".",".",SUM($S129:Y129)) -> . | AQ129: . | AR129: . | AS129: . | AT129: . | AU129: . | AV129: . | AW129: .
C130: Special rate | D130: =IF('WK2 - Notional General Income'!D284="","",'WK2 - Notional General Income'!D284) ->  | E130: =IF('WK2 - Notional General Income'!M284=".",".",'WK2 - Notional General Income'!M284/'WK2 - Notional General Income'!E284) -> . | F130: =IF('WK3 - Notional GI Yr1 YIELD'!M284=".",".",'WK3 - Notional GI Yr1 YIELD'!M284/'WK3 - Notional GI Yr1 YIELD'!E284) -> . | O130: ='WK2 - Notional General Income'!$E284 -> 0 | P130: ='WK3 - Notional GI Yr1 YIELD'!$E284 -> 0 | S130: . | T130: . | U130: . | V130: . | W130: . | X130: . | Y130: . | AA130: . | AB130: . | AC130: . | AD130: . | AE130: . | AF130: . | AG130: . | AI130: =IF(S130=".",".",SUM($S130:S130)) -> . | AJ130: =IF(T130=".",".",SUM($S130:T130)) -> . | AK130: =IF(U130=".",".",SUM($S130:U130)) -> . | AL130: =IF(V130=".",".",SUM($S130:V130)) -> . | AM130: =IF(W130=".",".",SUM($S130:W130)) -> . | AN130: =IF(X130=".",".",SUM($S130:X130)) -> . | AO130: =IF(Y130=".",".",SUM($S130:Y130)) -> . | AQ130: . | AR130: . | AS130: . | AT130: . | AU130: . | AV130: . | AW130: .
D131: TOTAL AVERAGE | E131: =IF($O131=0,".",SUMPRODUCT(E94:E130,$O94:$O130)/$O131) -> 4446.613932 | F131: =IF($P131=0,".",SUMPRODUCT(F94:F130,$P94:$P130)/$P131) -> 4521.124961 | G131: 4634.153085 | H131: 4750.006912 | I131: 4868.757085 | J131: 4990.476012 | K131: 5115.237912 | L131: 5243.11886 | O131: =SUM(O94:O110) -> 577 | P131: =SUM(P94:P110) -> 581 | S131: 74.51102904 | T131: 113.028124 | U131: =IF(H131=".",".",H131-G131) -> 115.8538271 | V131: 118.7501728 | W131: 121.7189271 | X131: 124.7619003 | Y131: 127.8809478 | AA131: 0.01675680196 | AB131: 0.025 | AC131: 0.025 | AD131: 0.025 | AE131: 0.025 | AF131: 0.025 | AG131: 0.025 | AI131: =IF(S131=".",".",SUM($S131:S131)) -> 74.51102904 | AJ131: =IF(T131=".",".",SUM($S131:T131)) -> 187.5391531 | AK131: =IF(U131=".",".",SUM($S131:U131)) -> 303.3929802 | AL131: =IF(V131=".",".",SUM($S131:V131)) -> 422.143153 | AM131: =IF(W131=".",".",SUM($S131:W131)) -> 543.8620801 | AN131: =IF(X131=".",".",SUM($S131:X131)) -> 668.6239804 | AO131: =IF(Y131=".",".",SUM($S131:Y131)) -> 796.5049282 | AQ131: 0.01675680196 | AR131: 0.04217572201 | AS131: 0.06823011506 | AT131: 0.09493586793 | AU131: 0.1223092646 | AV131: 0.1503669962 | AW131: 0.1791261712
C132: Farmland | D132: =IF('WK2 - Notional General Income'!D157="","",'WK2 - Notional General Income'!D157) -> Armidale | E132: =IF('WK2 - Notional General Income'!M157=".",".",'WK2 - Notional General Income'!M157/'WK2 - Notional General Income'!E157) -> 3514.938596 | F132: =IF('WK3 - Notional GI Yr1 YIELD'!M157=".",".",'WK3 - Notional GI Yr1 YIELD'!M157/'WK3 - Notional GI Yr1 YIELD'!E157) -> 3119.048088 | G132: =F132*1.025 -> 3197.024291 | H132: =G132*1.025 -> 3276.949898 | I132: 3358.873645 | J132: 3442.845487 | K132: 3528.916624 | L132: 3617.139539 | O132: ='WK2 - Notional General Income'!$E157 -> 832 | P132: ='WK3 - Notional GI Yr1 YIELD'!$E157 -> 828 | S132: -395.8905077 | T132: 77.97620221 | U132: 79.92560727 | V132: 81.92374745 | W132: 83.97184114 | X132: 86.07113716 | Y132: 88.22291559 | AA132: -0.112630846 | AB132: 0.025 | AC132: 0.025 | AD132: 0.025 | AE132: 0.025 | AF132: 0.025 | AG132: 0.025 | AI132: =IF(S132=".",".",SUM($S132:S132)) -> -395.8905077 | AJ132: =IF(T132=".",".",SUM($S132:T132)) -> -317.9143055 | AK132: =IF(U132=".",".",SUM($S132:U132)) -> -237.9886982 | AL132: =IF(V132=".",".",SUM($S132:V132)) -> -156.0649507 | AM132: =IF(W132=".",".",SUM($S132:W132)) -> -72.09310961 | AN132: =IF(X132=".",".",SUM($S132:X132)) -> 13.97802756 | AO132: =IF(Y132=".",".",SUM($S132:Y132)) -> 102.2009431 | AQ132: -0.112630846 | AR132: -0.09044661713 | AS132: -0.06770778256 | AT132: -0.04440047713 | AU132: -0.02051048906 | AV132: 0.003976748718 | AW132: 0.02907616744
C133: Farmland | D133: =IF('WK2 - Notional General Income'!D158="","",'WK2 - Notional General Income'!D158) -> Conservation Agreements | E133: =IF('WK2 - Notional General Income'!M158=".",".",'WK2 - Notional General Income'!M158/'WK2 - Notional General Income'!E158) -> -2632 | F133: =IF('WK3 - Notional GI Yr1 YIELD'!M158=".",".",'WK3 - Notional GI Yr1 YIELD'!M158/'WK3 - Notional GI Yr1 YIELD'!E158) -> . | O133: ='WK2 - Notional General Income'!$E158 -> 1 | P133: ='WK3 - Notional GI Yr1 YIELD'!$E158 -> 0 | S133: . | T133: . | U133: . | V133: . | W133: . | X133: . | Y133: . | AA133: . | AB133: . | AC133: . | AD133: . | AE133: . | AF133: . | AG133: . | AI133: =IF(S133=".",".",SUM($S133:S133)) -> . | AJ133: =IF(T133=".",".",SUM($S133:T133)) -> . | AK133: =IF(U133=".",".",SUM($S133:U133)) -> . | AL133: =IF(V133=".",".",SUM($S133:V133)) -> . | AM133: =IF(W133=".",".",SUM($S133:W133)) -> . | AN133: =IF(X133=".",".",SUM($S133:X133)) -> . | AO133: =IF(Y133=".",".",SUM($S133:Y133)) -> . | AQ133: . | AR133: -1 | AS133: -1 | AT133: -1 | AU133: -1 | AV133: -1 | AW133: -1
C134: Farmland | D134: =IF('WK2 - Notional General Income'!D159="","",'WK2 - Notional General Income'!D159) ->  | E134: =IF('WK2 - Notional General Income'!M159=".",".",'WK2 - Notional General Income'!M159/'WK2 - Notional General Income'!E159) -> . | F134: =IF('WK3 - Notional GI Yr1 YIELD'!M159=".",".",'WK3 - Notional GI Yr1 YIELD'!M159/'WK3 - Notional GI Yr1 YIELD'!E159) -> . | O134: ='WK2 - Notional General Income'!$E159 -> 0 | P134: ='WK3 - Notional GI Yr1 YIELD'!$E159 -> 0 | S134: . | T134: . | U134: . | V134: . | W134: . | X134: . | Y134: . | AA134: . | AB134: . | AC134: . | AD134: . | AE134: . | AF134: . | AG134: . | AI134: =IF(S134=".",".",SUM($S134:S134)) -> . | AJ134: =IF(T134=".",".",SUM($S134:T134)) -> . | AK134: =IF(U134=".",".",SUM($S134:U134)) -> . | AL134: =IF(V134=".",".",SUM($S134:V134)) -> . | AM134: =IF(W134=".",".",SUM($S134:W134)) -> . | AN134: =IF(X134=".",".",SUM($S134:X134)) -> . | AO134: =IF(Y134=".",".",SUM($S134:Y134)) -> . | AQ134: . | AR134: . | AS134: . | AT134: . | AU134: . | AV134: . | AW134: .
C135: Farmland | D135: =IF('WK2 - Notional General Income'!D160="","",'WK2 - Notional General Income'!D160) ->  | E135: =IF('WK2 - Notional General Income'!M160=".",".",'WK2 - Notional General Income'!M160/'WK2 - Notional General Income'!E160) -> . | F135: =IF('WK3 - Notional GI Yr1 YIELD'!M160=".",".",'WK3 - Notional GI Yr1 YIELD'!M160/'WK3 - Notional GI Yr1 YIELD'!E160) -> . | O135: ='WK2 - Notional General Income'!$E160 -> 0 | P135: ='WK3 - Notional GI Yr1 YIELD'!$E160 -> 0 | S135: . | T135: . | U135: . | V135: . | W135: . | X135: . | Y135: . | AA135: . | AB135: . | AC135: . | AD135: . | AE135: . | AF135: . | AG135: . | AI135: =IF(S135=".",".",SUM($S135:S135)) -> . | AJ135: =IF(T135=".",".",SUM($S135:T135)) -> . | AK135: =IF(U135=".",".",SUM($S135:U135)) -> . | AL135: =IF(V135=".",".",SUM($S135:V135)) -> . | AM135: =IF(W135=".",".",SUM($S135:W135)) -> . | AN135: =IF(X135=".",".",SUM($S135:X135)) -> . | AO135: =IF(Y135=".",".",SUM($S135:Y135)) -> . | AQ135: . | AR135: . | AS135: . | AT135: . | AU135: . | AV135: . | AW135: .
C136: Farmland | D136: =IF('WK2 - Notional General Income'!D161="","",'WK2 - Notional General Income'!D161) ->  | E136: =IF('WK2 - Notional General Income'!M161=".",".",'WK2 - Notional General Income'!M161/'WK2 - Notional General Income'!E161) -> . | F136: =IF('WK3 - Notional GI Yr1 YIELD'!M161=".",".",'WK3 - Notional GI Yr1 YIELD'!M161/'WK3 - Notional GI Yr1 YIELD'!E161) -> . | O136: ='WK2 - Notional General Income'!$E161 -> 0 | P136: ='WK3 - Notional GI Yr1 YIELD'!$E161 -> 0 | S136: . | T136: . | U136: . | V136: . | W136: . | X136: . | Y136: . | AA136: . | AB136: . | AC136: . | AD136: . | AE136: . | AF136: . | AG136: . | AI136: =IF(S136=".",".",SUM($S136:S136)) -> . | AJ136: =IF(T136=".",".",SUM($S136:T136)) -> . | AK136: =IF(U136=".",".",SUM($S136:U136)) -> . | AL136: =IF(V136=".",".",SUM($S136:V136)) -> . | AM136: =IF(W136=".",".",SUM($S136:W136)) -> . | AN136: =IF(X136=".",".",SUM($S136:X136)) -> . | AO136: =IF(Y136=".",".",SUM($S136:Y136)) -> . | AQ136: . | AR136: . | AS136: . | AT136: . | AU136: . | AV136: . | AW136: .
C137: Farmland | D137: =IF('WK2 - Notional General Income'!D162="","",'WK2 - Notional General Income'!D162) ->  | E137: =IF('WK2 - Notional General Income'!M162=".",".",'WK2 - Notional General Income'!M162/'WK2 - Notional General Income'!E162) -> . | F137: =IF('WK3 - Notional GI Yr1 YIELD'!M162=".",".",'WK3 - Notional GI Yr1 YIELD'!M162/'WK3 - Notional GI Yr1 YIELD'!E162) -> . | O137: ='WK2 - Notional General Income'!$E162 -> 0 | P137: ='WK3 - Notional GI Yr1 YIELD'!$E162 -> 0 | S137: . | T137: . | U137: . | V137: . | W137: . | X137: . | Y137: . | AA137: . | AB137: . | AC137: . | AD137: . | AE137: . | AF137: . | AG137: . | AI137: =IF(S137=".",".",SUM($S137:S137)) -> . | AJ137: =IF(T137=".",".",SUM($S137:T137)) -> . | AK137: =IF(U137=".",".",SUM($S137:U137)) -> . | AL137: =IF(V137=".",".",SUM($S137:V137)) -> . | AM137: =IF(W137=".",".",SUM($S137:W137)) -> . | AN137: =IF(X137=".",".",SUM($S137:X137)) -> . | AO137: =IF(Y137=".",".",SUM($S137:Y137)) -> . | AQ137: . | AR137: . | AS137: . | AT137: . | AU137: . | AV137: . | AW137: .
C138: Farmland | D138: =IF('WK2 - Notional General Income'!D163="","",'WK2 - Notional General Income'!D163) ->  | E138: =IF('WK2 - Notional General Income'!M163=".",".",'WK2 - Notional General Income'!M163/'WK2 - Notional General Income'!E163) -> . | F138: =IF('WK3 - Notional GI Yr1 YIELD'!M163=".",".",'WK3 - Notional GI Yr1 YIELD'!M163/'WK3 - Notional GI Yr1 YIELD'!E163) -> . | O138: ='WK2 - Notional General Income'!$E163 -> 0 | P138: ='WK3 - Notional GI Yr1 YIELD'!$E163 -> 0 | S138: . | T138: . | U138: . | V138: . | W138: . | X138: . | Y138: . | AA138: . | AB138: . | AC138: . | AD138: . | AE138: . | AF138: . | AG138: . | AI138: =IF(S138=".",".",SUM($S138:S138)) -> . | AJ138: =IF(T138=".",".",SUM($S138:T138)) -> . | AK138: =IF(U138=".",".",SUM($S138:U138)) -> . | AL138: =IF(V138=".",".",SUM($S138:V138)) -> . | AM138: =IF(W138=".",".",SUM($S138:W138)) -> . | AN138: =IF(X138=".",".",SUM($S138:X138)) -> . | AO138: =IF(Y138=".",".",SUM($S138:Y138)) -> . | AQ138: . | AR138: . | AS138: . | AT138: . | AU138: . | AV138: . | AW138: .
C139: Farmland | D139: =IF('WK2 - Notional General Income'!D164="","",'WK2 - Notional General Income'!D164) ->  | E139: =IF('WK2 - Notional General Income'!M164=".",".",'WK2 - Notional General Income'!M164/'WK2 - Notional General Income'!E164) -> . | F139: =IF('WK3 - Notional GI Yr1 YIELD'!M164=".",".",'WK3 - Notional GI Yr1 YIELD'!M164/'WK3 - Notional GI Yr1 YIELD'!E164) -> . | O139: ='WK2 - Notional General Income'!$E164 -> 0 | P139: ='WK3 - Notional GI Yr1 YIELD'!$E164 -> 0 | S139: . | T139: . | U139: . | V139: . | W139: . | X139: . | Y139: . | AA139: . | AB139: =IFERROR(G139/F139-1,".") -> . | AC139: =IFERROR(H139/G139-1,".") -> . | AD139: =IFERROR(I139/H139-1,".") -> . | AE139: =IFERROR(J139/I139-1,".") -> . | AF139: =IFERROR(K139/J139-1,".") -> . | AG139: =IFERROR(L139/K139-1,".") -> . | AI139: =IF(S139=".",".",SUM($S139:S139)) -> . | AJ139: =IF(T139=".",".",SUM($S139:T139)) -> . | AK139: =IF(U139=".",".",SUM($S139:U139)) -> . | AL139: =IF(V139=".",".",SUM($S139:V139)) -> . | AM139: =IF(W139=".",".",SUM($S139:W139)) -> . | AN139: =IF(X139=".",".",SUM($S139:X139)) -> . | AO139: =IF(Y139=".",".",SUM($S139:Y139)) -> . | AQ139: . | AR139: =IFERROR(G139/$E139-1,".") -> . | AS139: =IFERROR(H139/$E139-1,".") -> . | AT139: =IFERROR(I139/$E139-1,".") -> . | AU139: =IFERROR(J139/$E139-1,".") -> . | AV139: =IFERROR(K139/$E139-1,".") -> . | AW139: =IFERROR(L139/$E139-1,".") -> .
C140: Special rate | D140: =IF('WK2 - Notional General Income'!D285="","",'WK2 - Notional General Income'!D285) ->  | E140: =IF('WK2 - Notional General Income'!M285=".",".",'WK2 - Notional General Income'!M285/'WK2 - Notional General Income'!E285) -> . | F140: =IF('WK3 - Notional GI Yr1 YIELD'!M285=".",".",'WK3 - Notional GI Yr1 YIELD'!M285/'WK3 - Notional GI Yr1 YIELD'!E285) -> . | O140: ='WK2 - Notional General Income'!$E285 -> 0 | P140: ='WK3 - Notional GI Yr1 YIELD'!$E285 -> 0 | S140: . | T140: . | U140: . | V140: . | W140: . | X140: . | Y140: . | AA140: =IFERROR(F140/E140-1,".") -> . | AB140: . | AC140: . | AD140: . | AE140: . | AF140: . | AG140: . | AI140: =IF(S140=".",".",SUM($S140:S140)) -> . | AJ140: =IF(T140=".",".",SUM($S140:T140)) -> . | AK140: =IF(U140=".",".",SUM($S140:U140)) -> . | AL140: =IF(V140=".",".",SUM($S140:V140)) -> . | AM140: =IF(W140=".",".",SUM($S140:W140)) -> . | AN140: =IF(X140=".",".",SUM($S140:X140)) -> . | AO140: =IF(Y140=".",".",SUM($S140:Y140)) -> . | AQ140: =IFERROR(F140/$E140-1,".") -> . | AR140: . | AS140: . | AT140: . | AU140: . | AV140: . | AW140: .
C141: Special rate | D141: =IF('WK2 - Notional General Income'!D286="","",'WK2 - Notional General Income'!D286) ->  | E141: =IF('WK2 - Notional General Income'!M286=".",".",'WK2 - Notional General Income'!M286/'WK2 - Notional General Income'!E286) -> . | F141: =IF('WK3 - Notional GI Yr1 YIELD'!M286=".",".",'WK3 - Notional GI Yr1 YIELD'!M286/'WK3 - Notional GI Yr1 YIELD'!E286) -> . | O141: ='WK2 - Notional General Income'!$E286 -> 0 | P141: ='WK3 - Notional GI Yr1 YIELD'!$E286 -> 0 | S141: . | T141: . | U141: . | V141: . | W141: . | X141: . | Y141: . | AA141: . | AB141: . | AC141: . | AD141: . | AE141: . | AF141: . | AG141: . | AI141: =IF(S141=".",".",SUM($S141:S141)) -> . | AJ141: =IF(T141=".",".",SUM($S141:T141)) -> . | AK141: =IF(U141=".",".",SUM($S141:U141)) -> . | AL141: =IF(V141=".",".",SUM($S141:V141)) -> . | AM141: =IF(W141=".",".",SUM($S141:W141)) -> . | AN141: =IF(X141=".",".",SUM($S141:X141)) -> . | AO141: =IF(Y141=".",".",SUM($S141:Y141)) -> . | AQ141: . | AR141: . | AS141: . | AT141: . | AU141: . | AV141: . | AW141: .
C142: Special rate | D142: =IF('WK2 - Notional General Income'!D287="","",'WK2 - Notional General Income'!D287) ->  | E142: =IF('WK2 - Notional General Income'!M287=".",".",'WK2 - Notional General Income'!M287/'WK2 - Notional General Income'!E287) -> . | F142: =IF('WK3 - Notional GI Yr1 YIELD'!M287=".",".",'WK3 - Notional GI Yr1 YIELD'!M287/'WK3 - Notional GI Yr1 YIELD'!E287) -> . | O142: ='WK2 - Notional General Income'!$E287 -> 0 | P142: ='WK3 - Notional GI Yr1 YIELD'!$E287 -> 0 | S142: . | T142: . | U142: . | V142: . | W142: . | X142: . | Y142: . | AA142: . | AB142: . | AC142: . | AD142: . | AE142: . | AF142: . | AG142: . | AI142: =IF(S142=".",".",SUM($S142:S142)) -> . | AJ142: =IF(T142=".",".",SUM($S142:T142)) -> . | AK142: =IF(U142=".",".",SUM($S142:U142)) -> . | AL142: =IF(V142=".",".",SUM($S142:V142)) -> . | AM142: =IF(W142=".",".",SUM($S142:W142)) -> . | AN142: =IF(X142=".",".",SUM($S142:X142)) -> . | AO142: =IF(Y142=".",".",SUM($S142:Y142)) -> . | AQ142: . | AR142: . | AS142: . | AT142: . | AU142: . | AV142: . | AW142: .
C143: Special rate | D143: =IF('WK2 - Notional General Income'!D288="","",'WK2 - Notional General Income'!D288) ->  | E143: =IF('WK2 - Notional General Income'!M288=".",".",'WK2 - Notional General Income'!M288/'WK2 - Notional General Income'!E288) -> . | F143: =IF('WK3 - Notional GI Yr1 YIELD'!M288=".",".",'WK3 - Notional GI Yr1 YIELD'!M288/'WK3 - Notional GI Yr1 YIELD'!E288) -> . | O143: ='WK2 - Notional General Income'!$E288 -> 0 | P143: ='WK3 - Notional GI Yr1 YIELD'!$E288 -> 0 | S143: . | T143: . | U143: . | V143: . | W143: . | X143: . | Y143: . | AA143: . | AB143: . | AC143: . | AD143: . | AE143: . | AF143: . | AG143: . | AI143: =IF(S143=".",".",SUM($S143:S143)) -> . | AJ143: =IF(T143=".",".",SUM($S143:T143)) -> . | AK143: =IF(U143=".",".",SUM($S143:U143)) -> . | AL143: =IF(V143=".",".",SUM($S143:V143)) -> . | AM143: =IF(W143=".",".",SUM($S143:W143)) -> . | AN143: =IF(X143=".",".",SUM($S143:X143)) -> . | AO143: =IF(Y143=".",".",SUM($S143:Y143)) -> . | AQ143: . | AR143: . | AS143: . | AT143: . | AU143: . | AV143: . | AW143: .
C144: Special rate | D144: =IF('WK2 - Notional General Income'!D289="","",'WK2 - Notional General Income'!D289) ->  | E144: =IF('WK2 - Notional General Income'!M289=".",".",'WK2 - Notional General Income'!M289/'WK2 - Notional General Income'!E289) -> . | F144: =IF('WK3 - Notional GI Yr1 YIELD'!M289=".",".",'WK3 - Notional GI Yr1 YIELD'!M289/'WK3 - Notional GI Yr1 YIELD'!E289) -> . | O144: ='WK2 - Notional General Income'!$E289 -> 0 | P144: ='WK3 - Notional GI Yr1 YIELD'!$E289 -> 0 | S144: . | T144: . | U144: . | V144: . | W144: . | X144: . | Y144: . | AA144: . | AB144: . | AC144: . | AD144: . | AE144: . | AF144: . | AG144: . | AI144: =IF(S144=".",".",SUM($S144:S144)) -> . | AJ144: =IF(T144=".",".",SUM($S144:T144)) -> . | AK144: =IF(U144=".",".",SUM($S144:U144)) -> . | AL144: =IF(V144=".",".",SUM($S144:V144)) -> . | AM144: =IF(W144=".",".",SUM($S144:W144)) -> . | AN144: =IF(X144=".",".",SUM($S144:X144)) -> . | AO144: =IF(Y144=".",".",SUM($S144:Y144)) -> . | AQ144: . | AR144: . | AS144: . | AT144: . | AU144: . | AV144: . | AW144: .
C145: Special rate | D145: =IF('WK2 - Notional General Income'!D290="","",'WK2 - Notional General Income'!D290) ->  | E145: =IF('WK2 - Notional General Income'!M290=".",".",'WK2 - Notional General Income'!M290/'WK2 - Notional General Income'!E290) -> . | F145: =IF('WK3 - Notional GI Yr1 YIELD'!M290=".",".",'WK3 - Notional GI Yr1 YIELD'!M290/'WK3 - Notional GI Yr1 YIELD'!E290) -> . | O145: ='WK2 - Notional General Income'!$E290 -> 0 | P145: ='WK3 - Notional GI Yr1 YIELD'!$E290 -> 0 | S145: . | T145: . | U145: . | V145: . | W145: . | X145: . | Y145: . | AA145: . | AB145: . | AC145: . | AD145: . | AE145: . | AF145: . | AG145: . | AI145: =IF(S145=".",".",SUM($S145:S145)) -> . | AJ145: =IF(T145=".",".",SUM($S145:T145)) -> . | AK145: =IF(U145=".",".",SUM($S145:U145)) -> . | AL145: =IF(V145=".",".",SUM($S145:V145)) -> . | AM145: =IF(W145=".",".",SUM($S145:W145)) -> . | AN145: =IF(X145=".",".",SUM($S145:X145)) -> . | AO145: =IF(Y145=".",".",SUM($S145:Y145)) -> . | AQ145: . | AR145: . | AS145: . | AT145: . | AU145: . | AV145: . | AW145: .
C146: Special rate | D146: =IF('WK2 - Notional General Income'!D291="","",'WK2 - Notional General Income'!D291) ->  | E146: =IF('WK2 - Notional General Income'!M291=".",".",'WK2 - Notional General Income'!M291/'WK2 - Notional General Income'!E291) -> . | F146: =IF('WK3 - Notional GI Yr1 YIELD'!M291=".",".",'WK3 - Notional GI Yr1 YIELD'!M291/'WK3 - Notional GI Yr1 YIELD'!E291) -> . | O146: ='WK2 - Notional General Income'!$E291 -> 0 | P146: ='WK3 - Notional GI Yr1 YIELD'!$E291 -> 0 | S146: . | T146: . | U146: . | V146: . | W146: . | X146: . | Y146: . | AA146: . | AB146: . | AC146: . | AD146: . | AE146: . | AF146: . | AG146: . | AI146: =IF(S146=".",".",SUM($S146:S146)) -> . | AJ146: =IF(T146=".",".",SUM($S146:T146)) -> . | AK146: =IF(U146=".",".",SUM($S146:U146)) -> . | AL146: =IF(V146=".",".",SUM($S146:V146)) -> . | AM146: =IF(W146=".",".",SUM($S146:W146)) -> . | AN146: =IF(X146=".",".",SUM($S146:X146)) -> . | AO146: =IF(Y146=".",".",SUM($S146:Y146)) -> . | AQ146: . | AR146: . | AS146: . | AT146: . | AU146: . | AV146: . | AW146: .
C147: Special rate | D147: =IF('WK2 - Notional General Income'!D292="","",'WK2 - Notional General Income'!D292) ->  | E147: =IF('WK2 - Notional General Income'!M292=".",".",'WK2 - Notional General Income'!M292/'WK2 - Notional General Income'!E292) -> . | F147: =IF('WK3 - Notional GI Yr1 YIELD'!M292=".",".",'WK3 - Notional GI Yr1 YIELD'!M292/'WK3 - Notional GI Yr1 YIELD'!E292) -> . | O147: ='WK2 - Notional General Income'!$E292 -> 0 | P147: ='WK3 - Notional GI Yr1 YIELD'!$E292 -> 0 | S147: . | T147: . | U147: . | V147: . | W147: . | X147: . | Y147: . | AA147: . | AB147: . | AC147: . | AD147: . | AE147: . | AF147: . | AG147: . | AI147: =IF(S147=".",".",SUM($S147:S147)) -> . | AJ147: =IF(T147=".",".",SUM($S147:T147)) -> . | AK147: =IF(U147=".",".",SUM($S147:U147)) -> . | AL147: =IF(V147=".",".",SUM($S147:V147)) -> . | AM147: =IF(W147=".",".",SUM($S147:W147)) -> . | AN147: =IF(X147=".",".",SUM($S147:X147)) -> . | AO147: =IF(Y147=".",".",SUM($S147:Y147)) -> . | AQ147: . | AR147: . | AS147: . | AT147: . | AU147: . | AV147: . | AW147: .
C148: Special rate | D148: =IF('WK2 - Notional General Income'!D293="","",'WK2 - Notional General Income'!D293) ->  | E148: =IF('WK2 - Notional General Income'!M293=".",".",'WK2 - Notional General Income'!M293/'WK2 - Notional General Income'!E293) -> . | F148: =IF('WK3 - Notional GI Yr1 YIELD'!M293=".",".",'WK3 - Notional GI Yr1 YIELD'!M293/'WK3 - Notional GI Yr1 YIELD'!E293) -> . | O148: ='WK2 - Notional General Income'!$E293 -> 0 | P148: ='WK3 - Notional GI Yr1 YIELD'!$E293 -> 0 | S148: . | T148: . | U148: . | V148: . | W148: . | X148: . | Y148: . | AA148: . | AB148: . | AC148: . | AD148: . | AE148: . | AF148: . | AG148: . | AI148: =IF(S148=".",".",SUM($S148:S148)) -> . | AJ148: =IF(T148=".",".",SUM($S148:T148)) -> . | AK148: =IF(U148=".",".",SUM($S148:U148)) -> . | AL148: =IF(V148=".",".",SUM($S148:V148)) -> . | AM148: =IF(W148=".",".",SUM($S148:W148)) -> . | AN148: =IF(X148=".",".",SUM($S148:X148)) -> . | AO148: =IF(Y148=".",".",SUM($S148:Y148)) -> . | AQ148: . | AR148: . | AS148: . | AT148: . | AU148: . | AV148: . | AW148: .
C149: Special rate | D149: =IF('WK2 - Notional General Income'!D294="","",'WK2 - Notional General Income'!D294) ->  | E149: =IF('WK2 - Notional General Income'!M294=".",".",'WK2 - Notional General Income'!M294/'WK2 - Notional General Income'!E294) -> . | F149: =IF('WK3 - Notional GI Yr1 YIELD'!M294=".",".",'WK3 - Notional GI Yr1 YIELD'!M294/'WK3 - Notional GI Yr1 YIELD'!E294) -> . | O149: ='WK2 - Notional General Income'!$E294 -> 0 | P149: ='WK3 - Notional GI Yr1 YIELD'!$E294 -> 0 | S149: . | T149: . | U149: =IF(H149="",".",H149-G149) -> . | V149: =IF(I149="",".",I149-H149) -> . | W149: =IF(J149="",".",J149-I149) -> . | X149: =IF(K149="",".",K149-J149) -> . | Y149: =IF(L149="",".",L149-K149) -> . | AA149: . | AB149: . | AC149: . | AD149: . | AE149: . | AF149: . | AG149: . | AI149: =IF(S149=".",".",SUM($S149:S149)) -> . | AJ149: =IF(T149=".",".",SUM($S149:T149)) -> . | AK149: =IF(U149=".",".",SUM($S149:U149)) -> . | AL149: =IF(V149=".",".",SUM($S149:V149)) -> . | AM149: =IF(W149=".",".",SUM($S149:W149)) -> . | AN149: =IF(X149=".",".",SUM($S149:X149)) -> . | AO149: =IF(Y149=".",".",SUM($S149:Y149)) -> . | AQ149: . | AR149: . | AS149: . | AT149: . | AU149: . | AV149: . | AW149: .
D150: TOTAL AVERAGE | E150: =IF($O150=0,".",SUMPRODUCT(E132:E149,$O132:$O149)/$O150) -> 3507.559318 | F150: =IF($P150=0,".",SUMPRODUCT(F132:F149,$P132:$P149)/$P150) -> 3119.048088 | G150: 3197.024291 | H150: 3276.949898 | I150: 3358.873645 | J150: 3442.845487 | K150: 3528.916624 | L150: 3617.139539 | O150: =SUM(O132:O139) -> 833 | P150: =SUM(P132:P139) -> 828 | S150: -388.5112296 | T150: 77.97620221 | U150: =IF(H150=".",".",H150-G150) -> 79.92560727 | V150: 81.92374745 | W150: 83.97184114 | X150: 86.07113716 | Y150: 88.22291559 | AA150: -0.1107639799 | AB150: 0.025 | AC150: 0.025 | AD150: 0.025 | AE150: 0.025 | AF150: 0.025 | AG150: 0.025 | AI150: =IF(S150=".",".",SUM($S150:S150)) -> -388.5112296 | AJ150: =IF(T150=".",".",SUM($S150:T150)) -> -310.5350274 | AK150: =IF(U150=".",".",SUM($S150:U150)) -> -230.6094202 | AL150: =IF(V150=".",".",SUM($S150:V150)) -> -148.6856727 | AM150: =IF(W150=".",".",SUM($S150:W150)) -> -64.71383158 | AN150: =IF(X150=".",".",SUM($S150:X150)) -> 21.35730558 | AO150: =IF(Y150=".",".",SUM($S150:Y150)) -> 109.5802212 | AQ150: -0.1107639799 | AR150: -0.08853307935 | AS150: -0.06574640633 | AT150: -0.04239006649 | AU150: -0.01844981815 | AV150: 0.006088936393 | AW150: 0.0312411598
C151: Mining | D151: =IF('WK2 - Notional General Income'!D203="","",'WK2 - Notional General Income'!D203) -> Armidale | E151: =IF('WK2 - Notional General Income'!M203=".",".",'WK2 - Notional General Income'!M203/'WK2 - Notional General Income'!E203) -> 5925.285896 | F151: =IF('WK3 - Notional GI Yr1 YIELD'!M203=".",".",'WK3 - Notional GI Yr1 YIELD'!M203/'WK3 - Notional GI Yr1 YIELD'!E203) -> 5572.051896 | G151: =F151*1.025 -> 5711.353193 | H151: =G151*1.025 -> 5854.137023 | I151: 6000.490449 | J151: 6150.50271 | K151: 6304.265278 | L151: 6461.87191 | O151: ='WK2 - Notional General Income'!$E203 -> 11 | P151: ='WK3 - Notional GI Yr1 YIELD'!$E203 -> 12 | S151: -353.2340005 | T151: 139.3012974 | U151: 142.7838298 | V151: 146.3534256 | W151: 150.0122612 | X151: 153.7625677 | Y151: 157.6066319 | AA151: -0.05961467626 | AB151: 0.025 | AC151: 0.025 | AD151: 0.025 | AE151: 0.025 | AF151: 0.025 | AG151: 0.025 | AI151: =IF(S151=".",".",SUM($S151:S151)) -> -353.2340005 | AJ151: =IF(T151=".",".",SUM($S151:T151)) -> -213.9327031 | AK151: =IF(U151=".",".",SUM($S151:U151)) -> -71.14887322 | AL151: =IF(V151=".",".",SUM($S151:V151)) -> 75.20455235 | AM151: =IF(W151=".",".",SUM($S151:W151)) -> 225.2168136 | AN151: =IF(X151=".",".",SUM($S151:X151)) -> 378.9793813 | AO151: =IF(Y151=".",".",SUM($S151:Y151)) -> 536.5860133 | AQ151: -0.05961467626 | AR151: -0.03610504317 | AS151: -0.01200766924 | AT151: 0.01269213902 | AU151: 0.0380094425 | AV151: 0.06395967856 | AW151: 0.09055867053
C152: Mining | D152: =IF('WK2 - Notional General Income'!D204="","",'WK2 - Notional General Income'!D204) ->  | E152: =IF('WK2 - Notional General Income'!M204=".",".",'WK2 - Notional General Income'!M204/'WK2 - Notional General Income'!E204) -> . | F152: =IF('WK3 - Notional GI Yr1 YIELD'!M204=".",".",'WK3 - Notional GI Yr1 YIELD'!M204/'WK3 - Notional GI Yr1 YIELD'!E204) -> . | O152: ='WK2 - Notional General Income'!$E204 -> 0 | P152: ='WK3 - Notional GI Yr1 YIELD'!$E204 -> 0 | S152: . | T152: . | U152: . | V152: . | W152: . | X152: . | Y152: . | AA152: . | AB152: . | AC152: . | AD152: . | AE152: . | AF152: . | AG152: . | AI152: =IF(S152=".",".",SUM($S152:S152)) -> . | AJ152: =IF(T152=".",".",SUM($S152:T152)) -> . | AK152: =IF(U152=".",".",SUM($S152:U152)) -> . | AL152: =IF(V152=".",".",SUM($S152:V152)) -> . | AM152: =IF(W152=".",".",SUM($S152:W152)) -> . | AN152: =IF(X152=".",".",SUM($S152:X152)) -> . | AO152: =IF(Y152=".",".",SUM($S152:Y152)) -> . | AQ152: . | AR152: . | AS152: . | AT152: . | AU152: . | AV152: . | AW152: .
C153: Mining | D153: =IF('WK2 - Notional General Income'!D205="","",'WK2 - Notional General Income'!D205) ->  | E153: =IF('WK2 - Notional General Income'!M205=".",".",'WK2 - Notional General Income'!M205/'WK2 - Notional General Income'!E205) -> . | F153: =IF('WK3 - Notional GI Yr1 YIELD'!M205=".",".",'WK3 - Notional GI Yr1 YIELD'!M205/'WK3 - Notional GI Yr1 YIELD'!E205) -> . | O153: ='WK2 - Notional General Income'!$E205 -> 0 | P153: ='WK3 - Notional GI Yr1 YIELD'!$E205 -> 0 | S153: . | T153: . | U153: . | V153: . | W153: . | X153: . | Y153: . | AA153: . | AB153: . | AC153: . | AD153: . | AE153: . | AF153: . | AG153: . | AI153: =IF(S153=".",".",SUM($S153:S153)) -> . | AJ153: =IF(T153=".",".",SUM($S153:T153)) -> . | AK153: =IF(U153=".",".",SUM($S153:U153)) -> . | AL153: =IF(V153=".",".",SUM($S153:V153)) -> . | AM153: =IF(W153=".",".",SUM($S153:W153)) -> . | AN153: =IF(X153=".",".",SUM($S153:X153)) -> . | AO153: =IF(Y153=".",".",SUM($S153:Y153)) -> . | AQ153: . | AR153: . | AS153: . | AT153: . | AU153: . | AV153: . | AW153: .
C154: Mining | D154: =IF('WK2 - Notional General Income'!D206="","",'WK2 - Notional General Income'!D206) ->  | E154: =IF('WK2 - Notional General Income'!M206=".",".",'WK2 - Notional General Income'!M206/'WK2 - Notional General Income'!E206) -> . | F154: =IF('WK3 - Notional GI Yr1 YIELD'!M206=".",".",'WK3 - Notional GI Yr1 YIELD'!M206/'WK3 - Notional GI Yr1 YIELD'!E206) -> . | O154: ='WK2 - Notional General Income'!$E206 -> 0 | P154: ='WK3 - Notional GI Yr1 YIELD'!$E206 -> 0 | S154: . | T154: . | U154: . | V154: . | W154: . | X154: . | Y154: . | AA154: . | AB154: . | AC154: . | AD154: . | AE154: . | AF154: . | AG154: . | AI154: =IF(S154=".",".",SUM($S154:S154)) -> . | AJ154: =IF(T154=".",".",SUM($S154:T154)) -> . | AK154: =IF(U154=".",".",SUM($S154:U154)) -> . | AL154: =IF(V154=".",".",SUM($S154:V154)) -> . | AM154: =IF(W154=".",".",SUM($S154:W154)) -> . | AN154: =IF(X154=".",".",SUM($S154:X154)) -> . | AO154: =IF(Y154=".",".",SUM($S154:Y154)) -> . | AQ154: . | AR154: . | AS154: . | AT154: . | AU154: . | AV154: . | AW154: .
C155: Mining | D155: =IF('WK2 - Notional General Income'!D207="","",'WK2 - Notional General Income'!D207) ->  | E155: =IF('WK2 - Notional General Income'!M207=".",".",'WK2 - Notional General Income'!M207/'WK2 - Notional General Income'!E207) -> . | F155: =IF('WK3 - Notional GI Yr1 YIELD'!M207=".",".",'WK3 - Notional GI Yr1 YIELD'!M207/'WK3 - Notional GI Yr1 YIELD'!E207) -> . | O155: ='WK2 - Notional General Income'!$E207 -> 0 | P155: ='WK3 - Notional GI Yr1 YIELD'!$E207 -> 0 | S155: . | T155: . | U155: . | V155: . | W155: . | X155: . | Y155: . | AA155: . | AB155: . | AC155: . | AD155: . | AE155: . | AF155: . | AG155: . | AI155: =IF(S155=".",".",SUM($S155:S155)) -> . | AJ155: =IF(T155=".",".",SUM($S155:T155)) -> . | AK155: =IF(U155=".",".",SUM($S155:U155)) -> . | AL155: =IF(V155=".",".",SUM($S155:V155)) -> . | AM155: =IF(W155=".",".",SUM($S155:W155)) -> . | AN155: =IF(X155=".",".",SUM($S155:X155)) -> . | AO155: =IF(Y155=".",".",SUM($S155:Y155)) -> . | AQ155: . | AR155: . | AS155: . | AT155: . | AU155: . | AV155: . | AW155: .
C156: Mining | D156: =IF('WK2 - Notional General Income'!D208="","",'WK2 - Notional General Income'!D208) ->  | E156: =IF('WK2 - Notional General Income'!M208=".",".",'WK2 - Notional General Income'!M208/'WK2 - Notional General Income'!E208) -> . | F156: =IF('WK3 - Notional GI Yr1 YIELD'!M208=".",".",'WK3 - Notional GI Yr1 YIELD'!M208/'WK3 - Notional GI Yr1 YIELD'!E208) -> . | O156: ='WK2 - Notional General Income'!$E208 -> 0 | P156: ='WK3 - Notional GI Yr1 YIELD'!$E208 -> 0 | S156: . | T156: . | U156: . | V156: . | W156: . | X156: . | Y156: . | AA156: . | AB156: . | AC156: . | AD156: . | AE156: . | AF156: . | AG156: . | AI156: =IF(S156=".",".",SUM($S156:S156)) -> . | AJ156: =IF(T156=".",".",SUM($S156:T156)) -> . | AK156: =IF(U156=".",".",SUM($S156:U156)) -> . | AL156: =IF(V156=".",".",SUM($S156:V156)) -> . | AM156: =IF(W156=".",".",SUM($S156:W156)) -> . | AN156: =IF(X156=".",".",SUM($S156:X156)) -> . | AO156: =IF(Y156=".",".",SUM($S156:Y156)) -> . | AQ156: . | AR156: . | AS156: . | AT156: . | AU156: . | AV156: . | AW156: .
C157: Mining | D157: =IF('WK2 - Notional General Income'!D209="","",'WK2 - Notional General Income'!D209) ->  | E157: =IF('WK2 - Notional General Income'!M209=".",".",'WK2 - Notional General Income'!M209/'WK2 - Notional General Income'!E209) -> . | F157: =IF('WK3 - Notional GI Yr1 YIELD'!M209=".",".",'WK3 - Notional GI Yr1 YIELD'!M209/'WK3 - Notional GI Yr1 YIELD'!E209) -> . | O157: ='WK2 - Notional General Income'!$E209 -> 0 | P157: ='WK3 - Notional GI Yr1 YIELD'!$E209 -> 0 | S157: . | T157: . | U157: . | V157: . | W157: . | X157: . | Y157: . | AA157: . | AB157: . | AC157: . | AD157: . | AE157: . | AF157: . | AG157: . | AI157: =IF(S157=".",".",SUM($S157:S157)) -> . | AJ157: =IF(T157=".",".",SUM($S157:T157)) -> . | AK157: =IF(U157=".",".",SUM($S157:U157)) -> . | AL157: =IF(V157=".",".",SUM($S157:V157)) -> . | AM157: =IF(W157=".",".",SUM($S157:W157)) -> . | AN157: =IF(X157=".",".",SUM($S157:X157)) -> . | AO157: =IF(Y157=".",".",SUM($S157:Y157)) -> . | AQ157: . | AR157: . | AS157: . | AT157: . | AU157: . | AV157: . | AW157: .
C158: Mining | D158: =IF('WK2 - Notional General Income'!D210="","",'WK2 - Notional General Income'!D210) ->  | E158: =IF('WK2 - Notional General Income'!M210=".",".",'WK2 - Notional General Income'!M210/'WK2 - Notional General Income'!E210) -> . | F158: =IF('WK3 - Notional GI Yr1 YIELD'!M210=".",".",'WK3 - Notional GI Yr1 YIELD'!M210/'WK3 - Notional GI Yr1 YIELD'!E210) -> . | O158: ='WK2 - Notional General Income'!$E210 -> 0 | P158: ='WK3 - Notional GI Yr1 YIELD'!$E210 -> 0 | S158: =IF(OR(E158=".",F158="."),".",F158-E158) -> . | T158: =IF(OR(F158=".",G158="."),".",G158-F158) -> . | U158: . | V158: . | W158: . | X158: . | Y158: . | AA158: . | AB158: . | AC158: . | AD158: . | AE158: . | AF158: . | AG158: . | AI158: =IF(S158=".",".",SUM($S158:S158)) -> . | AJ158: =IF(T158=".",".",SUM($S158:T158)) -> . | AK158: =IF(U158=".",".",SUM($S158:U158)) -> . | AL158: =IF(V158=".",".",SUM($S158:V158)) -> . | AM158: =IF(W158=".",".",SUM($S158:W158)) -> . | AN158: =IF(X158=".",".",SUM($S158:X158)) -> . | AO158: =IF(Y158=".",".",SUM($S158:Y158)) -> . | AQ158: . | AR158: . | AS158: . | AT158: . | AU158: . | AV158: . | AW158: .
C159: Special rate | D159: =IF('WK2 - Notional General Income'!D295="","",'WK2 - Notional General Income'!D295) ->  | E159: =IF('WK2 - Notional General Income'!M295=".",".",'WK2 - Notional General Income'!M295/'WK2 - Notional General Income'!E295) -> . | F159: =IF('WK3 - Notional GI Yr1 YIELD'!M295=".",".",'WK3 - Notional GI Yr1 YIELD'!M295/'WK3 - Notional GI Yr1 YIELD'!E295) -> . | O159: ='WK2 - Notional General Income'!$E295 -> 0 | P159: ='WK3 - Notional GI Yr1 YIELD'!$E295 -> 0 | S159: . | T159: . | U159: . | V159: . | W159: . | X159: . | Y159: . | AA159: . | AB159: . | AC159: . | AD159: . | AE159: . | AF159: . | AG159: . | AI159: =IF(S159=".",".",SUM($S159:S159)) -> . | AJ159: =IF(T159=".",".",SUM($S159:T159)) -> . | AK159: =IF(U159=".",".",SUM($S159:U159)) -> . | AL159: =IF(V159=".",".",SUM($S159:V159)) -> . | AM159: =IF(W159=".",".",SUM($S159:W159)) -> . | AN159: =IF(X159=".",".",SUM($S159:X159)) -> . | AO159: =IF(Y159=".",".",SUM($S159:Y159)) -> . | AQ159: . | AR159: . | AS159: . | AT159: . | AU159: . | AV159: . | AW159: .
C160: Special rate | D160: =IF('WK2 - Notional General Income'!D296="","",'WK2 - Notional General Income'!D296) ->  | E160: =IF('WK2 - Notional General Income'!M296=".",".",'WK2 - Notional General Income'!M296/'WK2 - Notional General Income'!E296) -> . | F160: =IF('WK3 - Notional GI Yr1 YIELD'!M296=".",".",'WK3 - Notional GI Yr1 YIELD'!M296/'WK3 - Notional GI Yr1 YIELD'!E296) -> . | O160: ='WK2 - Notional General Income'!$E296 -> 0 | P160: ='WK3 - Notional GI Yr1 YIELD'!$E296 -> 0 | S160: . | T160: . | U160: . | V160: . | W160: . | X160: . | Y160: . | AA160: . | AB160: . | AC160: . | AD160: . | AE160: . | AF160: . | AG160: . | AI160: =IF(S160=".",".",SUM($S160:S160)) -> . | AJ160: =IF(T160=".",".",SUM($S160:T160)) -> . | AK160: =IF(U160=".",".",SUM($S160:U160)) -> . | AL160: =IF(V160=".",".",SUM($S160:V160)) -> . | AM160: =IF(W160=".",".",SUM($S160:W160)) -> . | AN160: =IF(X160=".",".",SUM($S160:X160)) -> . | AO160: =IF(Y160=".",".",SUM($S160:Y160)) -> . | AQ160: . | AR160: . | AS160: . | AT160: . | AU160: . | AV160: . | AW160: .
C161: Special rate | D161: =IF('WK2 - Notional General Income'!D297="","",'WK2 - Notional General Income'!D297) ->  | E161: =IF('WK2 - Notional General Income'!M297=".",".",'WK2 - Notional General Income'!M297/'WK2 - Notional General Income'!E297) -> . | F161: =IF('WK3 - Notional GI Yr1 YIELD'!M297=".",".",'WK3 - Notional GI Yr1 YIELD'!M297/'WK3 - Notional GI Yr1 YIELD'!E297) -> . | O161: ='WK2 - Notional General Income'!$E297 -> 0 | P161: ='WK3 - Notional GI Yr1 YIELD'!$E297 -> 0 | S161: . | T161: . | U161: . | V161: . | W161: . | X161: . | Y161: . | AA161: . | AB161: . | AC161: . | AD161: . | AE161: . | AF161: . | AG161: . | AI161: =IF(S161=".",".",SUM($S161:S161)) -> . | AJ161: =IF(T161=".",".",SUM($S161:T161)) -> . | AK161: =IF(U161=".",".",SUM($S161:U161)) -> . | AL161: =IF(V161=".",".",SUM($S161:V161)) -> . | AM161: =IF(W161=".",".",SUM($S161:W161)) -> . | AN161: =IF(X161=".",".",SUM($S161:X161)) -> . | AO161: =IF(Y161=".",".",SUM($S161:Y161)) -> . | AQ161: . | AR161: . | AS161: . | AT161: . | AU161: . | AV161: . | AW161: .
C162: Special rate | D162: =IF('WK2 - Notional General Income'!D298="","",'WK2 - Notional General Income'!D298) ->  | E162: =IF('WK2 - Notional General Income'!M298=".",".",'WK2 - Notional General Income'!M298/'WK2 - Notional General Income'!E298) -> . | F162: =IF('WK3 - Notional GI Yr1 YIELD'!M298=".",".",'WK3 - Notional GI Yr1 YIELD'!M298/'WK3 - Notional GI Yr1 YIELD'!E298) -> . | O162: ='WK2 - Notional General Income'!$E298 -> 0 | P162: ='WK3 - Notional GI Yr1 YIELD'!$E298 -> 0 | S162: . | T162: . | U162: . | V162: . | W162: . | X162: . | Y162: . | AA162: . | AB162: . | AC162: . | AD162: . | AE162: . | AF162: . | AG162: . | AI162: =IF(S162=".",".",SUM($S162:S162)) -> . | AJ162: =IF(T162=".",".",SUM($S162:T162)) -> . | AK162: =IF(U162=".",".",SUM($S162:U162)) -> . | AL162: =IF(V162=".",".",SUM($S162:V162)) -> . | AM162: =IF(W162=".",".",SUM($S162:W162)) -> . | AN162: =IF(X162=".",".",SUM($S162:X162)) -> . | AO162: =IF(Y162=".",".",SUM($S162:Y162)) -> . | AQ162: . | AR162: . | AS162: . | AT162: . | AU162: . | AV162: . | AW162: .
C163: Special rate | D163: =IF('WK2 - Notional General Income'!D299="","",'WK2 - Notional General Income'!D299) ->  | E163: =IF('WK2 - Notional General Income'!M299=".",".",'WK2 - Notional General Income'!M299/'WK2 - Notional General Income'!E299) -> . | F163: =IF('WK3 - Notional GI Yr1 YIELD'!M299=".",".",'WK3 - Notional GI Yr1 YIELD'!M299/'WK3 - Notional GI Yr1 YIELD'!E299) -> . | O163: ='WK2 - Notional General Income'!$E299 -> 0 | P163: ='WK3 - Notional GI Yr1 YIELD'!$E299 -> 0 | S163: . | T163: . | U163: . | V163: . | W163: . | X163: . | Y163: . | AA163: . | AB163: . | AC163: . | AD163: . | AE163: . | AF163: . | AG163: . | AI163: =IF(S163=".",".",SUM($S163:S163)) -> . | AJ163: =IF(T163=".",".",SUM($S163:T163)) -> . | AK163: =IF(U163=".",".",SUM($S163:U163)) -> . | AL163: =IF(V163=".",".",SUM($S163:V163)) -> . | AM163: =IF(W163=".",".",SUM($S163:W163)) -> . | AN163: =IF(X163=".",".",SUM($S163:X163)) -> . | AO163: =IF(Y163=".",".",SUM($S163:Y163)) -> . | AQ163: . | AR163: . | AS163: . | AT163: . | AU163: . | AV163: . | AW163: .
C164: Special rate | D164: =IF('WK2 - Notional General Income'!D300="","",'WK2 - Notional General Income'!D300) ->  | E164: =IF('WK2 - Notional General Income'!M300=".",".",'WK2 - Notional General Income'!M300/'WK2 - Notional General Income'!E300) -> . | F164: =IF('WK3 - Notional GI Yr1 YIELD'!M300=".",".",'WK3 - Notional GI Yr1 YIELD'!M300/'WK3 - Notional GI Yr1 YIELD'!E300) -> . | O164: ='WK2 - Notional General Income'!$E300 -> 0 | P164: ='WK3 - Notional GI Yr1 YIELD'!$E300 -> 0 | S164: . | T164: . | U164: . | V164: . | W164: . | X164: . | Y164: . | AA164: . | AB164: . | AC164: . | AD164: . | AE164: . | AF164: . | AG164: . | AI164: =IF(S164=".",".",SUM($S164:S164)) -> . | AJ164: =IF(T164=".",".",SUM($S164:T164)) -> . | AK164: =IF(U164=".",".",SUM($S164:U164)) -> . | AL164: =IF(V164=".",".",SUM($S164:V164)) -> . | AM164: =IF(W164=".",".",SUM($S164:W164)) -> . | AN164: =IF(X164=".",".",SUM($S164:X164)) -> . | AO164: =IF(Y164=".",".",SUM($S164:Y164)) -> . | AQ164: . | AR164: . | AS164: . | AT164: . | AU164: . | AV164: . | AW164: .
C165: Special rate | D165: =IF('WK2 - Notional General Income'!D301="","",'WK2 - Notional General Income'!D301) ->  | E165: =IF('WK2 - Notional General Income'!M301=".",".",'WK2 - Notional General Income'!M301/'WK2 - Notional General Income'!E301) -> . | F165: =IF('WK3 - Notional GI Yr1 YIELD'!M301=".",".",'WK3 - Notional GI Yr1 YIELD'!M301/'WK3 - Notional GI Yr1 YIELD'!E301) -> . | O165: ='WK2 - Notional General Income'!$E301 -> 0 | P165: ='WK3 - Notional GI Yr1 YIELD'!$E301 -> 0 | S165: . | T165: . | U165: . | V165: . | W165: . | X165: . | Y165: . | AA165: . | AB165: . | AC165: . | AD165: . | AE165: . | AF165: . | AG165: . | AI165: =IF(S165=".",".",SUM($S165:S165)) -> . | AJ165: =IF(T165=".",".",SUM($S165:T165)) -> . | AK165: =IF(U165=".",".",SUM($S165:U165)) -> . | AL165: =IF(V165=".",".",SUM($S165:V165)) -> . | AM165: =IF(W165=".",".",SUM($S165:W165)) -> . | AN165: =IF(X165=".",".",SUM($S165:X165)) -> . | AO165: =IF(Y165=".",".",SUM($S165:Y165)) -> . | AQ165: . | AR165: . | AS165: . | AT165: . | AU165: . | AV165: . | AW165: .
C166: Special rate | D166: =IF('WK2 - Notional General Income'!D302="","",'WK2 - Notional General Income'!D302) ->  | E166: =IF('WK2 - Notional General Income'!M302=".",".",'WK2 - Notional General Income'!M302/'WK2 - Notional General Income'!E302) -> . | F166: =IF('WK3 - Notional GI Yr1 YIELD'!M302=".",".",'WK3 - Notional GI Yr1 YIELD'!M302/'WK3 - Notional GI Yr1 YIELD'!E302) -> . | O166: ='WK2 - Notional General Income'!$E302 -> 0 | P166: ='WK3 - Notional GI Yr1 YIELD'!$E302 -> 0 | S166: . | T166: . | U166: . | V166: . | W166: . | X166: . | Y166: . | AA166: . | AB166: . | AC166: . | AD166: . | AE166: . | AF166: . | AG166: . | AI166: =IF(S166=".",".",SUM($S166:S166)) -> . | AJ166: =IF(T166=".",".",SUM($S166:T166)) -> . | AK166: =IF(U166=".",".",SUM($S166:U166)) -> . | AL166: =IF(V166=".",".",SUM($S166:V166)) -> . | AM166: =IF(W166=".",".",SUM($S166:W166)) -> . | AN166: =IF(X166=".",".",SUM($S166:X166)) -> . | AO166: =IF(Y166=".",".",SUM($S166:Y166)) -> . | AQ166: . | AR166: . | AS166: . | AT166: . | AU166: . | AV166: . | AW166: .
C167: Special rate | D167: =IF('WK2 - Notional General Income'!D303="","",'WK2 - Notional General Income'!D303) ->  | E167: =IF('WK2 - Notional General Income'!M303=".",".",'WK2 - Notional General Income'!M303/'WK2 - Notional General Income'!E303) -> . | F167: =IF('WK3 - Notional GI Yr1 YIELD'!M303=".",".",'WK3 - Notional GI Yr1 YIELD'!M303/'WK3 - Notional GI Yr1 YIELD'!E303) -> . | O167: ='WK2 - Notional General Income'!$E303 -> 0 | P167: ='WK3 - Notional GI Yr1 YIELD'!$E303 -> 0 | S167: . | T167: . | U167: . | V167: . | W167: . | X167: . | Y167: . | AA167: . | AB167: . | AC167: . | AD167: . | AE167: . | AF167: . | AG167: . | AI167: =IF(S167=".",".",SUM($S167:S167)) -> . | AJ167: =IF(T167=".",".",SUM($S167:T167)) -> . | AK167: =IF(U167=".",".",SUM($S167:U167)) -> . | AL167: =IF(V167=".",".",SUM($S167:V167)) -> . | AM167: =IF(W167=".",".",SUM($S167:W167)) -> . | AN167: =IF(X167=".",".",SUM($S167:X167)) -> . | AO167: =IF(Y167=".",".",SUM($S167:Y167)) -> . | AQ167: . | AR167: . | AS167: . | AT167: . | AU167: . | AV167: . | AW167: .
C168: Special rate | D168: =IF('WK2 - Notional General Income'!D304="","",'WK2 - Notional General Income'!D304) ->  | E168: =IF('WK2 - Notional General Income'!M304=".",".",'WK2 - Notional General Income'!M304/'WK2 - Notional General Income'!E304) -> . | F168: =IF('WK3 - Notional GI Yr1 YIELD'!M304=".",".",'WK3 - Notional GI Yr1 YIELD'!M304/'WK3 - Notional GI Yr1 YIELD'!E304) -> . | O168: ='WK2 - Notional General Income'!$E304 -> 0 | P168: ='WK3 - Notional GI Yr1 YIELD'!$E304 -> 0 | S168: . | T168: . | U168: . | V168: . | W168: . | X168: . | Y168: . | AA168: . | AB168: . | AC168: . | AD168: . | AE168: . | AF168: . | AG168: . | AI168: =IF(S168=".",".",SUM($S168:S168)) -> . | AJ168: =IF(T168=".",".",SUM($S168:T168)) -> . | AK168: =IF(U168=".",".",SUM($S168:U168)) -> . | AL168: =IF(V168=".",".",SUM($S168:V168)) -> . | AM168: =IF(W168=".",".",SUM($S168:W168)) -> . | AN168: =IF(X168=".",".",SUM($S168:X168)) -> . | AO168: =IF(Y168=".",".",SUM($S168:Y168)) -> . | AQ168: . | AR168: . | AS168: . | AT168: . | AU168: . | AV168: . | AW168: .
D169: TOTAL AVERAGE | E169: =IF($O169=0,".",SUMPRODUCT(E151:E168,$O151:$O168)/$O169) -> 5925.285896 | F169: =IF($P169=0,".",SUMPRODUCT(F151:F168,$P151:$P168)/$P169) -> 5572.051896 | G169: =IF($P169=0,".",SUMPRODUCT(G151:G168,$P151:$P168)/$P169) -> 5711.353193 | H169: 5854.137023 | I169: 6000.490449 | J169: 6150.50271 | K169: 6304.265278 | L169: 6461.87191 | O169: =SUM(O151:O158) -> 11 | P169: =SUM(P151:P158) -> 12 | S169: -353.2340005 | T169: 139.3012974 | U169: =IF(H169=".",".",H169-G169) -> 142.7838298 | V169: 146.3534256 | W169: 150.0122612 | X169: 153.7625677 | Y169: 157.6066319 | AA169: -0.05961467626 | AB169: 0.025 | AC169: 0.025 | AD169: 0.025 | AE169: 0.025 | AF169: 0.025 | AG169: 0.025 | AI169: =IF(S169=".",".",SUM($S169:S169)) -> -353.2340005 | AJ169: =IF(T169=".",".",SUM($S169:T169)) -> -213.9327031 | AK169: =IF(U169=".",".",SUM($S169:U169)) -> -71.14887322 | AL169: =IF(V169=".",".",SUM($S169:V169)) -> 75.20455235 | AM169: =IF(W169=".",".",SUM($S169:W169)) -> 225.2168136 | AN169: =IF(X169=".",".",SUM($S169:X169)) -> 378.9793813 | AO169: =IF(Y169=".",".",SUM($S169:Y169)) -> 536.5860133 | AQ169: -0.05961467626 | AR169: -0.03610504317 | AS169: -0.01200766924 | AT169: 0.01269213902 | AU169: 0.0380094425 | AV169: 0.06395967856 | AW169: 0.09055867053
C173: Average Ordinary and Special Rates - without proposed special variation (assumed rate peg only) | J173: =$H$21 -> $ nominal per year | L173: =$F$3 -> Armidale | O173: =O73 -> Number of Assessments | S173: =S$21 -> Annual increases (nominal $ per year) | AA173: =AA$21 -> Annual increases (%) | AI173: =AI$21 -> Cumulative increases (nominal $ per year) | AQ173: =AQ$21 -> Cumulative increases (%)
C174: Category | D174: Sub-category or Special Rate name | E174: Current Average Rate | F174: Average Rate Year 1 | G174: Average Rate Year 2 | H174: Average Rate Year 3 | I174: Average Rate Year 4 | J174: Average Rate Year 5 | K174: Average Rate Year 6 | L174: Average Rate Year 7 | S174: Average Rates - without proposed special variation | AA174: =$S174 -> Average Rates - without proposed special variation | AI174: =$S174 -> Average Rates - without proposed special variation | AQ174: =$S174 -> Average Rates - without proposed special variation
E175: =E74 -> 2020-21 | F175: 2021-22 | G175: 2022-23 | H175: 2023-24 | I175: 2024-25 | J175: 2025-26 | K175: 2026-27 | L175: 2027-28 | O175: =O74 -> 2020-21 | P175: 2021-22 | S175: =S$23 -> Year 1 | T175: =T$23 -> Year 2 | U175: Year 3 | V175: Year 4 | W175: Year 5 | X175: Year 6 | Y175: Year 7 | AA175: =AA$23 -> Year 1 | AB175: Year 2 | AC175: Year 3 | AD175: Year 4 | AE175: Year 5 | AF175: Year 6 | AG175: Year 7 | AI175: =AI$23 -> Year 1 | AJ175: =AJ$23 -> Year 2 | AK175: Year 3 | AL175: Year 4 | AM175: Year 5 | AN175: Year 6 | AO175: Year 7 | AQ175: =AQ$23 -> Year 1 | AR175: =AR$23 -> Year 2 | AS175: Year 3 | AT175: Year 4 | AU175: Year 5 | AV175: Year 6 | AW175: Year 7
C176: =C75 -> Residential | D176: Armidale | E176: 1125.508913 | F176: 1062.55 | G176: =F176*1.025 -> 1089.11375 | H176: 1116.341594 | I176: 1144.250134 | J176: 1172.856387 | K176: 1202.177797 | L176: 1232.232242 | O176: 8227 | P176: 8239 | S176: =IF(F176="",".",F176-E176) -> -62.95891301 | T176: =IF(G176="",".",G176-F176) -> 26.56375 | U176: =IF(H176="",".",H176-G176) -> 27.22784375 | V176: =IF(I176="",".",I176-H176) -> 27.90853984 | W176: =IF(J176="",".",J176-I176) -> 28.60625334 | X176: =IF(K176="",".",K176-J176) -> 29.32140967 | Y176: =IF(L176="",".",L176-K176) -> 30.05444492 | AA176: =IFERROR(F176/E176-1,".") -> -0.05593817364 | AB176: =IFERROR(G176/F176-1,".") -> 0.025 | AC176: =IFERROR(H176/G176-1,".") -> 0.025 | AD176: =IFERROR(I176/H176-1,".") -> 0.025 | AE176: =IFERROR(J176/I176-1,".") -> 0.025 | AF176: =IFERROR(K176/J176-1,".") -> 0.025 | AG176: =IFERROR(L176/K176-1,".") -> 0.025 | AI176: =IF(S176=".",".",SUM($S176:S176)) -> -62.95891301 | AJ176: =IF(T176=".",".",SUM($S176:T176)) -> -36.39516301 | AK176: =IF(U176=".",".",SUM($S176:U176)) -> -9.167319264 | AL176: =IF(V176=".",".",SUM($S176:V176)) -> 18.74122058 | AM176: =IF(W176=".",".",SUM($S176:W176)) -> 47.34747392 | AN176: =IF(X176=".",".",SUM($S176:X176)) -> 76.66888359 | AO176: =IF(Y176=".",".",SUM($S176:Y176)) -> 106.7233285 | AQ176: =IFERROR(F176/$E176-1,".") -> -0.05593817364 | AR176: =IFERROR(G176/$E176-1,".") -> -0.03233662799 | AS176: =IFERROR(H176/$E176-1,".") -> -0.008145043685 | AT176: =IFERROR(I176/$E176-1,".") -> 0.01665133022 | AU176: =IFERROR(J176/$E176-1,".") -> 0.04206761348 | AV176: =IFERROR(K176/$E176-1,".") -> 0.06811930382 | AW176: =IFERROR(L176/$E176-1,".") -> 0.09482228641
C177: Residential | D177: Armidale Non Urban | E177: 1148.792959 | F177: 1072.82 | G177: =F177*1.025 -> 1099.6405 | H177: 1127.131512 | I177: 1155.3098 | J177: 1184.192545 | K177: 1213.797359 | L177: 1244.142293 | O177: 1075 | P177: 1071 | S177: -75.97295881 | T177: 26.8205 | U177: 27.4910125 | V177: 28.17828781 | W177: 28.88274501 | X177: 29.60481363 | Y177: 30.34493397 | AA177: -0.06613285556 | AB177: 0.025 | AC177: 0.025 | AD177: 0.025 | AE177: 0.025 | AF177: 0.025 | AG177: 0.025 | AI177: =IF(S177=".",".",SUM($S177:S177)) -> -75.97295881 | AJ177: =IF(T177=".",".",SUM($S177:T177)) -> -49.15245881 | AK177: =IF(U177=".",".",SUM($S177:U177)) -> -21.66144631 | AL177: =IF(V177=".",".",SUM($S177:V177)) -> 6.516841503 | AM177: =IF(W177=".",".",SUM($S177:W177)) -> 35.39958651 | AN177: =IF(X177=".",".",SUM($S177:X177)) -> 65.00440014 | AO177: =IF(Y177=".",".",SUM($S177:Y177)) -> 95.34933412 | AQ177: -0.06613285556 | AR177: -0.04278617695 | AS177: -0.01885583137 | AT177: 0.005672772847 | AU177: 0.03081459217 | AV177: 0.05658495697 | AW177: 0.0829995809
C178: Residential | D178: Wollomombi | E178: 576.176325 | F178: 544.74 | G178: =F178*1.025 -> 558.3585 | H178: 572.3174625 | I178: 586.6253991 | J178: 601.291034 | K178: 616.3233099 | L178: 631.7313926 | O178: 16 | P178: 16 | S178: -31.436325 | T178: 13.6185 | U178: 13.9589625 | V178: 14.30793656 | W178: 14.66563498 | X178: 15.03227585 | Y178: 15.40808275 | AA178: -0.05456025115 | AB178: 0.025 | AC178: 0.025 | AD178: 0.025 | AE178: 0.025 | AF178: 0.025 | AG178: 0.025 | AI178: =IF(S178=".",".",SUM($S178:S178)) -> -31.436325 | AJ178: =IF(T178=".",".",SUM($S178:T178)) -> -17.817825 | AK178: =IF(U178=".",".",SUM($S178:U178)) -> -3.8588625 | AL178: =IF(V178=".",".",SUM($S178:V178)) -> 10.44907406 | AM178: =IF(W178=".",".",SUM($S178:W178)) -> 25.11470904 | AN178: =IF(X178=".",".",SUM($S178:X178)) -> 40.14698489 | AO178: =IF(Y178=".",".",SUM($S178:Y178)) -> 55.55506764 | AQ178: -0.05456025115 | AR178: -0.03092425743 | AS178: -0.006697363867 | AT178: 0.01813520204 | AU178: 0.04358858209 | AV178: 0.06967829664 | AW178: 0.09642025406
C179: Residential | D179: Ebor | E179: 556.1224267 | F179: 397.03 | G179: =F179*1.025 -> 406.95575 | H179: 417.1296437 | I179: 427.5578848 | J179: 438.246832 | K179: 449.2030028 | L179: 460.4330778 | O179: 15 | P179: 15 | S179: -159.0924267 | T179: 9.92575 | U179: 10.17389375 | V179: 10.42824109 | W179: 10.68894712 | X179: 10.9561708 | Y179: 11.23007507 | AA179: -0.2860744668 | AB179: 0.025 | AC179: 0.025 | AD179: 0.025 | AE179: 0.025 | AF179: 0.025 | AG179: 0.025 | AI179: =IF(S179=".",".",SUM($S179:S179)) -> -159.0924267 | AJ179: =IF(T179=".",".",SUM($S179:T179)) -> -149.1666767 | AK179: =IF(U179=".",".",SUM($S179:U179)) -> -138.9927829 | AL179: =IF(V179=".",".",SUM($S179:V179)) -> -128.5645418 | AM179: =IF(W179=".",".",SUM($S179:W179)) -> -117.8755947 | AN179: =IF(X179=".",".",SUM($S179:X179)) -> -106.9194239 | AO179: =IF(Y179=".",".",SUM($S179:Y179)) -> -95.68934883 | AQ179: -0.2860744668 | AR179: -0.2682263284 | AS179: -0.2499319866 | AT179: -0.2311802863 | AU179: -0.2119597935 | AV179: -0.1922587883 | AW179: -0.172065258
C180: Residential | D180: Hillgrove | E180: 601.8732266 | F180: 551.82 | G180: =F180*1.025 -> 565.6155 | H180: 579.7558875 | I180: 594.2497847 | J180: 609.1060293 | K180: 624.33368 | L180: 639.942022 | O180: 96 | P180: 99 | S180: -50.05322656 | T180: 13.7955 | U180: 14.1403875 | V180: 14.49389719 | W180: 14.85624462 | X180: 15.22765073 | Y180: 15.608342 | AA180: -0.08316240755 | AB180: 0.025 | AC180: 0.025 | AD180: 0.025 | AE180: 0.025 | AF180: 0.025 | AG180: 0.025 | AI180: =IF(S180=".",".",SUM($S180:S180)) -> -50.05322656 | AJ180: =IF(T180=".",".",SUM($S180:T180)) -> -36.25772656 | AK180: =IF(U180=".",".",SUM($S180:U180)) -> -22.11733906 | AL180: =IF(V180=".",".",SUM($S180:V180)) -> -7.623441875 | AM180: =IF(W180=".",".",SUM($S180:W180)) -> 7.232802742 | AN180: =IF(X180=".",".",SUM($S180:X180)) -> 22.46045347 | AO180: =IF(Y180=".",".",SUM($S180:Y180)) -> 38.06879548 | AQ180: -0.08316240755 | AR180: -0.06024146774 | AS180: -0.03674750444 | AT180: -0.01266619205 | AU180: 0.01201715315 | AV180: 0.03731758198 | AW180: 0.06325052153
C181: Residential | E181: . | O181: 0 | P181: 0 | S181: . | T181: . | U181: . | V181: . | W181: . | X181: . | Y181: . | AA181: . | AB181: . | AC181: . | AD181: . | AE181: . | AF181: . | AG181: . | AI181: =IF(S181=".",".",SUM($S181:S181)) -> . | AJ181: =IF(T181=".",".",SUM($S181:T181)) -> . | AK181: =IF(U181=".",".",SUM($S181:U181)) -> . | AL181: =IF(V181=".",".",SUM($S181:V181)) -> . | AM181: =IF(W181=".",".",SUM($S181:W181)) -> . | AN181: =IF(X181=".",".",SUM($S181:X181)) -> . | AO181: =IF(Y181=".",".",SUM($S181:Y181)) -> . | AQ181: . | AR181: . | AS181: . | AT181: . | AU181: . | AV181: . | AW181: .
C182: Residential | E182: . | O182: 0 | P182: 0 | S182: . | T182: . | U182: . | V182: . | W182: . | X182: . | Y182: . | AA182: . | AB182: . | AC182: . | AD182: . | AE182: . | AF182: . | AG182: . | AI182: =IF(S182=".",".",SUM($S182:S182)) -> . | AJ182: =IF(T182=".",".",SUM($S182:T182)) -> . | AK182: =IF(U182=".",".",SUM($S182:U182)) -> . | AL182: =IF(V182=".",".",SUM($S182:V182)) -> . | AM182: =IF(W182=".",".",SUM($S182:W182)) -> . | AN182: =IF(X182=".",".",SUM($S182:X182)) -> . | AO182: =IF(Y182=".",".",SUM($S182:Y182)) -> . | AQ182: . | AR182: . | AS182: . | AT182: . | AU182: . | AV182: . | AW182: .
C183: Residential | E183: . | O183: 0 | P183: 0 | S183: . | T183: . | U183: . | V183: . | W183: . | X183: . | Y183: . | AA183: . | AB183: . | AC183: . | AD183: . | AE183: . | AF183: . | AG183: . | AI183: =IF(S183=".",".",SUM($S183:S183)) -> . | AJ183: =IF(T183=".",".",SUM($S183:T183)) -> . | AK183: =IF(U183=".",".",SUM($S183:U183)) -> . | AL183: =IF(V183=".",".",SUM($S183:V183)) -> . | AM183: =IF(W183=".",".",SUM($S183:W183)) -> . | AN183: =IF(X183=".",".",SUM($S183:X183)) -> . | AO183: =IF(Y183=".",".",SUM($S183:Y183)) -> . | AQ183: . | AR183: . | AS183: . | AT183: . | AU183: . | AV183: . | AW183: .
C184: Special rate | E184: . | O184: 0 | P184: 0 | S184: =IF(F184="",".",F184-E184) -> . | T184: =IF(G184="",".",G184-F184) -> . | U184: =IF(H184="",".",H184-G184) -> . | V184: =IF(I184="",".",I184-H184) -> . | W184: =IF(J184="",".",J184-I184) -> . | X184: =IF(K184="",".",K184-J184) -> . | Y184: =IF(L184="",".",L184-K184) -> . | AA184: . | AB184: . | AC184: . | AD184: . | AE184: . | AF184: . | AG184: . | AI184: =IF(S184=".",".",SUM($S184:S184)) -> . | AJ184: =IF(T184=".",".",SUM($S184:T184)) -> . | AK184: =IF(U184=".",".",SUM($S184:U184)) -> . | AL184: =IF(V184=".",".",SUM($S184:V184)) -> . | AM184: =IF(W184=".",".",SUM($S184:W184)) -> . | AN184: =IF(X184=".",".",SUM($S184:X184)) -> . | AO184: =IF(Y184=".",".",SUM($S184:Y184)) -> . | AQ184: . | AR184: . | AS184: . | AT184: . | AU184: . | AV184: . | AW184: .
C185: Special rate | E185: . | O185: 0 | P185: 0 | S185: . | T185: . | U185: . | V185: . | W185: . | X185: . | Y185: . | AA185: . | AB185: . | AC185: . | AD185: . | AE185: . | AF185: . | AG185: . | AI185: =IF(S185=".",".",SUM($S185:S185)) -> . | AJ185: =IF(T185=".",".",SUM($S185:T185)) -> . | AK185: =IF(U185=".",".",SUM($S185:U185)) -> . | AL185: =IF(V185=".",".",SUM($S185:V185)) -> . | AM185: =IF(W185=".",".",SUM($S185:W185)) -> . | AN185: =IF(X185=".",".",SUM($S185:X185)) -> . | AO185: =IF(Y185=".",".",SUM($S185:Y185)) -> . | AQ185: . | AR185: . | AS185: . | AT185: . | AU185: . | AV185: . | AW185: .
C186: Special rate | E186: . | O186: 0 | P186: 0 | S186: . | T186: . | U186: . | V186: . | W186: . | X186: . | Y186: . | AA186: . | AB186: . | AC186: . | AD186: . | AE186: . | AF186: . | AG186: . | AI186: =IF(S186=".",".",SUM($S186:S186)) -> . | AJ186: =IF(T186=".",".",SUM($S186:T186)) -> . | AK186: =IF(U186=".",".",SUM($S186:U186)) -> . | AL186: =IF(V186=".",".",SUM($S186:V186)) -> . | AM186: =IF(W186=".",".",SUM($S186:W186)) -> . | AN186: =IF(X186=".",".",SUM($S186:X186)) -> . | AO186: =IF(Y186=".",".",SUM($S186:Y186)) -> . | AQ186: . | AR186: . | AS186: . | AT186: . | AU186: . | AV186: . | AW186: .
